Workbook

Sheet Menu
Z1: 2
Z4: 2
A6: Rolling Plains Extension District - 3
D8: Budgets
D11: Forage Crops
D13: =+AlfalfaDrylandEstablish!A3 -> Dryland Alfalfa Establishment
D14: =AlfalfaHayDryland!A3 -> Dryland Alfalfa Hay
D15: =AlfalfaIrrigatedEstablish!A3 -> Irrigated Alfalfa Establishment
D16: =AlfalfaHayIrrigated!A3 -> Irrigated Alfalfa Hay
D17: =SmallGrain!A3 -> Small Grain Grazing
B18: Comparative Returns
D19: Field Crops
D21: =CanolaDryland!A3 -> Dryland Canola
D22: =CottonDryland2X1!A3 -> Dryland Cotton (2X1 Planting Pattern)
D23: =CottonDrylandSolid!A3 -> Dryland Cotton (Solid 40" Rows)
D24: =CottonIrrigated!A3 -> Sprinkler Irrigated Cotton
D25: =Peanuts!A3 -> Sprinkler Irrigated Peanuts
D26: =SorghumDryland!A3 -> Dryland Sorghum
D27: =WheatDryland!A3 -> Dryland Wheat
D29: Livestock
D31: =+CowCalf!A3 -> Rolling Plains Cow-Calf Production
D32: =+StockersMar1!A3 -> Stocker Calf Budget - Pull off Wheat March 1
D33: =+StockersGrazeOut!A3 -> Stocker Calf Budget - Grazeout
D35: Other Budgets
D37: ='Livestock Budget'!A3 -> Livestock Enterprise
D38: ='Crop Budget'!A3 -> Crop Enterprise
A55: Developed by Extension Economists, Texas A&M AgriLife Extension Service, budgets@tamu.edu.

Sheet AlfalfaDrylandEstablish
A1: Projections for Planning Purposes Only -- Not to be Used without Updating
A2: 2018 Estimated Costs and Returns per Acre
A3: Dryland Alfalfa Establishment
A4: Enter your name for this budget in the cell above.
A5: Enter Your Values in the cells highlighed in MAROON.
E6: Your Acres | R6: Your
C7: Crop Acres | D7: 100 | L7: Your | Q7: Enterprise | R7: Enterprise
E8: Your | H8: Your | I8: Cash | J8: Your | K8: Landlord | L8: Landlord | N8: Your | P8: Your | Q8: Total | R8: Total
A9: REVENUE | D9: Quantity | E9: Quantity | F9: Units | G9: $/Unit | H9: $/Unit | I9: Total | J9: Total | K9: Share | L9: Share | M9: Landlord | N9: Landlord | O9: Tenant | P9: Tenant | Q9: (100 acres) | R9: ="(" & E7 & " acres)" -> ( acres)
B10: 0 | D10: 0 | G10: 0 | I10: 0 | J10: =E10*H10 -> 0 | K10: 0 | M10: 0 | N10: =J10*L10 -> 0 | O10: 0 | P10: =+J10-N10 -> 0 | Q10: 0 | R10: =+J10*E$7 -> 0
D11: 0 | G11: 0 | I11: 0 | J11: 0 | K11: 0 | M11: 0 | N11: 0 | O11: 0 | P11: 0 | Q11: 0 | R11: 0
D12: 0 | G12: 0 | I12: 0 | J12: 0 | K12: 0 | M12: 0 | N12: 0 | O12: 0 | P12: 0 | Q12: 0 | R12: 0
A13: Total Revenue | I13: 0 | J13: =SUM(J10:J12) -> 0 | M13: 0 | N13: =SUM(N10:N12) -> 0 | O13: 0 | P13: =SUM(P10:P12) -> 0 | Q13: 0 | R13: =SUM(R10:R12) -> 0
Q14: Enterprise | R14: Enterprise
A15: VARIABLE COSTS | D15: Quantity | E15: Quantity | F15: Units | G15: $/Unit | H15: $/Unit | I15: Total | J15: Total | K15: Share | L15: Share | M15: Landlord | N15: Landlord | O15: Tenant | P15: Tenant | Q15: Total | R15: Total
A16: Production Costs
B17: Fertilizer
C18: Fertilizer (N) | D18: 40 | F18: Pound | G18: 0.41 | I18: 16.4 | J18: =E18*H18 -> 0 | K18: 0 | M18: 0 | N18: =J18*L18 -> 0 | O18: 16.4 | P18: =+J18-N18 -> 0 | Q18: 1640 | R18: =+J18*E$7 -> 0
C19: Fertilizer (P) | D19: 80 | F19: Pound | G19: 0.34 | I19: 27.2 | J19: 0 | K19: 0 | M19: 0 | N19: 0 | O19: 27.2 | P19: 0 | Q19: 2720 | R19: 0
C20: Potash (K) | D20: 40 | F20: Pound | G20: 0.3 | I20: 12 | J20: 0 | K20: 0 | M20: 0 | N20: 0 | O20: 12 | P20: 0 | Q20: 1200 | R20: 0
C21: Sulfur | D21: 12 | F21: Pound | G21: 0.25 | I21: 3 | J21: 0 | K21: 0 | M21: 0 | N21: 0 | O21: 3 | P21: 0 | Q21: 300 | R21: 0
B22: Herbicide
C23: Roundup | D23: 2 | F23: Pint | G23: 2.1875 | I23: 4.375 | J23: 0 | K23: 0 | M23: 0 | N23: 0 | O23: 4.375 | P23: 0 | Q23: 437.5 | R23: 0
C24: Herbicide Application | D24: 1 | F24: Acre | G24: 5.5 | I24: 5.5 | J24: 0 | K24: 0 | M24: 0 | N24: 0 | O24: 5.5 | P24: 0 | Q24: 550 | R24: 0
B25: Seed
C26: Alfalfa Seed | D26: 20 | F26: Acre | G26: 5.75 | I26: 115 | J26: 0 | K26: 0 | M26: 0 | N26: 0 | O26: 115 | P26: 0 | Q26: 11500 | R26: 0
D27: 0 | G27: 0 | I27: 0 | J27: 0 | K27: 0 | M27: 0 | N27: 0 | O27: 0 | P27: 0 | Q27: 0 | R27: 0
D28: 0 | G28: 0 | I28: 0 | J28: 0 | K28: 0 | M28: 0 | N28: 0 | O28: 0 | P28: 0 | Q28: 0 | R28: 0
D29: 0 | G29: 0 | I29: 0 | J29: =E29*H29 -> 0 | K29: 0 | M29: 0 | N29: =J29*L29 -> 0 | O29: 0 | P29: =+J29-N29 -> 0 | Q29: 0 | R29: =+J29*E$7 -> 0
B30: Machinery Labor
C31: Tractors/Self-Propelled | D31: 0.62 | F31: Hour | G31: 10 | I31: 6.2 | J31: =E31*H31 -> 0 | K31: 0 | M31: 0 | N31: =J31*L31 -> 0 | O31: 6.2 | P31: =+J31-N31 -> 0 | Q31: 620 | R31: =+J31*E$7 -> 0
C32: Other Labor | D32: 0.68 | F32: Hour | G32: 10 | I32: 6.8 | J32: =E32*H32 -> 0 | K32: 0 | M32: 0 | N32: =J32*L32 -> 0 | O32: 6.8 | P32: =+J32-N32 -> 0 | Q32: 680 | R32: =+J32*E$7 -> 0
B34: Diesel Fuel
C35: Pickup/General Use Equipment | D35: 1 | F35: Acre | G35: 0 | I35: 0 | J35: =E35*H35 -> 0 | K35: 0 | M35: 0 | N35: =J35*L35 -> 0 | O35: 0 | P35: =+J35-N35 -> 0 | Q35: 0 | R35: =+J35*E$7 -> 0
C36: Tractors/Self-Propelled | D36: 4.25 | F36: Gallon | G36: 2.1 | I36: 8.925 | J36: =E36*H36 -> 0 | K36: 0 | M36: 0 | N36: =J36*L36 -> 0 | O36: 8.925 | P36: =+J36-N36 -> 0 | Q36: 892.5 | R36: =+J36*E$7 -> 0
B38: Gasoline
C39: Pickup/General Use Equipment | D39: 1 | F39: Acre | G39: 9 | I39: 9 | J39: =E39*H39 -> 0 | K39: 0 | M39: 0 | N39: =J39*L39 -> 0 | O39: 9 | P39: =+J39-N39 -> 0 | Q39: 900 | R39: =+J39*E$7 -> 0
C40: Tractors/Self-Propelled | D40: 0 | F40: Gallon | G40: 2.25 | I40: 0 | J40: =E40*H40 -> 0 | K40: 0 | M40: 0 | N40: =J40*L40 -> 0 | O40: 0 | P40: =+J40-N40 -> 0 | Q40: 0 | R40: =+J40*E$7 -> 0
B42: Repairs & Maintenance
C43: Pickup/General Use Equipment | D43: 1 | F43: Acre | G43: 2.415 | I43: 2.415 | J43: =E43*H43 -> 0 | K43: 0 | M43: 0 | N43: =J43*L43 -> 0 | O43: 2.415 | P43: =+J43-N43 -> 0 | Q43: 241.5 | R43: =+J43*E$7 -> 0
C44: Irrigation Equipment | D44: 1 | F44: Acre | G44: 0 | I44: 0 | J44: 0 | K44: 0 | M44: 0 | N44: 0 | O44: 0 | P44: 0 | Q44: 0 | R44: 0
C45: Tractors/Self-Propelled | D45: 1 | F45: Acre | G45: 8.296157186 | I45: 8.296157186 | J45: 0 | K45: 0 | M45: 0 | N45: 0 | O45: 8.296157186 | P45: 0 | Q45: 829.6157186 | R45: 0
C46: Implements | D46: 1 | F46: Acre | G46: 11.23201003 | I46: 11.23201003 | J46: 0 | K46: 0 | M46: 0 | N46: 0 | O46: 11.23201003 | P46: 0 | Q46: 1123.201003 | R46: 0
I47: 0 | J47: 0 | K47: 0 | M47: 0 | N47: 0 | O47: 0 | P47: 0 | Q47: 0 | R47: =+J47*E$7 -> 0
I48: 0 | J48: 0 | K48: 0 | M48: 0 | N48: 0 | O48: 0 | P48: 0 | Q48: 0 | R48: 0
B49: Interest on Credit Line | G49: 0.0575 | I49: 2.069538147 | J49: =+SUM(J17:J48)/2*H49 -> 0 | M49: 0 | N49: =+SUM(N17:N48)/2*L49 -> 0 | O49: 2.069538147 | P49: =+SUM(P17:P48)/2*L49 -> 0 | Q49: 206.9538147 | R49: =+J49*E$7 -> 0
A50: Total Variable Costs | I50: 238.4127054 | J50: =SUM(J18:J49) -> 0 | M50: 0 | N50: =SUM(N18:N49) -> 0 | O50: 238.4127054 | P50: =SUM(P18:P49) -> 0 | Q50: 23841.27054 | R50: =SUM(R18:R49) -> 0
A51: Planned Returns Above Variable Costs: | I51: -238.4127054 | J51: =+J13-J50 -> 0 | M51: 0 | N51: =+N13-N50 -> 0 | O51: -238.4127054 | P51: =+P13-P50 -> 0 | Q51: -23841.27054 | R51: =+R13-R50 -> 0
B52: Breakeven Price to Cover Variable Costs | G52: n/a | H52: =IF(E10=0,"n/a",(YVarExp-(YTotExp+YTotRet-J10))/E10) -> n/a
Q53: Enterprise | R53: Enterprise
A54: FIXED COSTS | D54: Quantity | E54: Quantity | F54: Units | G54: $/Unit | H54: $/Unit | J54: Total | K54: Share | L54: Share | M54: Landlord | N54: Landlord | O54: Tenant | P54: Tenant | Q54: Total | R54: Total
B55: Machinery Depreciation
C56: Pickup/General Use Equipment | D56: 1 | F56: Acre | G56: 3.352825 | I56: 3.352825 | J56: =E56*H56 -> 0 | K56: 0 | M56: 0 | N56: =J56*L56 -> 0 | O56: 3.352825 | P56: =+J56-N56 -> 0 | Q56: 335.2825 | R56: =+J56*E$7 -> 0
C57: Tractors/Self-Propelled | D57: 1 | F57: Acre | G57: 8.572695758 | I57: 8.572695758 | J57: 0 | K57: 0 | M57: 0 | N57: =J57*L57 -> 0 | O57: 8.572695758 | P57: 0 | Q57: 857.2695758 | R57: 0
C58: Implements | D58: 1 | F58: Acre | G58: 13.56089628 | I58: 13.56089628 | J58: 0 | K58: 0 | M58: 0 | N58: =J58*L58 -> 0 | O58: 13.56089628 | P58: 0 | Q58: 1356.089628 | R58: 0
B59: Equipment Investment
C60: Pickup/General Use Equipment | D60: 23.485875 | F60: Dollars | G60: 0.055 | I60: 1.291723125 | J60: =E60*H60 -> 0 | K60: 0 | M60: 0 | N60: =J60*L60 -> 0 | O60: 1.291723125 | P60: =+J60-N60 -> 0 | Q60: 129.1723125 | R60: =+J60*E$7 -> 0
C61: Tractors/Self-Propelled | D61: 66.78406534 | F61: Dollars | G61: 0.055 | I61: 3.673123594 | J61: 0 | K61: 0 | M61: 0 | N61: =J61*L61 -> 0 | O61: 3.673123594 | P61: 0 | Q61: 367.3123594 | R61: 0
C62: Implements | D62: 58.01050076 | F62: Dollars | G62: 0.055 | I62: 3.190577542 | J62: 0 | K62: 0 | M62: 0 | N62: =J62*L62 -> 0 | O62: 3.190577542 | P62: 0 | Q62: 319.0577542 | R62: 0
B63: Salaried Labor | D63: 1 | F63: Acre | G63: 0 | I63: 0 | J63: 0 | K63: 0 | M63: 0 | N63: =J63*L63 -> 0 | O63: 0 | P63: =+J63-N63 -> 0 | Q63: 0 | R63: =+J63*E$7 -> 0
B64: Management Fee, Owner/Operator Labor | D64: 1 | F64: Acre | G64: 0 | I64: 0 | J64: 0 | K64: 0 | M64: 0 | N64: 0 | O64: 0 | P64: 0 | Q64: 0 | R64: 0
B65: Allocated Establishment Cost | D65: 1 | F65: Acre | G65: 0 | I65: 0 | J65: 0 | K65: 0 | M65: 0 | N65: 0 | O65: 0 | P65: 0 | Q65: 0 | R65: 0
B66: Cash Rent - Dryland Alfalfa | D66: 1 | F66: Acre | G66: 32 | I66: 32 | J66: 0 | K66: 0 | M66: 0 | N66: 0 | O66: 32 | P66: 0 | Q66: 3200 | R66: 0
B67: Property Taxes | D67: 1 | F67: Acre | G67: 0 | I67: 0 | J67: =E67*H67 -> 0 | K67: 0 | M67: 0 | N67: 0 | O67: 0 | P67: 0 | Q67: 0 | R67: =+J67*E$7 -> 0
B68: Whole Farm Insurance | D68: 1 | F68: Acre | G68: 0 | I68: 0 | J68: 0 | K68: 0 | M68: 0 | N68: 0 | O68: 0 | P68: 0 | Q68: 0 | R68: 0
D69: 1 | G69: 0 | I69: 0 | J69: 0 | K69: 0 | M69: 0 | N69: 0 | O69: 0 | P69: 0 | Q69: 0 | R69: 0
D70: 1 | G70: 0 | I70: 0 | J70: 0 | K70: 0 | M70: 0 | N70: 0 | O70: 0 | P70: 0 | Q70: 0 | R70: 0
A71: Total Fixed Costs | I71: 65.6418413 | J71: =+SUM(J56:J70) -> 0 | M71: 0 | N71: =+SUM(N56:N70) -> 0 | O71: 65.6418413 | P71: =+SUM(P56:P70) -> 0 | Q71: 6564.18413 | R71: =+SUM(R56:R70) -> 0
A72: Total Specified Costs | I72: 304.0545467 | J72: =+J50+J71 -> 0 | M72: 0 | N72: =+N50+N71 -> 0 | O72: 304.0545467 | P72: =+P50+P71 -> 0 | Q72: 30405.45467 | R72: =+R50+R71 -> 0
A74: Returns Above Specified Costs | I74: -304.0545467 | J74: =+J13-J72 -> 0 | M74: 0 | N74: =+N13-N72 -> 0 | O74: -304.0545467 | P74: =+P13-P72 -> 0 | Q74: -30405.45467 | R74: =+R13-R72 -> 0
A76: Breakeven Price to Cover Total Costs | G76: n/a | H76: =IF(E10=0,"n/a",(YTotExp-(YTotExp+YTotRet-J10))/E10) -> n/a
D78: Example Breakeven Prices
B79: Example | C79: Example | D79: To Cover | G79: To Cover
B80: Yield | C80: Yield | D80: Variable | G80: Total
B81: Percent | D81: Costs | G81: Costs
B82: 0.75 | C82: 0 | D82: 0 | G82: 0
B83: 0.9 | C83: 0 | D83: 0 | G83: 0
B84: 1 | C84: 0 | D84: 0 | G84: 0
B85: 1.1 | C85: 0 | D85: 0 | G85: 0
B86: 1.25 | C86: 0 | D86: 0 | G86: 0
D88: Your Breakeven Prices
B89: Your | C89: Your | E89: To Cover | H89: To Cover
B90: Yield | C90: Yield | E90: Variable | H90: Total
B91: Percent | E91: Costs | H91: Costs
B92: 0.75 | C92: =E10*YPER1 -> 0 | E92: =IF($E$10=0,0,(YVarExp-(YTotExp+YTotRet-J10))/($E$10*YPER1)) -> 0 | H92: =IF($E$10=0,0,(YTotExp-(YTotExp+YTotRet-J10))/($E$10*YPER1)) -> 0
B93: 0.9 | C93: =E10*YPER2 -> 0 | E93: =IF($E$10=0,0,(YVarExp-(YTotExp+YTotRet-J10))/($E$10*YPER2)) -> 0 | H93: =IF($E$10=0,0,(YTotExp-(YTotExp+YTotRet-J10))/($E$10*YPER2)) -> 0
B94: 1 | C94: =+E10 -> 0 | E94: =IF($E$10=0,0,(YVarExp-(YTotExp+YTotRet-J10))/($E$10*YPER3)) -> 0 | H94: =IF($E$10=0,0,(YTotExp-(YTotExp+YTotRet-J10))/($E$10*YPER3)) -> 0
B95: 1.1 | C95: =E10*YPER4 -> 0 | E95: =IF($E$10=0,0,(YVarExp-(YTotExp+YTotRet-J10))/($E$10*YPER4)) -> 0 | H95: =IF($E$10=0,0,(YTotExp-(YTotExp+YTotRet-J10))/($E$10*YPER4)) -> 0
B96: 1.25 | C96: =E10*YPER5 -> 0 | E96: =IF($E$10=0,0,(YVarExp-(YTotExp+YTotRet-J10))/($E$10*YPER5)) -> 0 | H96: =IF($E$10=0,0,(YTotExp-(YTotExp+YTotRet-J10))/($E$10*YPER5)) -> 0
A98: Developed by Extension Economists, Texas A&M AgriLife Extension Service, budgets@tamu.edu.
A100: Information presented is prepared solely as a general guide and not intended to recognize or predict the costs and returns from any one operation. Brand names are mentioned only as examples and imply no endorsement.

Sheet AlfalfaHayDryland
A1: Projections for Planning Purposes Only -- Not to be Used without Updating
A2: 2018 Estimated Costs and Returns per Acre
A3: Dryland Alfalfa Hay
A4: Enter your name for this budget in the cell above.
A5: Enter Your Values in the cells highlighed in MAROON.
E6: Your Acres | R6: Your
C7: Crop Acres | D7: 100 | L7: Your | Q7: Enterprise | R7: Enterprise
E8: Your | H8: Your | I8: Cash | J8: Your | K8: Landlord | L8: Landlord | N8: Your | P8: Your | Q8: Total | R8: Total
A9: REVENUE | D9: Quantity | E9: Quantity | F9: Units | G9: $/Unit | H9: $/Unit | I9: Total | J9: Total | K9: Share | L9: Share | M9: Landlord | N9: Landlord | O9: Tenant | P9: Tenant | Q9: (100 acres) | R9: ="(" & E7 & " acres)" -> ( acres)
B10: Alfalfa Hay | D10: 3.25 | F10: Ton | G10: 200 | I10: 650 | J10: =E10*H10 -> 0 | K10: 0 | M10: 0 | N10: =J10*L10 -> 0 | O10: 650 | P10: =+J10-N10 -> 0 | Q10: 65000 | R10: =+J10*E$7 -> 0
D11: 0 | G11: 0 | I11: 0 | J11: 0 | K11: 0 | M11: 0 | N11: 0 | O11: 0 | P11: =+J11-N11 -> 0 | Q11: 0 | R11: 0
D12: 0 | G12: 0 | I12: 0 | J12: 0 | K12: 0 | M12: 0 | N12: 0 | O12: 0 | P12: 0 | Q12: 0 | R12: 0
A13: Total Revenue | I13: 650 | J13: =SUM(J10:J12) -> 0 | M13: 0 | N13: =SUM(N10:N12) -> 0 | O13: 650 | P13: =SUM(P10:P12) -> 0 | Q13: 65000 | R13: =SUM(R10:R12) -> 0
Q14: Enterprise | R14: Enterprise
A15: VARIABLE COSTS | D15: Quantity | E15: Quantity | F15: Units | G15: $/Unit | H15: $/Unit | I15: Total | J15: Total | K15: Share | L15: Share | M15: Landlord | N15: Landlord | O15: Tenant | P15: Tenant | Q15: Total | R15: Total
A16: Production Costs
B17: Custom
C18: Fertilizer Application | D18: 1 | F18: Acre | G18: 5.5 | I18: 5.5 | J18: =E18*H18 -> 0 | K18: 0 | M18: 0 | N18: =J18*L18 -> 0 | O18: 5.5 | P18: =+J18-N18 -> 0 | Q18: 550 | R18: =+J18*E$7 -> 0
C19: Herbicide Application | D19: 2 | F19: Acre | G19: 5.5 | I19: 11 | J19: 0 | K19: 0 | M19: 0 | N19: 0 | O19: 11 | P19: 0 | Q19: 1100 | R19: 0
C20: Insecticide Application | D20: 2 | F20: Acre | G20: 5.5 | I20: 11 | J20: 0 | K20: 0 | M20: 0 | N20: 0 | O20: 11 | P20: 0 | Q20: 1100 | R20: 0
C21: Custom Baling - Alfalfa | D21: 3.25 | F21: Ton | G21: 25 | I21: 81.25 | J21: 0 | K21: 0 | M21: 0 | N21: 0 | O21: 81.25 | P21: 0 | Q21: 8125 | R21: 0
B22: Fertilizer
C23: Sulfur | D23: 12 | F23: Pound | G23: 0.25 | I23: 3 | J23: 0 | K23: 0 | M23: 0 | N23: 0 | O23: 3 | P23: 0 | Q23: 300 | R23: 0
C24: Fertilizer (N) | D24: 20 | F24: Pound | G24: 0.41 | I24: 8.2 | J24: 0 | K24: 0 | M24: 0 | N24: 0 | O24: 8.2 | P24: 0 | Q24: 820 | R24: 0
C25: Fertilizer (P) | D25: 50 | F25: Pound | G25: 0.34 | I25: 17 | J25: 0 | K25: 0 | M25: 0 | N25: 0 | O25: 17 | P25: 0 | Q25: 1700 | R25: 0
B26: Herbicide
C27: Valpar | D27: 2 | F27: Pint | G27: 11.875 | I27: 23.75 | J27: 0 | K27: 0 | M27: 0 | N27: 0 | O27: 23.75 | P27: 0 | Q27: 2375 | R27: 0
C28: Butyrac | D28: 2 | F28: Pint | G28: 3.75 | I28: 7.5 | J28: 0 | K28: 0 | M28: 0 | N28: 0 | O28: 7.5 | P28: 0 | Q28: 750 | R28: 0
B29: Insecticide
C30: Insecticide - Alfalfa 1 | D30: 2 | F30: Pint | G30: 4.12 | I30: 8.24 | J30: 0 | K30: 0 | M30: 0 | N30: 0 | O30: 8.24 | P30: 0 | Q30: 824 | R30: 0
C31: Insecticide - Alfalfa 2 Baythroid | D31: 3 | F31: Fluid Ounce | G31: 1.0546875 | I31: 3.1640625 | J31: 0 | K31: 0 | M31: 0 | N31: 0 | O31: 3.1640625 | P31: 0 | Q31: 316.40625 | R31: 0
D32: 0 | G32: 0 | I32: 0 | J32: 0 | K32: 0 | M32: 0 | N32: 0 | O32: 0 | P32: 0 | Q32: 0 | R32: 0
D33: 0 | G33: 0 | I33: 0 | J33: 0 | K33: 0 | M33: 0 | N33: 0 | O33: 0 | P33: 0 | Q33: 0 | R33: 0
D34: 0 | G34: 0 | I34: 0 | J34: =E34*H34 -> 0 | K34: 0 | M34: 0 | N34: =J34*L34 -> 0 | O34: 0 | P34: =+J34-N34 -> 0 | Q34: 0 | R34: =+J34*E$7 -> 0
B35: Machinery Labor
C36: Tractors/Self-Propelled | D36: 0 | F36: Hour | G36: 10 | I36: 0 | J36: =E36*H36 -> 0 | K36: 0 | M36: 0 | N36: =J36*L36 -> 0 | O36: 0 | P36: =+J36-N36 -> 0 | Q36: 0 | R36: =+J36*E$7 -> 0
C37: Other Labor | D37: 0 | F37: Hour | G37: 10 | I37: 0 | J37: =E37*H37 -> 0 | K37: 0 | M37: 0 | N37: =J37*L37 -> 0 | O37: 0 | P37: =+J37-N37 -> 0 | Q37: 0 | R37: =+J37*E$7 -> 0
B39: Diesel Fuel
C40: Pickup/General Use Equipment | D40: 1 | F40: Acre | G40: 0 | I40: 0 | J40: =E40*H40 -> 0 | K40: 0 | M40: 0 | N40: =J40*L40 -> 0 | O40: 0 | P40: =+J40-N40 -> 0 | Q40: 0 | R40: =+J40*E$7 -> 0
C41: Tractors/Self-Propelled | D41: 0 | F41: Gallon | G41: 2.1 | I41: 0 | J41: =E41*H41 -> 0 | K41: 0 | M41: 0 | N41: =J41*L41 -> 0 | O41: 0 | P41: =+J41-N41 -> 0 | Q41: 0 | R41: =+J41*E$7 -> 0
B43: Gasoline
C44: Pickup/General Use Equipment | D44: 1 | F44: Acre | G44: 4.5 | I44: 4.5 | J44: =E44*H44 -> 0 | K44: 0 | M44: 0 | N44: =J44*L44 -> 0 | O44: 4.5 | P44: =+J44-N44 -> 0 | Q44: 450 | R44: =+J44*E$7 -> 0
C45: Tractors/Self-Propelled | D45: 0 | F45: Gallon | G45: 2.25 | I45: 0 | J45: =E45*H45 -> 0 | K45: 0 | M45: 0 | N45: =J45*L45 -> 0 | O45: 0 | P45: =+J45-N45 -> 0 | Q45: 0 | R45: =+J45*E$7 -> 0
B47: Repairs & Maintenance
C48: Pickup/General Use Equipment | D48: 1 | F48: Acre | G48: 1.2075 | I48: 1.2075 | J48: =E48*H48 -> 0 | K48: 0 | M48: 0 | N48: =J48*L48 -> 0 | O48: 1.2075 | P48: =+J48-N48 -> 0 | Q48: 120.75 | R48: =+J48*E$7 -> 0
C49: Irrigation Equipment | D49: 1 | F49: Acre | G49: 0 | I49: 0 | J49: 0 | K49: 0 | M49: 0 | N49: 0 | O49: 0 | P49: 0 | Q49: 0 | R49: 0
C50: Tractors/Self-Propelled | D50: 1 | F50: Acre | G50: 0 | I50: 0 | J50: 0 | K50: 0 | M50: 0 | N50: 0 | O50: 0 | P50: 0 | Q50: 0 | R50: 0
C51: Implements | D51: 1 | F51: Acre | G51: 0 | I51: 0 | J51: 0 | K51: 0 | M51: 0 | N51: 0 | O51: 0 | P51: 0 | Q51: 0 | R51: 0
I52: 0 | J52: 0 | K52: 0 | M52: 0 | N52: 0 | O52: 0 | P52: 0 | Q52: 0 | R52: 0
I53: 0 | J53: 0 | K53: 0 | M53: 0 | N53: 0 | O53: 0 | P53: 0 | Q53: 0 | R53: 0
B54: Interest on Credit Line | G54: 0.0575 | I54: 3.872720751 | J54: =+SUM(J17:J53)/2*H54 -> 0 | M54: 0 | N54: =+SUM(N17:N53)/2*L54 -> 0 | O54: 3.872720751 | P54: =+SUM(P17:P53)/2*L54 -> 0 | Q54: 387.2720751 | R54: =+J54*E$7 -> 0
A55: Total Variable Costs | I55: 189.1842833 | J55: =SUM(J18:J54) -> 0 | M55: 0 | N55: =SUM(N18:N54) -> 0 | O55: 189.1842833 | P55: =SUM(P18:P54) -> 0 | Q55: 18918.42833 | R55: =SUM(R18:R54) -> 0
A56: Planned Returns Above Variable Costs: | I56: 460.8157167 | J56: =+J13-J55 -> 0 | M56: 0 | N56: =+N13-N55 -> 0 | O56: 460.8157167 | P56: =+P13-P55 -> 0 | Q56: 46081.57167 | R56: =+R13-R55 -> 0
B57: Breakeven Price to Cover Variable Costs | G57: 58.21054869 | H57: =IF(E10=0,"n/a",(YVarExp-(YTotExp+YTotRet-J10))/E10) -> n/a | I57: Ton
Q58: Enterprise | R58: Enterprise
A59: FIXED COSTS | D59: Quantity | E59: Quantity | F59: Units | G59: $/Unit | H59: $/Unit | I59: Total | J59: Total | K59: Share | L59: Share | M59: Landlord | N59: Landlord | O59: Tenant | P59: Tenant | Q59: Total | R59: Total
B60: Machinery Depreciation
C61: Pickup/General Use Equipment | D61: 1 | F61: Acre | G61: 1.6764125 | I61: 1.6764125 | J61: =E61*H61 -> 0 | K61: 0 | M61: 0 | N61: =J61*L61 -> 0 | O61: 1.6764125 | P61: =+J61-N61 -> 0 | Q61: 167.64125 | R61: =+J61*E$7 -> 0
B62: Equipment Investment
C63: Pickup/General Use Equipment | D63: 11.7429375 | F63: Dollars | G63: 0.055 | I63: 0.6458615625 | J63: =E63*H63 -> 0 | K63: 0 | M63: 0 | N63: =J63*L63 -> 0 | O63: 0.6458615625 | P63: =+J63-N63 -> 0 | Q63: 64.58615625 | R63: =+J63*E$7 -> 0
B64: Salaried Labor | D64: 1 | F64: Acre | G64: 0 | I64: 0 | J64: 0 | K64: 0 | M64: 0 | N64: =J64*L64 -> 0 | O64: 0 | P64: =+J64-N64 -> 0 | Q64: 0 | R64: =+J64*E$7 -> 0
B65: Management Fee, Owner/Operator Labor | D65: 1 | F65: Acre | G65: 0 | I65: 0 | J65: 0 | K65: 0 | M65: 0 | N65: 0 | O65: 0 | P65: 0 | Q65: 0 | R65: 0
B66: Allocated Establishment Cost | D66: 1 | F66: Acre | G66: 61 | I66: 61 | J66: 0 | K66: 0 | M66: 0 | N66: 0 | O66: 61 | P66: 0 | Q66: 6100 | R66: 0
B67: Cash Rent - Dryland Alfalfa | D67: 1 | F67: Acre | G67: 32 | I67: 32 | J67: 0 | K67: 0 | M67: 0 | N67: 0 | O67: 32 | P67: 0 | Q67: 3200 | R67: 0
B68: Property Taxes | D68: 1 | F68: Acre | G68: 0 | I68: 0 | J68: 0 | K68: 0 | M68: 0 | N68: 0 | O68: 0 | P68: 0 | Q68: 0 | R68: 0
B69: Whole Farm Insurance | D69: 1 | F69: Acre | G69: 0 | I69: 0 | J69: 0 | K69: 0 | M69: 0 | N69: 0 | O69: 0 | P69: 0 | Q69: 0 | R69: 0
D70: 1 | G70: 0 | I70: 0 | J70: 0 | K70: 0 | M70: 0 | N70: 0 | O70: 0 | P70: 0 | Q70: 0 | R70: 0
D71: 1 | G71: 0 | I71: 0 | J71: =E71*H71 -> 0 | K71: 0 | M71: 0 | N71: 0 | O71: 0 | P71: 0 | Q71: 0 | R71: 0
A72: Total Fixed Costs | I72: 95.32227406 | J72: =+SUM(J61:J71) -> 0 | M72: 0 | N72: =+SUM(N61:N71) -> 0 | O72: 95.32227406 | P72: =+SUM(P61:P71) -> 0 | Q72: 9532.227406 | R72: =+SUM(R61:R71) -> 0
A73: Total Specified Costs | I73: 284.5065573 | J73: =+J55+J72 -> 0 | M73: 0 | N73: =+N55+N72 -> 0 | O73: 284.5065573 | P73: =+P55+P72 -> 0 | Q73: 28450.65573 | R73: =+R55+R72 -> 0
A75: Returns Above Specified Costs | I75: 365.4934427 | J75: =+J13-J73 -> 0 | M75: 0 | N75: =+N13-N73 -> 0 | O75: 365.4934427 | P75: =+P13-P73 -> 0 | Q75: 36549.34427 | R75: =+R13-R73 -> 0
A77: Breakeven Price to Cover Total Costs | G77: 87.54047917 | H77: =IF(E10=0,"n/a",(YTotExp-(YTotExp+YTotRet-J10))/E10) -> n/a | I77: Ton
D79: Example Breakeven Prices
B80: Example | C80: Example | D80: To Cover | G80: To Cover
B81: Yield | C81: Yield | D81: Variable | G81: Total
B82: Percent | C82: Ton | D82: Costs | G82: Costs
B83: 0.75 | C83: 2.4375 | D83: 77.61406492 | G83: 116.7206389
B84: 0.9 | C84: 2.925 | D84: 64.67838744 | G84: 97.26719908
B85: 1 | C85: 3.25 | D85: 58.21054869 | G85: 87.54047917
B86: 1.1 | C86: 3.575 | D86: 52.91868063 | G86: 79.58225379
B87: 1.25 | C87: 4.0625 | D87: 46.56843895 | G87: 70.03238334
D89: Your Breakeven Prices
B90: Your | C90: Your | E90: To Cover | H90: To Cover
B91: Yield | C91: Yield | E91: Variable | H91: Total
B92: Percent | C92: Ton | E92: Costs | H92: Costs
B93: 0.75 | C93: =E10*YPER1 -> 0 | E93: =IF($E$10=0,0,(YVarExp-(YTotExp+YTotRet-J10))/($E$10*YPER1)) -> 0 | H93: =IF($E$10=0,0,(YTotExp-(YTotExp+YTotRet-J10))/($E$10*YPER1)) -> 0
B94: 0.9 | C94: =E10*YPER2 -> 0 | E94: =IF($E$10=0,0,(YVarExp-(YTotExp+YTotRet-J10))/($E$10*YPER2)) -> 0 | H94: =IF($E$10=0,0,(YTotExp-(YTotExp+YTotRet-J10))/($E$10*YPER2)) -> 0
B95: 1 | C95: =+E10 -> 0 | E95: =IF($E$10=0,0,(YVarExp-(YTotExp+YTotRet-J10))/($E$10*YPER3)) -> 0 | H95: =IF($E$10=0,0,(YTotExp-(YTotExp+YTotRet-J10))/($E$10*YPER3)) -> 0
B96: 1.1 | C96: =E10*YPER4 -> 0 | E96: =IF($E$10=0,0,(YVarExp-(YTotExp+YTotRet-J10))/($E$10*YPER4)) -> 0 | H96: =IF($E$10=0,0,(YTotExp-(YTotExp+YTotRet-J10))/($E$10*YPER4)) -> 0
B97: 1.25 | C97: =E10*YPER5 -> 0 | E97: =IF($E$10=0,0,(YVarExp-(YTotExp+YTotRet-J10))/($E$10*YPER5)) -> 0 | H97: =IF($E$10=0,0,(YTotExp-(YTotExp+YTotRet-J10))/($E$10*YPER5)) -> 0
A99: Developed by Extension Economists, Texas A&M AgriLife Extension Service, budgets@tamu.edu.
A101: Information presented is prepared solely as a general guide and not intended to recognize or predict the costs and returns from any one operation. Brand names are mentioned only as examples and imply no endorsement.

Sheet AlfalfaIrrigatedEstablish
A1: Projections for Planning Purposes Only -- Not to be Used without Updating
A2: 2018 Estimated Costs and Returns per Acre
A3: Irrigated Alfalfa Establishment
A4: Enter your name for this budget in the cell above.
A5: Enter Your Values in the cells highlighed in MAROON.
E6: Your Acres | R6: Your
C7: Crop Acres | D7: 100 | L7: Your | Q7: Enterprise | R7: Enterprise
E8: Your | H8: Your | I8: Cash | J8: Your | K8: Landlord | L8: Landlord | N8: Your | P8: Your | Q8: Total | R8: Total
A9: REVENUE | D9: Quantity | E9: Quantity | F9: Units | G9: $/Unit | H9: $/Unit | I9: Total | J9: Total | K9: Share | L9: Share | M9: Landlord | N9: Landlord | O9: Tenant | P9: Tenant | Q9: (100 acres) | R9: ="(" & E7 & " acres)" -> ( acres)
B10: 0 | D10: 0 | G10: 0 | I10: 0 | J10: =E10*H10 -> 0 | K10: 0 | M10: 0 | N10: =J10*L10 -> 0 | O10: 0 | P10: =+J10-N10 -> 0 | Q10: 0 | R10: =+J10*E$7 -> 0
D11: 0 | G11: 0 | I11: 0 | J11: 0 | K11: 0 | M11: 0 | N11: 0 | O11: 0 | P11: =+J11-N11 -> 0 | Q11: 0 | R11: 0
D12: 0 | G12: 0 | I12: 0 | J12: 0 | K12: 0 | M12: 0 | N12: 0 | O12: 0 | P12: 0 | Q12: 0 | R12: 0
A13: Total Revenue | I13: 0 | J13: =SUM(J10:J12) -> 0 | M13: 0 | N13: =SUM(N10:N12) -> 0 | O13: 0 | P13: =SUM(P10:P12) -> 0 | Q13: 0 | R13: =SUM(R10:R12) -> 0
Q14: Enterprise | R14: Enterprise
A15: VARIABLE COSTS | D15: Quantity | E15: Quantity | F15: Units | G15: $/Unit | H15: $/Unit | I15: Total | J15: Total | K15: Share | L15: Share | M15: Landlord | N15: Landlord | O15: Tenant | P15: Tenant | Q15: Total | R15: Total
A16: Production Costs
B17: Fertilizer
C18: Fertilizer (N) | D18: 40 | F18: Pound | G18: 0.41 | I18: 16.4 | J18: =E18*H18 -> 0 | K18: 0 | M18: 0 | N18: =J18*L18 -> 0 | O18: 16.4 | P18: =+J18-N18 -> 0 | Q18: 1640 | R18: =+J18*E$7 -> 0
C19: Fertilizer (P) | D19: 80 | F19: Pound | G19: 0.34 | I19: 27.2 | J19: 0 | K19: 0 | M19: 0 | N19: 0 | O19: 27.2 | P19: 0 | Q19: 2720 | R19: 0
C20: Potash (K) | D20: 40 | F20: Pound | G20: 0.3 | I20: 12 | J20: 0 | K20: 0 | M20: 0 | N20: 0 | O20: 12 | P20: 0 | Q20: 1200 | R20: 0
C21: Sulfur | D21: 12 | F21: Pound | G21: 0.25 | I21: 3 | J21: 0 | K21: 0 | M21: 0 | N21: 0 | O21: 3 | P21: 0 | Q21: 300 | R21: 0
B22: Herbicide
C23: Roundup | D23: 2 | F23: Pint | G23: 2.1875 | I23: 4.375 | J23: 0 | K23: 0 | M23: 0 | N23: 0 | O23: 4.375 | P23: 0 | Q23: 437.5 | R23: 0
C24: Herbicide Application | D24: 1 | F24: Acre | G24: 5.5 | I24: 5.5 | J24: 0 | K24: 0 | M24: 0 | N24: 0 | O24: 5.5 | P24: 0 | Q24: 550 | R24: 0
B25: Seed
C26: Alfalfa Seed | D26: 20 | F26: Acre | G26: 5.75 | I26: 115 | J26: 0 | K26: 0 | M26: 0 | N26: 0 | O26: 115 | P26: 0 | Q26: 11500 | R26: 0
D27: 0 | G27: 0 | I27: 0 | J27: 0 | K27: 0 | M27: 0 | N27: 0 | O27: 0 | P27: 0 | Q27: 0 | R27: 0
D28: 0 | G28: 0 | I28: 0 | J28: 0 | K28: 0 | M28: 0 | N28: 0 | O28: 0 | P28: 0 | Q28: 0 | R28: 0
D29: 0 | G29: 0 | I29: 0 | J29: =E29*H29 -> 0 | K29: 0 | M29: 0 | N29: =J29*L29 -> 0 | O29: 0 | P29: =+J29-N29 -> 0 | Q29: 0 | R29: =+J29*E$7 -> 0
B30: Irrigation
C31: Energy Cost | D31: 6 | F31: AcreInch | G31: 1.200036706 | I31: 7.200220239 | J31: =E31*H31 -> 0 | K31: 0 | M31: 0 | N31: =J31*L31 -> 0 | O31: 7.200220239 | P31: =+J31-N31 -> 0 | Q31: 720.0220239 | R31: =+J31*E$7 -> 0
C32: Irrigation Labor | D32: 0.512 | F32: Hour | G32: 10 | I32: 5.12 | J32: 0 | K32: 0 | M32: 0 | N32: 0 | O32: 5.12 | P32: 0 | Q32: 512 | R32: 0
B33: Machinery Labor
C34: Tractors/Self-Propelled | D34: 0.62 | F34: Hour | G34: 10 | I34: 6.2 | J34: =E34*H34 -> 0 | K34: 0 | M34: 0 | N34: =J34*L34 -> 0 | O34: 6.2 | P34: =+J34-N34 -> 0 | Q34: 620 | R34: =+J34*E$7 -> 0
C35: Other Labor | D35: 0.68 | F35: Hour | G35: 10 | I35: 6.8 | J35: =E35*H35 -> 0 | K35: 0 | M35: 0 | N35: =J35*L35 -> 0 | O35: 6.8 | P35: =+J35-N35 -> 0 | Q35: 680 | R35: =+J35*E$7 -> 0
B37: Diesel Fuel
C38: Pickup/General Use Equipment | D38: 1 | F38: Acre | G38: 0 | I38: 0 | J38: =E38*H38 -> 0 | K38: 0 | M38: 0 | N38: =J38*L38 -> 0 | O38: 0 | P38: =+J38-N38 -> 0 | Q38: 0 | R38: =+J38*E$7 -> 0
C39: Tractors/Self-Propelled | D39: 4.25 | F39: Gallon | G39: 2.1 | I39: 8.925 | J39: =E39*H39 -> 0 | K39: 0 | M39: 0 | N39: =J39*L39 -> 0 | O39: 8.925 | P39: =+J39-N39 -> 0 | Q39: 892.5 | R39: =+J39*E$7 -> 0
B41: Gasoline
C42: Pickup/General Use Equipment | D42: 1 | F42: Acre | G42: 9 | I42: 9 | J42: =E42*H42 -> 0 | K42: 0 | M42: 0 | N42: =J42*L42 -> 0 | O42: 9 | P42: =+J42-N42 -> 0 | Q42: 900 | R42: =+J42*E$7 -> 0
C43: Tractors/Self-Propelled | D43: 0 | F43: Gallon | G43: 2.25 | I43: 0 | J43: =E43*H43 -> 0 | K43: 0 | M43: 0 | N43: =J43*L43 -> 0 | O43: 0 | P43: =+J43-N43 -> 0 | Q43: 0 | R43: =+J43*E$7 -> 0
B45: Repairs & Maintenance
C46: Pickup/General Use Equipment | D46: 1 | F46: Acre | G46: 2.415 | I46: 2.415 | J46: =E46*H46 -> 0 | K46: 0 | M46: 0 | N46: =J46*L46 -> 0 | O46: 2.415 | P46: =+J46-N46 -> 0 | Q46: 241.5 | R46: =+J46*E$7 -> 0
C47: Irrigation Equipment | D47: 1 | F47: Acre | G47: 10.0002 | I47: 10.0002 | J47: 0 | K47: 0 | M47: 0 | N47: 0 | O47: 10.0002 | P47: 0 | Q47: 1000.02 | R47: 0
C48: Tractors/Self-Propelled | D48: 1 | F48: Acre | G48: 8.296157186 | I48: 8.296157186 | J48: 0 | K48: 0 | M48: 0 | N48: 0 | O48: 8.296157186 | P48: 0 | Q48: 829.6157186 | R48: 0
C49: Implements | D49: 1 | F49: Acre | G49: 11.23201003 | I49: 11.23201003 | J49: 0 | K49: 0 | M49: 0 | N49: 0 | O49: 11.23201003 | P49: 0 | Q49: 1123.201003 | R49: 0
I50: 0 | J50: 0 | K50: 0 | M50: 0 | N50: 0 | O50: 0 | P50: 0 | Q50: 0 | R50: 0
I51: 0 | J51: 0 | K51: 0 | M51: 0 | N51: 0 | O51: 0 | P51: 0 | Q51: 0 | R51: 0
B52: Interest on Credit Line | G52: 0.0575 | I52: 2.658024072 | J52: =+SUM(J17:J51)/2*H52 -> 0 | M52: 0 | N52: =+SUM(N17:N51)/2*L52 -> 0 | O52: 2.658024072 | P52: =+SUM(P17:P51)/2*L52 -> 0 | Q52: 265.8024072 | R52: =+J52*E$7 -> 0
A53: Total Variable Costs | I53: 261.3216115 | J53: =SUM(J18:J52) -> 0 | M53: 0 | N53: =SUM(N18:N52) -> 0 | O53: 261.3216115 | P53: =SUM(P18:P52) -> 0 | Q53: 26132.16115 | R53: =SUM(R18:R52) -> 0
A54: Planned Returns Above Variable Costs: | I54: -261.3216115 | J54: =+J13-J53 -> 0 | M54: 0 | N54: =+N13-N53 -> 0 | O54: -261.3216115 | P54: =+P13-P53 -> 0 | Q54: -26132.16115 | R54: =+R13-R53 -> 0
B55: Breakeven Price to Cover Variable Costs | G55: n/a | H55: =IF(E10=0,"n/a",(YVarExp-(YTotExp+YTotRet-J10))/E10) -> n/a
Q56: Enterprise | R56: Enterprise
A57: FIXED COSTS | D57: Quantity | E57: Quantity | F57: Units | G57: $/Unit | H57: $/Unit | I57: Total | J57: Total | K57: Share | L57: Share | M57: Landlord | N57: Landlord | O57: Tenant | P57: Tenant | Q57: Total | R57: Total
B58: Machinery Depreciation
C59: Pickup/General Use Equipment | D59: 1 | F59: Acre | G59: 3.352825 | I59: 3.352825 | J59: =E59*H59 -> 0 | K59: 0 | M59: 0 | N59: =J59*L59 -> 0 | O59: 3.352825 | P59: =+J59-N59 -> 0 | Q59: 335.2825 | R59: =+J59*E$7 -> 0
C60: Irrigation Equipment | D60: 1 | F60: Acre | G60: 6 | I60: 6 | J60: 0 | K60: 0 | M60: 0 | N60: =J60*L60 -> 0 | O60: 6 | P60: 0 | Q60: 600 | R60: 0
C61: Tractors/Self-Propelled | D61: 1 | F61: Acre | G61: 8.572695758 | I61: 8.572695758 | J61: 0 | K61: 0 | M61: 0 | N61: =J61*L61 -> 0 | O61: 8.572695758 | P61: 0 | Q61: 857.2695758 | R61: 0
C62: Implements | D62: 1 | F62: Acre | G62: 13.56089628 | I62: 13.56089628 | J62: 0 | K62: 0 | M62: 0 | N62: =J62*L62 -> 0 | O62: 13.56089628 | P62: 0 | Q62: 1356.089628 | R62: 0
B63: Equipment Investment
C64: Pickup/General Use Equipment | D64: 23.485875 | F64: Dollars | G64: 0.055 | I64: 1.291723125 | J64: =E64*H64 -> 0 | K64: 0 | M64: 0 | N64: =J64*L64 -> 0 | O64: 1.291723125 | P64: =+J64-N64 -> 0 | Q64: 129.1723125 | R64: =+J64*E$7 -> 0
C65: Irrigation Equipment | D65: 175 | F65: Dollars | G65: 0.055 | I65: 9.625 | J65: 0 | K65: 0 | M65: 0 | N65: =J65*L65 -> 0 | O65: 9.625 | P65: 0 | Q65: 962.5 | R65: 0
C66: Tractors/Self-Propelled | D66: 66.78406534 | F66: Dollars | G66: 0.055 | I66: 3.673123594 | J66: 0 | K66: 0 | M66: 0 | N66: =J66*L66 -> 0 | O66: 3.673123594 | P66: 0 | Q66: 367.3123594 | R66: 0
C67: Implements | D67: 58.01050076 | F67: Dollars | G67: 0.055 | I67: 3.190577542 | J67: 0 | K67: 0 | M67: 0 | N67: =J67*L67 -> 0 | O67: 3.190577542 | P67: 0 | Q67: 319.0577542 | R67: 0
B68: Salaried Labor | D68: 1 | F68: Acre | G68: 0 | I68: 0 | J68: 0 | K68: 0 | M68: 0 | N68: =J68*L68 -> 0 | O68: 0 | P68: =+J68-N68 -> 0 | Q68: 0 | R68: =+J68*E$7 -> 0
B69: Management Fee, Owner/Operator Labor | D69: 1 | F69: Acre | G69: 0 | I69: 0 | J69: 0 | K69: 0 | M69: 0 | N69: 0 | O69: 0 | P69: 0 | Q69: 0 | R69: 0
B70: Allocated Establishment Cost | D70: 1 | F70: Acre | G70: 0 | I70: 0 | J70: 0 | K70: 0 | M70: 0 | N70: 0 | O70: 0 | P70: 0 | Q70: 0 | R70: 0
B71: Cash Rent - Irrigated Alfalfa | D71: 1 | F71: Acre | G71: 75 | I71: 75 | J71: 0 | K71: 0 | M71: 0 | N71: 0 | O71: 75 | P71: 0 | Q71: 7500 | R71: 0
B72: Property Taxes | D72: 1 | F72: Acre | G72: 0 | I72: 0 | J72: 0 | K72: 0 | M72: 0 | N72: 0 | O72: 0 | P72: 0 | Q72: 0 | R72: 0
B73: Whole Farm Insurance | D73: 1 | F73: Acre | G73: 0 | I73: 0 | J73: 0 | K73: 0 | M73: 0 | N73: 0 | O73: 0 | P73: 0 | Q73: 0 | R73: 0
D74: 1 | G74: 0 | I74: 0 | J74: 0 | K74: 0 | M74: 0 | N74: 0 | O74: 0 | P74: 0 | Q74: 0 | R74: 0
D75: 1 | G75: 0 | I75: 0 | J75: =E75*H75 -> 0 | K75: 0 | M75: 0 | N75: 0 | O75: 0 | P75: 0 | Q75: 0 | R75: 0
A76: Total Fixed Costs | I76: 124.2668413 | J76: =+SUM(J59:J75) -> 0 | M76: 0 | N76: =+SUM(N59:N75) -> 0 | O76: 124.2668413 | P76: =+SUM(P59:P75) -> 0 | Q76: 12426.68413 | R76: =+SUM(R59:R75) -> 0
A77: Total Specified Costs | I77: 385.5884528 | J77: =+J53+J76 -> 0 | M77: 0 | N77: =+N53+N76 -> 0 | O77: 385.5884528 | P77: =+P53+P76 -> 0 | Q77: 38558.84528 | R77: =+R53+R76 -> 0
A79: Returns Above Specified Costs | I79: -385.5884528 | J79: =+J13-J77 -> 0 | M79: 0 | N79: =+N13-N77 -> 0 | O79: -385.5884528 | P79: =+P13-P77 -> 0 | Q79: -38558.84528 | R79: =+R13-R77 -> 0
A81: Breakeven Price to Cover Total Costs | G81: n/a | H81: =IF(E10=0,"n/a",(YTotExp-(YTotExp+YTotRet-J10))/E10) -> n/a
D83: Example Breakeven Prices
B84: Example | C84: Example | D84: To Cover | G84: To Cover
B85: Yield | C85: Yield | D85: Variable | G85: Total
B86: Percent | D86: Costs | G86: Costs
B87: 0.75 | C87: 0 | D87: 0 | G87: 0
B88: 0.9 | C88: 0 | D88: 0 | G88: 0
B89: 1 | C89: 0 | D89: 0 | G89: 0
B90: 1.1 | C90: 0 | D90: 0 | G90: 0
B91: 1.25 | C91: 0 | D91: 0 | G91: 0
D93: Your Breakeven Prices
B94: Your | C94: Your | E94: To Cover | H94: To Cover
B95: Yield | C95: Yield | E95: Variable | H95: Total
B96: Percent | E96: Costs | H96: Costs
B97: 0.75 | C97: =E10*YPER1 -> 0 | E97: =IF($E$10=0,0,(YVarExp-(YTotExp+YTotRet-J10))/($E$10*YPER1)) -> 0 | H97: =IF($E$10=0,0,(YTotExp-(YTotExp+YTotRet-J10))/($E$10*YPER1)) -> 0
B98: 0.9 | C98: =E10*YPER2 -> 0 | E98: =IF($E$10=0,0,(YVarExp-(YTotExp+YTotRet-J10))/($E$10*YPER2)) -> 0 | H98: =IF($E$10=0,0,(YTotExp-(YTotExp+YTotRet-J10))/($E$10*YPER2)) -> 0
B99: 1 | C99: =+E10 -> 0 | E99: =IF($E$10=0,0,(YVarExp-(YTotExp+YTotRet-J10))/($E$10*YPER3)) -> 0 | H99: =IF($E$10=0,0,(YTotExp-(YTotExp+YTotRet-J10))/($E$10*YPER3)) -> 0
B100: 1.1 | C100: =E10*YPER4 -> 0 | E100: =IF($E$10=0,0,(YVarExp-(YTotExp+YTotRet-J10))/($E$10*YPER4)) -> 0 | H100: =IF($E$10=0,0,(YTotExp-(YTotExp+YTotRet-J10))/($E$10*YPER4)) -> 0
B101: 1.25 | C101: =E10*YPER5 -> 0 | E101: =IF($E$10=0,0,(YVarExp-(YTotExp+YTotRet-J10))/($E$10*YPER5)) -> 0 | H101: =IF($E$10=0,0,(YTotExp-(YTotExp+YTotRet-J10))/($E$10*YPER5)) -> 0
A103: Developed by Extension Economists, Texas A&M AgriLife Extension Service, budgets@tamu.edu.
A105: Information presented is prepared solely as a general guide and not intended to recognize or predict the costs and returns from any one operation. Brand names are mentioned only as examples and imply no endorsement.

Sheet AlfalfaHayIrrigated
A1: Projections for Planning Purposes Only -- Not to be Used without Updating
A2: 2018 Estimated Costs and Returns per Acre
A3: Irrigated Alfalfa Hay
A4: Enter your name for this budget in the cell above.
A5: Enter Your Values in the cells highlighed in MAROON.
E6: Your Acres | R6: Your
C7: Crop Acres | D7: 100 | L7: Your | Q7: Enterprise | R7: Enterprise
E8: Your | H8: Your | I8: Cash | J8: Your | K8: Landlord | L8: Landlord | N8: Your | P8: Your | Q8: Total | R8: Total
A9: REVENUE | D9: Quantity | E9: Quantity | F9: Units | G9: $/Unit | H9: $/Unit | I9: Total | J9: Total | K9: Share | L9: Share | M9: Landlord | N9: Landlord | O9: Tenant | P9: Tenant | Q9: (100 acres) | R9: ="(" & E7 & " acres)" -> ( acres)
B10: Alfalfa Hay | D10: 6.5 | F10: Ton | G10: 200 | I10: 1300 | J10: =E10*H10 -> 0 | K10: 0 | M10: 0 | N10: =J10*L10 -> 0 | O10: 1300 | P10: =+J10-N10 -> 0 | Q10: 130000 | R10: =+J10*E$7 -> 0
D11: 0 | G11: 0 | I11: 0 | J11: 0 | K11: 0 | M11: 0 | N11: 0 | O11: 0 | P11: =+J11-N11 -> 0 | Q11: 0 | R11: 0
D12: 0 | G12: 0 | I12: 0 | J12: 0 | K12: 0 | M12: 0 | N12: 0 | O12: 0 | P12: 0 | Q12: 0 | R12: 0
A13: Total Revenue | I13: 1300 | J13: =SUM(J10:J12) -> 0 | M13: 0 | N13: =SUM(N10:N12) -> 0 | O13: 1300 | P13: =SUM(P10:P12) -> 0 | Q13: 130000 | R13: =SUM(R10:R12) -> 0
Q14: Enterprise | R14: Enterprise
A15: VARIABLE COSTS | D15: Quantity | E15: Quantity | F15: Units | G15: $/Unit | H15: $/Unit | I15: Total | J15: Total | K15: Share | L15: Share | M15: Landlord | N15: Landlord | O15: Tenant | P15: Tenant | Q15: Total | R15: Total
A16: Production Costs
B17: Custom
C18: Herbicide Application | D18: 2 | F18: Acre | G18: 5.5 | I18: 11 | J18: =E18*H18 -> 0 | K18: 0 | M18: 0 | N18: =J18*L18 -> 0 | O18: 11 | P18: =+J18-N18 -> 0 | Q18: 1100 | R18: =+J18*E$7 -> 0
C19: Insecticide Application | D19: 3 | F19: Acre | G19: 5.5 | I19: 16.5 | J19: 0 | K19: 0 | M19: 0 | N19: 0 | O19: 16.5 | P19: 0 | Q19: 1650 | R19: 0
C20: Fertilizer Application | D20: 1 | F20: Acre | G20: 5.5 | I20: 5.5 | J20: 0 | K20: 0 | M20: 0 | N20: 0 | O20: 5.5 | P20: 0 | Q20: 550 | R20: 0
C21: Custom Baling - Alfalfa | D21: 6.5 | F21: Ton | G21: 25 | I21: 162.5 | J21: 0 | K21: 0 | M21: 0 | N21: 0 | O21: 162.5 | P21: 0 | Q21: 16250 | R21: 0
B22: Fertilizer
C23: Fertilizer (N) | D23: 30 | F23: Pound | G23: 0.41 | I23: 12.3 | J23: 0 | K23: 0 | M23: 0 | N23: 0 | O23: 12.3 | P23: 0 | Q23: 1230 | R23: 0
C24: Fertilizer (P) | D24: 50 | F24: Pound | G24: 0.34 | I24: 17 | J24: 0 | K24: 0 | M24: 0 | N24: 0 | O24: 17 | P24: 0 | Q24: 1700 | R24: 0
C25: Sulfur | D25: 12 | F25: Pound | G25: 0.25 | I25: 3 | J25: 0 | K25: 0 | M25: 0 | N25: 0 | O25: 3 | P25: 0 | Q25: 300 | R25: 0
B26: Herbicide
C27: Valpar | D27: 2 | F27: Pint | G27: 11.875 | I27: 23.75 | J27: 0 | K27: 0 | M27: 0 | N27: 0 | O27: 23.75 | P27: 0 | Q27: 2375 | R27: 0
C28: Butyrac | D28: 2 | F28: Pint | G28: 3.75 | I28: 7.5 | J28: 0 | K28: 0 | M28: 0 | N28: 0 | O28: 7.5 | P28: 0 | Q28: 750 | R28: 0
B29: Insecticide
C30: Insecticide - Alfalfa 1 | D30: 2 | F30: Pint | G30: 4.12 | I30: 8.24 | J30: 0 | K30: 0 | M30: 0 | N30: 0 | O30: 8.24 | P30: 0 | Q30: 824 | R30: 0
C31: Insecticide - Alfalfa 2 Baythroid | D31: 3 | F31: Fluid Ounce | G31: 1.0546875 | I31: 3.1640625 | J31: 0 | K31: 0 | M31: 0 | N31: 0 | O31: 3.1640625 | P31: 0 | Q31: 316.40625 | R31: 0
D32: 0 | G32: 0 | I32: 0 | J32: 0 | K32: 0 | M32: 0 | N32: 0 | O32: 0 | P32: 0 | Q32: 0 | R32: 0
D33: 0 | G33: 0 | I33: 0 | J33: 0 | K33: 0 | M33: 0 | N33: 0 | O33: 0 | P33: 0 | Q33: 0 | R33: 0
D34: 0 | G34: 0 | I34: 0 | J34: =E34*H34 -> 0 | K34: 0 | M34: 0 | N34: =J34*L34 -> 0 | O34: 0 | P34: =+J34-N34 -> 0 | Q34: 0 | R34: =+J34*E$7 -> 0
B35: Irrigation
C36: Energy Cost | D36: 10 | F36: AcreInch | G36: 1.200036706 | I36: 12.00036706 | J36: =E36*H36 -> 0 | K36: 0 | M36: 0 | N36: =J36*L36 -> 0 | O36: 12.00036706 | P36: =+J36-N36 -> 0 | Q36: 1200.036706 | R36: =+J36*E$7 -> 0
C37: Irrigation Labor | D37: 0.96 | F37: Hour | G37: 10 | I37: 9.6 | J37: 0 | K37: 0 | M37: 0 | N37: 0 | O37: 9.6 | P37: 0 | Q37: 960 | R37: 0
B38: Machinery Labor
C39: Tractors/Self-Propelled | D39: 0 | F39: Hour | G39: 10 | I39: 0 | J39: =E39*H39 -> 0 | K39: 0 | M39: 0 | N39: =J39*L39 -> 0 | O39: 0 | P39: =+J39-N39 -> 0 | Q39: 0 | R39: =+J39*E$7 -> 0
C40: Other Labor | D40: 0 | F40: Hour | G40: 10 | I40: 0 | J40: =E40*H40 -> 0 | K40: 0 | M40: 0 | N40: =J40*L40 -> 0 | O40: 0 | P40: =+J40-N40 -> 0 | Q40: 0 | R40: =+J40*E$7 -> 0
B42: Diesel Fuel
C43: Pickup/General Use Equipment | D43: 1 | F43: Acre | G43: 0 | I43: 0 | J43: =E43*H43 -> 0 | K43: 0 | M43: 0 | N43: =J43*L43 -> 0 | O43: 0 | P43: =+J43-N43 -> 0 | Q43: 0 | R43: =+J43*E$7 -> 0
C44: Tractors/Self-Propelled | D44: 0 | F44: Gallon | G44: 2.1 | I44: 0 | J44: =E44*H44 -> 0 | K44: 0 | M44: 0 | N44: =J44*L44 -> 0 | O44: 0 | P44: =+J44-N44 -> 0 | Q44: 0 | R44: =+J44*E$7 -> 0
B46: Gasoline
C47: Pickup/General Use Equipment | D47: 1 | F47: Acre | G47: 6.75 | I47: 6.75 | J47: =E47*H47 -> 0 | K47: 0 | M47: 0 | N47: =J47*L47 -> 0 | O47: 6.75 | P47: =+J47-N47 -> 0 | Q47: 675 | R47: =+J47*E$7 -> 0
C48: Tractors/Self-Propelled | D48: 0 | F48: Gallon | G48: 2.25 | I48: 0 | J48: =E48*H48 -> 0 | K48: 0 | M48: 0 | N48: =J48*L48 -> 0 | O48: 0 | P48: =+J48-N48 -> 0 | Q48: 0 | R48: =+J48*E$7 -> 0
B50: Repairs & Maintenance
C51: Pickup/General Use Equipment | D51: 1 | F51: Acre | G51: 1.81125 | I51: 1.81125 | J51: =E51*H51 -> 0 | K51: 0 | M51: 0 | N51: =J51*L51 -> 0 | O51: 1.81125 | P51: =+J51-N51 -> 0 | Q51: 181.125 | R51: =+J51*E$7 -> 0
C52: Irrigation Equipment | D52: 1 | F52: Acre | G52: 20 | I52: 20 | J52: 0 | K52: 0 | M52: 0 | N52: 0 | O52: 20 | P52: 0 | Q52: 2000 | R52: 0
C53: Tractors/Self-Propelled | D53: 1 | F53: Acre | G53: 0 | I53: 0 | J53: 0 | K53: 0 | M53: 0 | N53: 0 | O53: 0 | P53: 0 | Q53: 0 | R53: 0
C54: Implements | D54: 1 | F54: Acre | G54: 0 | I54: 0 | J54: 0 | K54: 0 | M54: 0 | N54: 0 | O54: 0 | P54: 0 | Q54: 0 | R54: 0
I55: 0 | J55: 0 | K55: 0 | M55: 0 | N55: 0 | O55: 0 | P55: 0 | Q55: 0 | R55: 0
I56: 0 | J56: 0 | K56: 0 | M56: 0 | N56: 0 | O56: 0 | P56: 0 | Q56: 0 | R56: 0
B57: Interest on Credit Line | G57: 0.0575 | I57: 5.347584103 | J57: =+SUM(J17:J56)/2*H57 -> 0 | M57: 0 | N57: =+SUM(N17:N56)/2*L57 -> 0 | O57: 5.347584103 | P57: =+SUM(P17:P56)/2*L57 -> 0 | Q57: 534.7584103 | R57: =+J57*E$7 -> 0
A58: Total Variable Costs | I58: 325.9632637 | J58: =SUM(J18:J57) -> 0 | M58: 0 | N58: =SUM(N18:N57) -> 0 | O58: 325.9632637 | P58: =SUM(P18:P57) -> 0 | Q58: 32596.32637 | R58: =SUM(R18:R57) -> 0
A59: Planned Returns Above Variable Costs: | I59: 974.0367363 | J59: =+J13-J58 -> 0 | M59: 0 | N59: =+N13-N58 -> 0 | O59: 974.0367363 | P59: =+P13-P58 -> 0 | Q59: 97403.67363 | R59: =+R13-R58 -> 0
B60: Breakeven Price to Cover Variable Costs | G60: 50.14819441 | H60: =IF(E10=0,"n/a",(YVarExp-(YTotExp+YTotRet-J10))/E10) -> n/a | I60: Ton
Q61: Enterprise | R61: Enterprise
A62: FIXED COSTS | D62: Quantity | E62: Quantity | F62: Units | G62: $/Unit | H62: $/Unit | I62: Total | J62: Total | K62: Share | L62: Share | M62: Landlord | N62: Landlord | O62: Tenant | P62: Tenant | Q62: Total | R62: Total
B63: Machinery Depreciation
C64: Pickup/General Use Equipment | D64: 1 | F64: Acre | G64: 2.51461875 | I64: 2.51461875 | J64: =E64*H64 -> 0 | K64: 0 | M64: 0 | N64: =J64*L64 -> 0 | O64: 2.51461875 | P64: =+J64-N64 -> 0 | Q64: 251.461875 | R64: =+J64*E$7 -> 0
C65: Irrigation Equipment | D65: 1 | F65: Acre | G65: 12 | I65: 12 | J65: 0 | K65: 0 | M65: 0 | N65: =J65*L65 -> 0 | O65: 12 | P65: 0 | Q65: 1200 | R65: 0
B66: Equipment Investment
C67: Pickup/General Use Equipment | D67: 17.61440625 | F67: Dollars | G67: 0.055 | I67: 0.9687923437 | J67: =E67*H67 -> 0 | K67: 0 | M67: 0 | N67: =J67*L67 -> 0 | O67: 0.9687923437 | P67: =+J67-N67 -> 0 | Q67: 96.87923437 | R67: =+J67*E$7 -> 0
C68: Irrigation Equipment | D68: 350 | F68: Dollars | G68: 0.055 | I68: 19.25 | J68: 0 | K68: 0 | M68: 0 | N68: =J68*L68 -> 0 | O68: 19.25 | P68: 0 | Q68: 1925 | R68: 0
B69: Salaried Labor | D69: 1 | F69: Acre | G69: 0 | I69: 0 | J69: 0 | K69: 0 | M69: 0 | N69: =J69*L69 -> 0 | O69: 0 | P69: =+J69-N69 -> 0 | Q69: 0 | R69: =+J69*E$7 -> 0
B70: Management Fee, Owner/Operator Labor | D70: 1 | F70: Acre | G70: 0 | I70: 0 | J70: 0 | K70: 0 | M70: 0 | N70: 0 | O70: 0 | P70: 0 | Q70: 0 | R70: 0
B71: Allocated Establishment Cost | D71: 1 | F71: Acre | G71: 78 | I71: 78 | J71: 0 | K71: 0 | M71: 0 | N71: 0 | O71: 78 | P71: 0 | Q71: 7800 | R71: 0
B72: Cash Rent - Irrigated Alfalfa | D72: 1 | F72: Acre | G72: 75 | I72: 75 | J72: 0 | K72: 0 | M72: 0 | N72: 0 | O72: 75 | P72: 0 | Q72: 7500 | R72: 0
B73: Property Taxes | D73: 1 | F73: Acre | G73: 0 | I73: 0 | J73: 0 | K73: 0 | M73: 0 | N73: 0 | O73: 0 | P73: 0 | Q73: 0 | R73: 0
B74: Whole Farm Insurance | D74: 1 | F74: Acre | G74: 0 | I74: 0 | J74: 0 | K74: 0 | M74: 0 | N74: 0 | O74: 0 | P74: 0 | Q74: 0 | R74: 0
D75: 1 | G75: 0 | I75: 0 | J75: 0 | K75: 0 | M75: 0 | N75: 0 | O75: 0 | P75: 0 | Q75: 0 | R75: 0
D76: 1 | G76: 0 | I76: 0 | J76: =E76*H76 -> 0 | K76: 0 | M76: 0 | N76: 0 | O76: 0 | P76: 0 | Q76: 0 | R76: 0
A77: Total Fixed Costs | I77: 187.7334111 | J77: =+SUM(J64:J76) -> 0 | M77: 0 | N77: =+SUM(N64:N76) -> 0 | O77: 187.7334111 | P77: =+SUM(P64:P76) -> 0 | Q77: 18773.34111 | R77: =+SUM(R64:R76) -> 0
A78: Total Specified Costs | I78: 513.6966748 | J78: =+J58+J77 -> 0 | M78: 0 | N78: =+N58+N77 -> 0 | O78: 513.6966748 | P78: =+P58+P77 -> 0 | Q78: 51369.66748 | R78: =+R58+R77 -> 0
A80: Returns Above Specified Costs | I80: 786.3033252 | J80: =+J13-J78 -> 0 | M80: 0 | N80: =+N13-N78 -> 0 | O80: 786.3033252 | P80: =+P13-P78 -> 0 | Q80: 78630.33252 | R80: =+R13-R78 -> 0
A82: Breakeven Price to Cover Total Costs | G82: 79.03025766 | H82: =IF(E10=0,"n/a",(YTotExp-(YTotExp+YTotRet-J10))/E10) -> n/a | I82: Ton
D84: Example Breakeven Prices
B85: Example | C85: Example | D85: To Cover | G85: To Cover
B86: Yield | C86: Yield | D86: Variable | G86: Total
B87: Percent | C87: Ton | D87: Costs | G87: Costs
B88: 0.75 | C88: 4.875 | D88: 66.86425921 | G88: 105.3736769
B89: 0.9 | C89: 5.85 | D89: 55.72021601 | G89: 87.8113974
B90: 1 | C90: 6.5 | D90: 50.14819441 | G90: 79.03025766
B91: 1.1 | C91: 7.15 | D91: 45.58926765 | G91: 71.84568878
B92: 1.25 | C92: 8.125 | D92: 40.11855553 | G92: 63.22420612
D94: Your Breakeven Prices
B95: Your | C95: Your | E95: To Cover | H95: To Cover
B96: Yield | C96: Yield | E96: Variable | H96: Total
B97: Percent | C97: Ton | E97: Costs | H97: Costs
B98: 0.75 | C98: =E10*YPER1 -> 0 | E98: =IF($E$10=0,0,(YVarExp-(YTotExp+YTotRet-J10))/($E$10*YPER1)) -> 0 | H98: =IF($E$10=0,0,(YTotExp-(YTotExp+YTotRet-J10))/($E$10*YPER1)) -> 0
B99: 0.9 | C99: =E10*YPER2 -> 0 | E99: =IF($E$10=0,0,(YVarExp-(YTotExp+YTotRet-J10))/($E$10*YPER2)) -> 0 | H99: =IF($E$10=0,0,(YTotExp-(YTotExp+YTotRet-J10))/($E$10*YPER2)) -> 0
B100: 1 | C100: =+E10 -> 0 | E100: =IF($E$10=0,0,(YVarExp-(YTotExp+YTotRet-J10))/($E$10*YPER3)) -> 0 | H100: =IF($E$10=0,0,(YTotExp-(YTotExp+YTotRet-J10))/($E$10*YPER3)) -> 0
B101: 1.1 | C101: =E10*YPER4 -> 0 | E101: =IF($E$10=0,0,(YVarExp-(YTotExp+YTotRet-J10))/($E$10*YPER4)) -> 0 | H101: =IF($E$10=0,0,(YTotExp-(YTotExp+YTotRet-J10))/($E$10*YPER4)) -> 0
B102: 1.25 | C102: =E10*YPER5 -> 0 | E102: =IF($E$10=0,0,(YVarExp-(YTotExp+YTotRet-J10))/($E$10*YPER5)) -> 0 | H102: =IF($E$10=0,0,(YTotExp-(YTotExp+YTotRet-J10))/($E$10*YPER5)) -> 0
A104: Developed by Extension Economists, Texas A&M AgriLife Extension Service, budgets@tamu.edu.
A106: Information presented is prepared solely as a general guide and not intended to recognize or predict the costs and returns from any one operation. Brand names are mentioned only as examples and imply no endorsement.

Sheet CottonDryland2X1
A1: Projections for Planning Purposes Only -- Not to be Used without Updating
A2: 2018 Estimated Costs and Returns per Acre
A3: Dryland Cotton (2X1 Planting Pattern)
A4: Enter your name for this budget in the cell above.
A5: Enter Your Values in the cells highlighed in MAROON.
E6: Your Acres | R6: Your
C7: Crop Acres | D7: 640 | L7: Your | Q7: Enterprise | R7: Enterprise
E8: Your | H8: Your | I8: Cash | J8: Your | K8: Landlord | L8: Landlord | N8: Your | P8: Your | Q8: Total | R8: Total
A9: REVENUE | D9: Quantity | E9: Quantity | F9: Units | G9: $/Unit | H9: $/Unit | I9: Total | J9: Total | K9: Share | L9: Share | M9: Landlord | N9: Landlord | O9: Tenant | P9: Tenant | Q9: (640 acres) | R9: ="(" & E7 & " acres)" -> ( acres)
B10: Cotton Lint | D10: 320 | F10: Pound | G10: 0.56 | I10: 179.2 | J10: =E10*H10 -> 0 | K10: 0 | M10: 0 | N10: =J10*L10 -> 0 | O10: 179.2 | P10: =+J10-N10 -> 0 | Q10: 114688 | R10: =+J10*E$7 -> 0
B11: Cottonseed | D11: 0.264 | F11: Ton | G11: 200 | I11: 52.8 | J11: 0 | K11: 0 | M11: 0 | N11: 0 | O11: 52.8 | P11: =+J11-N11 -> 0 | Q11: 33792 | R11: 0
D12: 0 | G12: 0 | I12: 0 | J12: 0 | K12: 0 | M12: 0 | N12: 0 | O12: 0 | P12: 0 | Q12: 0 | R12: 0
D13: 0 | G13: 0 | I13: 0 | J13: 0 | K13: 0 | M13: 0 | N13: 0 | O13: 0 | P13: 0 | Q13: 0 | R13: 0
A14: Total Revenue | I14: 232 | J14: =SUM(J10:J13) -> 0 | M14: 0 | N14: =SUM(N10:N13) -> 0 | O14: 232 | P14: =SUM(P10:P13) -> 0 | Q14: 148480 | R14: =SUM(R10:R13) -> 0
Q15: Enterprise | R15: Enterprise
A16: VARIABLE COSTS | D16: Quantity | E16: Quantity | F16: Units | G16: $/Unit | H16: $/Unit | I16: Total | J16: Total | K16: Share | L16: Share | M16: Landlord | N16: Landlord | O16: Tenant | P16: Tenant | Q16: Total | R16: Total
A17: Production Costs
B18: Custom
C19: Insecticide Application | D19: 1 | F19: Acre | G19: 5.5 | I19: 5.5 | J19: =E19*H19 -> 0 | K19: 0 | M19: 0 | N19: =J19*L19 -> 0 | O19: 5.5 | P19: =+J19-N19 -> 0 | Q19: 3520 | R19: =+J19*E$7 -> 0
C20: Gin, Bag, Ties | D20: 320 | F20: Pound | G20: 0.12 | I20: 38.4 | J20: 0 | K20: 0 | M20: 0 | N20: 0 | O20: 38.4 | P20: 0 | Q20: 24576 | R20: 0
C21: Custom Stripping | D21: 320 | F21: Pound | G21: 0.1 | I21: 32 | J21: 0 | K21: 0 | M21: 0 | N21: 0 | O21: 32 | P21: 0 | Q21: 20480 | R21: 0
B22: Fertilizer
C23: Fertilizer (N) | D23: 57 | F23: Pound | G23: 0.41 | I23: 23.37 | J23: 0 | K23: 0 | M23: 0 | N23: 0 | O23: 23.37 | P23: 0 | Q23: 14956.8 | R23: 0
B24: Herbicide
C25: Roundup | D25: 2 | F25: Pint | G25: 2.1875 | I25: 4.375 | J25: 0 | K25: 0 | M25: 0 | N25: 0 | O25: 4.375 | P25: 0 | Q25: 2800 | R25: 0
B26: Insecticide
C27: Insecticide - Cotton | D27: 0.5 | F27: Pound | G27: 7.2 | I27: 3.6 | J27: 0 | K27: 0 | M27: 0 | N27: 0 | O27: 3.6 | P27: 0 | Q27: 2304 | R27: 0
C28: Bollweevil Eradication | D28: 1 | F28: Acre | G28: 2.5 | I28: 2.5 | J28: 0 | K28: 0 | M28: 0 | N28: 0 | O28: 2.5 | P28: 0 | Q28: 1600 | R28: 0
B29: Miscellaneous
C30: Insurance - Dryland Cotton | D30: 1 | F30: Acre | G30: 15 | I30: 15 | J30: 0 | K30: 0 | M30: 0 | N30: 0 | O30: 15 | P30: 0 | Q30: 9600 | R30: 0
B31: Seed
C32: Cotton Seed | D32: 5 | F32: Pound | G32: 7.7 | I32: 38.5 | J32: 0 | K32: 0 | M32: 0 | N32: 0 | O32: 38.5 | P32: 0 | Q32: 24640 | R32: 0
D33: 0 | G33: 0 | I33: 0 | J33: 0 | K33: 0 | M33: 0 | N33: 0 | O33: 0 | P33: 0 | Q33: 0 | R33: 0
D34: 0 | G34: 0 | I34: 0 | J34: 0 | K34: 0 | M34: 0 | N34: 0 | O34: 0 | P34: 0 | Q34: 0 | R34: 0
D35: 0 | G35: 0 | I35: 0 | J35: =E35*H35 -> 0 | K35: 0 | M35: 0 | N35: =J35*L35 -> 0 | O35: 0 | P35: =+J35-N35 -> 0 | Q35: 0 | R35: =+J35*E$7 -> 0
B36: Machinery Labor
C37: Tractors/Self-Propelled | D37: 1.07 | F37: Hour | G37: 10 | I37: 10.7 | J37: =E37*H37 -> 0 | K37: 0 | M37: 0 | N37: =J37*L37 -> 0 | O37: 10.7 | P37: =+J37-N37 -> 0 | Q37: 6848 | R37: =+J37*E$7 -> 0
C38: Other Labor | D38: 1.28 | F38: Hour | G38: 10 | I38: 12.8 | J38: =E38*H38 -> 0 | K38: 0 | M38: 0 | N38: =J38*L38 -> 0 | O38: 12.8 | P38: =+J38-N38 -> 0 | Q38: 8192 | R38: =+J38*E$7 -> 0
B40: Diesel Fuel
C41: Pickup/General Use Equipment | D41: 1 | F41: Acre | G41: 0 | I41: 0 | J41: =E41*H41 -> 0 | K41: 0 | M41: 0 | N41: =J41*L41 -> 0 | O41: 0 | P41: =+J41-N41 -> 0 | Q41: 0 | R41: =+J41*E$7 -> 0
C42: Tractors/Self-Propelled | D42: 7.29 | F42: Gallon | G42: 2.1 | I42: 15.309 | J42: =E42*H42 -> 0 | K42: 0 | M42: 0 | N42: =J42*L42 -> 0 | O42: 15.309 | P42: =+J42-N42 -> 0 | Q42: 9797.76 | R42: =+J42*E$7 -> 0
B44: Gasoline
C45: Pickup/General Use Equipment | D45: 1 | F45: Acre | G45: 1.0546875 | I45: 1.0546875 | J45: =E45*H45 -> 0 | K45: 0 | M45: 0 | N45: =J45*L45 -> 0 | O45: 1.0546875 | P45: =+J45-N45 -> 0 | Q45: 675 | R45: =+J45*E$7 -> 0
C46: Tractors/Self-Propelled | D46: 0 | F46: Gallon | G46: 2.25 | I46: 0 | J46: =E46*H46 -> 0 | K46: 0 | M46: 0 | N46: =J46*L46 -> 0 | O46: 0 | P46: =+J46-N46 -> 0 | Q46: 0 | R46: =+J46*E$7 -> 0
B48: Repairs & Maintenance
C49: Pickup/General Use Equipment | D49: 1 | F49: Acre | G49: 0.2830078125 | I49: 0.2830078125 | J49: =E49*H49 -> 0 | K49: 0 | M49: 0 | N49: =J49*L49 -> 0 | O49: 0.2830078125 | P49: =+J49-N49 -> 0 | Q49: 181.125 | R49: =+J49*E$7 -> 0
C50: Irrigation Equipment | D50: 1 | F50: Acre | G50: 0 | I50: 0 | J50: 0 | K50: 0 | M50: 0 | N50: 0 | O50: 0 | P50: 0 | Q50: 0 | R50: 0
C51: Tractors/Self-Propelled | D51: 1 | F51: Acre | G51: 14.22883469 | I51: 14.22883469 | J51: 0 | K51: 0 | M51: 0 | N51: 0 | O51: 14.22883469 | P51: 0 | Q51: 9106.454199 | R51: 0
C52: Implements | D52: 1 | F52: Acre | G52: 17.45970342 | I52: 17.45970342 | J52: 0 | K52: 0 | M52: 0 | N52: 0 | O52: 17.45970342 | P52: 0 | Q52: 11174.21019 | R52: 0
I53: 0 | J53: 0 | K53: 0 | M53: 0 | N53: 0 | O53: 0 | P53: 0 | Q53: 0 | R53: 0
I54: 0 | J54: 0 | K54: 0 | M54: 0 | N54: 0 | O54: 0 | P54: 0 | Q54: 0 | R54: 0
B55: Interest on Credit Line | G55: 0.0575 | I55: 5.085403028 | J55: =+SUM(J18:J54)/2*H55 -> 0 | M55: 0 | N55: =+SUM(N18:N54)/2*L55 -> 0 | O55: 5.085403028 | P55: =+SUM(P18:P54)/2*L55 -> 0 | Q55: 3254.657938 | R55: =+J55*E$7 -> 0
A56: Total Variable Costs | I56: 240.1656364 | J56: =SUM(J19:J55) -> 0 | M56: 0 | N56: =SUM(N19:N55) -> 0 | O56: 240.1656364 | P56: =SUM(P19:P55) -> 0 | Q56: 153706.0073 | R56: =SUM(R19:R55) -> 0
A57: Planned Returns Above Variable Costs: | I57: -8.165636448 | J57: =+J14-J56 -> 0 | M57: 0 | N57: =+N14-N56 -> 0 | O57: -8.165636448 | P57: =+P14-P56 -> 0 | Q57: -5226.007327 | R57: =+R14-R56 -> 0
B58: Breakeven Price to Cover Variable Costs | G58: 0.5855176139 | H58: =IF(E10=0,"n/a",(YVarExp-(YTotExp+YTotRet-J10))/E10) -> n/a | I58: Pound
Q59: Enterprise | R59: Enterprise
A60: FIXED COSTS | D60: Quantity | E60: Quantity | F60: Units | G60: $/Unit | H60: $/Unit | I60: Total | J60: Total | K60: Share | L60: Share | M60: Landlord | N60: Landlord | O60: Tenant | P60: Tenant | Q60: Total | R60: Total
B61: Machinery Depreciation
C62: Pickup/General Use Equipment | D62: 1 | F62: Acre | G62: 0.3929091797 | I62: 0.3929091797 | J62: =E62*H62 -> 0 | K62: 0 | M62: 0 | N62: =J62*L62 -> 0 | O62: 0.3929091797 | P62: =+J62-N62 -> 0 | Q62: 251.461875 | R62: =+J62*E$7 -> 0
C63: Tractors/Self-Propelled | D63: 1 | F63: Acre | G63: 14.70312918 | I63: 14.70312918 | J63: 0 | K63: 0 | M63: 0 | N63: =J63*L63 -> 0 | O63: 14.70312918 | P63: 0 | Q63: 9410.002672 | R63: 0
C64: Implements | D64: 1 | F64: Acre | G64: 21.7159824 | I64: 21.7159824 | J64: 0 | K64: 0 | M64: 0 | N64: =J64*L64 -> 0 | O64: 21.7159824 | P64: 0 | Q64: 13898.22874 | R64: 0
B65: Equipment Investment
C66: Pickup/General Use Equipment | D66: 2.752250977 | F66: Dollars | G66: 0.055 | I66: 0.1513738037 | J66: =E66*H66 -> 0 | K66: 0 | M66: 0 | N66: =J66*L66 -> 0 | O66: 0.1513738037 | P66: =+J66-N66 -> 0 | Q66: 96.87923438 | R66: =+J66*E$7 -> 0
C67: Tractors/Self-Propelled | D67: 114.5421192 | F67: Dollars | G67: 0.055 | I67: 6.299816557 | J67: 0 | K67: 0 | M67: 0 | N67: =J67*L67 -> 0 | O67: 6.299816557 | P67: 0 | Q67: 4031.882597 | R67: 0
C68: Implements | D68: 92.89614695 | F68: Dollars | G68: 0.055 | I68: 5.109288082 | J68: 0 | K68: 0 | M68: 0 | N68: =J68*L68 -> 0 | O68: 5.109288082 | P68: 0 | Q68: 3269.944373 | R68: 0
B69: Salaried Labor | D69: 1 | F69: Acre | G69: 0 | I69: 0 | J69: 0 | K69: 0 | M69: 0 | N69: =J69*L69 -> 0 | O69: 0 | P69: =+J69-N69 -> 0 | Q69: 0 | R69: =+J69*E$7 -> 0
B70: Management Fee, Owner/Operator Labor | D70: 1 | F70: Acre | G70: 0 | I70: 0 | J70: 0 | K70: 0 | M70: 0 | N70: 0 | O70: 0 | P70: 0 | Q70: 0 | R70: 0
B71: Allocated Establishment Cost | D71: 1 | F71: Acre | G71: 0 | I71: 0 | J71: 0 | K71: 0 | M71: 0 | N71: 0 | O71: 0 | P71: 0 | Q71: 0 | R71: 0
B72: Cash Rent - Dryland Cotton | D72: 1 | F72: Acre | G72: 32 | I72: 32 | J72: 0 | K72: 0 | M72: 0 | N72: 0 | O72: 32 | P72: 0 | Q72: 20480 | R72: 0
B73: Property Taxes | D73: 1 | F73: Acre | G73: 0 | I73: 0 | J73: 0 | K73: 0 | M73: 0 | N73: 0 | O73: 0 | P73: 0 | Q73: 0 | R73: 0
B74: Whole Farm Insurance | D74: 1 | F74: Acre | G74: 0 | I74: 0 | J74: 0 | K74: 0 | M74: 0 | N74: 0 | O74: 0 | P74: 0 | Q74: 0 | R74: 0
D75: 1 | G75: 0 | I75: 0 | J75: 0 | K75: 0 | M75: 0 | N75: 0 | O75: 0 | P75: 0 | Q75: 0 | R75: 0
D76: 1 | G76: 0 | I76: 0 | J76: =E76*H76 -> 0 | K76: 0 | M76: 0 | N76: 0 | O76: 0 | P76: 0 | Q76: 0 | R76: 0
A77: Total Fixed Costs | I77: 80.3724992 | J77: =+SUM(J62:J76) -> 0 | M77: 0 | N77: =+SUM(N62:N76) -> 0 | O77: 80.3724992 | P77: =+SUM(P62:P76) -> 0 | Q77: 51438.39949 | R77: =+SUM(R62:R76) -> 0
A78: Total Specified Costs | I78: 320.5381357 | J78: =+J56+J77 -> 0 | M78: 0 | N78: =+N56+N77 -> 0 | O78: 320.5381357 | P78: =+P56+P77 -> 0 | Q78: 205144.4068 | R78: =+R56+R77 -> 0
A80: Returns Above Specified Costs | I80: -88.53813565 | J80: =+J14-J78 -> 0 | M80: 0 | N80: =+N14-N78 -> 0 | O80: -88.53813565 | P80: =+P14-P78 -> 0 | Q80: -56664.40682 | R80: =+R14-R78 -> 0
A82: Breakeven Price to Cover Total Costs | G82: 0.8366816739 | H82: =IF(E10=0,"n/a",(YTotExp-(YTotExp+YTotRet-J10))/E10) -> n/a | I82: Pound
D84: Example Breakeven Prices
B85: Example | C85: Example | D85: To Cover | G85: To Cover
B86: Yield | C86: Yield | D86: Variable | G86: Total
B87: Percent | C87: Pound | D87: Costs | G87: Costs
B88: 0.75 | C88: 240 | D88: 0.7806901519 | G88: 1.115575565
B89: 0.9 | C89: 288 | D89: 0.6505751266 | G89: 0.9296463043
B90: 1 | C90: 320 | D90: 0.5855176139 | G90: 0.8366816739
B91: 1.1 | C91: 352 | D91: 0.5322887399 | G91: 0.7606197036
B92: 1.25 | C92: 400 | D92: 0.4684140911 | G92: 0.6693453391
D94: Your Breakeven Prices
B95: Your | C95: Your | E95: To Cover | H95: To Cover
B96: Yield | C96: Yield | E96: Variable | H96: Total
B97: Percent | C97: Pound | E97: Costs | H97: Costs
B98: 0.75 | C98: =E10*YPER1 -> 0 | E98: =IF($E$10=0,0,(YVarExp-(YTotExp+YTotRet-J10))/($E$10*YPER1)) -> 0 | H98: =IF($E$10=0,0,(YTotExp-(YTotExp+YTotRet-J10))/($E$10*YPER1)) -> 0
B99: 0.9 | C99: =E10*YPER2 -> 0 | E99: =IF($E$10=0,0,(YVarExp-(YTotExp+YTotRet-J10))/($E$10*YPER2)) -> 0 | H99: =IF($E$10=0,0,(YTotExp-(YTotExp+YTotRet-J10))/($E$10*YPER2)) -> 0
B100: 1 | C100: =+E10 -> 0 | E100: =IF($E$10=0,0,(YVarExp-(YTotExp+YTotRet-J10))/($E$10*YPER3)) -> 0 | H100: =IF($E$10=0,0,(YTotExp-(YTotExp+YTotRet-J10))/($E$10*YPER3)) -> 0
B101: 1.1 | C101: =E10*YPER4 -> 0 | E101: =IF($E$10=0,0,(YVarExp-(YTotExp+YTotRet-J10))/($E$10*YPER4)) -> 0 | H101: =IF($E$10=0,0,(YTotExp-(YTotExp+YTotRet-J10))/($E$10*YPER4)) -> 0
B102: 1.25 | C102: =E10*YPER5 -> 0 | E102: =IF($E$10=0,0,(YVarExp-(YTotExp+YTotRet-J10))/($E$10*YPER5)) -> 0 | H102: =IF($E$10=0,0,(YTotExp-(YTotExp+YTotRet-J10))/($E$10*YPER5)) -> 0
A104: Developed by Extension Economists, Texas A&M AgriLife Extension Service, budgets@tamu.edu.
A106: Information presented is prepared solely as a general guide and not intended to recognize or predict the costs and returns from any one operation. Brand names are mentioned only as examples and imply no endorsement.

Sheet CottonDrylandSolid
A1: Projections for Planning Purposes Only -- Not to be Used without Updating
A2: 2018 Estimated Costs and Returns per Acre
A3: Dryland Cotton (Solid 40" Rows)
A4: Enter your name for this budget in the cell above.
A5: Enter Your Values in the cells highlighed in MAROON.
E6: Your Acres | R6: Your
C7: Crop Acres | D7: 640 | L7: Your | Q7: Enterprise | R7: Enterprise
E8: Your | H8: Your | I8: Cash | J8: Your | K8: Landlord | L8: Landlord | N8: Your | P8: Your | Q8: Total | R8: Total
A9: REVENUE | D9: Quantity | E9: Quantity | F9: Units | G9: $/Unit | H9: $/Unit | I9: Total | J9: Total | K9: Share | L9: Share | M9: Landlord | N9: Landlord | O9: Tenant | P9: Tenant | Q9: (640 acres) | R9: ="(" & E7 & " acres)" -> ( acres)
B10: Cotton Lint | D10: 480 | F10: Pound | G10: 0.56 | I10: 268.8 | J10: =E10*H10 -> 0 | K10: 0 | M10: 0 | N10: =J10*L10 -> 0 | O10: 268.8 | P10: =+J10-N10 -> 0 | Q10: 172032 | R10: =+J10*E$7 -> 0
B11: Cottonseed | D11: 0.396 | F11: Ton | G11: 200 | I11: 79.2 | J11: 0 | K11: 0 | M11: 0 | N11: 0 | O11: 79.2 | P11: =+J11-N11 -> 0 | Q11: 50688 | R11: 0
D12: 0 | G12: 0 | I12: 0 | J12: 0 | K12: 0 | M12: 0 | N12: 0 | O12: 0 | P12: 0 | Q12: 0 | R12: 0
D13: 0 | G13: 0 | I13: 0 | J13: 0 | K13: 0 | M13: 0 | N13: 0 | O13: 0 | P13: 0 | Q13: 0 | R13: 0
A14: Total Revenue | I14: 348 | J14: =SUM(J10:J13) -> 0 | M14: 0 | N14: =SUM(N10:N13) -> 0 | O14: 348 | P14: =SUM(P10:P13) -> 0 | Q14: 222720 | R14: =SUM(R10:R13) -> 0
Q15: Enterprise | R15: Enterprise
A16: VARIABLE COSTS | D16: Quantity | E16: Quantity | F16: Units | G16: $/Unit | H16: $/Unit | I16: Total | J16: Total | K16: Share | L16: Share | M16: Landlord | N16: Landlord | O16: Tenant | P16: Tenant | Q16: Total | R16: Total
A17: Production Costs
B18: Custom
C19: Fertilizer Application | D19: 1 | F19: Acre | G19: 5.5 | I19: 5.5 | J19: =E19*H19 -> 0 | K19: 0 | M19: 0 | N19: =J19*L19 -> 0 | O19: 5.5 | P19: =+J19-N19 -> 0 | Q19: 3520 | R19: =+J19*E$7 -> 0
C20: Insecticide Application | D20: 1 | F20: Acre | G20: 5.5 | I20: 5.5 | J20: 0 | K20: 0 | M20: 0 | N20: 0 | O20: 5.5 | P20: 0 | Q20: 3520 | R20: 0
C21: Gin, Bag, Ties | D21: 480 | F21: Pound | G21: 0.12 | I21: 57.6 | J21: 0 | K21: 0 | M21: 0 | N21: 0 | O21: 57.6 | P21: 0 | Q21: 36864 | R21: 0
C22: Custom Stripping | D22: 480 | F22: Pound | G22: 0.1 | I22: 48 | J22: 0 | K22: 0 | M22: 0 | N22: 0 | O22: 48 | P22: 0 | Q22: 30720 | R22: 0
B23: Fertilizer
C24: Fertilizer (N) | D24: 57 | F24: Pound | G24: 0.41 | I24: 23.37 | J24: 0 | K24: 0 | M24: 0 | N24: 0 | O24: 23.37 | P24: 0 | Q24: 14956.8 | R24: 0
B25: Herbicide
C26: Roundup | D26: 2 | F26: Pint | G26: 2.1875 | I26: 4.375 | J26: 0 | K26: 0 | M26: 0 | N26: 0 | O26: 4.375 | P26: 0 | Q26: 2800 | R26: 0
B27: Insecticide
C28: Insecticide - Cotton | D28: 0.5 | F28: Pound | G28: 7.2 | I28: 3.6 | J28: 0 | K28: 0 | M28: 0 | N28: 0 | O28: 3.6 | P28: 0 | Q28: 2304 | R28: 0
C29: Bollweevil Eradication | D29: 1 | F29: Acre | G29: 2.5 | I29: 2.5 | J29: 0 | K29: 0 | M29: 0 | N29: 0 | O29: 2.5 | P29: 0 | Q29: 1600 | R29: 0
B30: Miscellaneous
C31: Insurance - Dryland Cotton | D31: 1 | F31: Acre | G31: 15 | I31: 15 | J31: 0 | K31: 0 | M31: 0 | N31: 0 | O31: 15 | P31: 0 | Q31: 9600 | R31: 0
B32: Seed
C33: Cotton Seed | D33: 5 | F33: Pound | G33: 7.7 | I33: 38.5 | J33: 0 | K33: 0 | M33: 0 | N33: 0 | O33: 38.5 | P33: 0 | Q33: 24640 | R33: 0
D34: 0 | G34: 0 | I34: 0 | J34: 0 | K34: 0 | M34: 0 | N34: 0 | O34: 0 | P34: 0 | Q34: 0 | R34: 0
D35: 0 | G35: 0 | I35: 0 | J35: 0 | K35: 0 | M35: 0 | N35: 0 | O35: 0 | P35: 0 | Q35: 0 | R35: 0
D36: 0 | G36: 0 | I36: 0 | J36: =E36*H36 -> 0 | K36: 0 | M36: 0 | N36: =J36*L36 -> 0 | O36: 0 | P36: =+J36-N36 -> 0 | Q36: 0 | R36: =+J36*E$7 -> 0
B37: Machinery Labor
C38: Tractors/Self-Propelled | D38: 1.01 | F38: Hour | G38: 10 | I38: 10.1 | J38: =E38*H38 -> 0 | K38: 0 | M38: 0 | N38: =J38*L38 -> 0 | O38: 10.1 | P38: =+J38-N38 -> 0 | Q38: 6464 | R38: =+J38*E$7 -> 0
C39: Other Labor | D39: 1.21 | F39: Hour | G39: 10 | I39: 12.1 | J39: =E39*H39 -> 0 | K39: 0 | M39: 0 | N39: =J39*L39 -> 0 | O39: 12.1 | P39: =+J39-N39 -> 0 | Q39: 7744 | R39: =+J39*E$7 -> 0
B41: Diesel Fuel
C42: Pickup/General Use Equipment | D42: 1 | F42: Acre | G42: 0 | I42: 0 | J42: =E42*H42 -> 0 | K42: 0 | M42: 0 | N42: =J42*L42 -> 0 | O42: 0 | P42: =+J42-N42 -> 0 | Q42: 0 | R42: =+J42*E$7 -> 0
C43: Tractors/Self-Propelled | D43: 6.88 | F43: Gallon | G43: 2.1 | I43: 14.448 | J43: =E43*H43 -> 0 | K43: 0 | M43: 0 | N43: =J43*L43 -> 0 | O43: 14.448 | P43: =+J43-N43 -> 0 | Q43: 9246.72 | R43: =+J43*E$7 -> 0
B45: Gasoline
C46: Pickup/General Use Equipment | D46: 1 | F46: Acre | G46: 1.0546875 | I46: 1.0546875 | J46: =E46*H46 -> 0 | K46: 0 | M46: 0 | N46: =J46*L46 -> 0 | O46: 1.0546875 | P46: =+J46-N46 -> 0 | Q46: 675 | R46: =+J46*E$7 -> 0
C47: Tractors/Self-Propelled | D47: 0 | F47: Gallon | G47: 2.25 | I47: 0 | J47: =E47*H47 -> 0 | K47: 0 | M47: 0 | N47: =J47*L47 -> 0 | O47: 0 | P47: =+J47-N47 -> 0 | Q47: 0 | R47: =+J47*E$7 -> 0
B49: Repairs & Maintenance
C50: Pickup/General Use Equipment | D50: 1 | F50: Acre | G50: 0.2830078125 | I50: 0.2830078125 | J50: =E50*H50 -> 0 | K50: 0 | M50: 0 | N50: =J50*L50 -> 0 | O50: 0.2830078125 | P50: =+J50-N50 -> 0 | Q50: 181.125 | R50: =+J50*E$7 -> 0
C51: Irrigation Equipment | D51: 1 | F51: Acre | G51: 0 | I51: 0 | J51: 0 | K51: 0 | M51: 0 | N51: 0 | O51: 0 | P51: 0 | Q51: 0 | R51: 0
C52: Tractors/Self-Propelled | D52: 1 | F52: Acre | G52: 13.42967837 | I52: 13.42967837 | J52: 0 | K52: 0 | M52: 0 | N52: 0 | O52: 13.42967837 | P52: 0 | Q52: 8594.994159 | R52: 0
C53: Implements | D53: 1 | F53: Acre | G53: 15.28340287 | I53: 15.28340287 | J53: 0 | K53: 0 | M53: 0 | N53: 0 | O53: 15.28340287 | P53: 0 | Q53: 9781.37784 | R53: 0
I54: 0 | J54: 0 | K54: 0 | M54: 0 | N54: 0 | O54: 0 | P54: 0 | Q54: 0 | R54: 0
I55: 0 | J55: 0 | K55: 0 | M55: 0 | N55: 0 | O55: 0 | P55: 0 | Q55: 0 | R55: 0
B56: Interest on Credit Line | G56: 0.0575 | I56: 4.96535489 | J56: =+SUM(J18:J55)/2*H56 -> 0 | M56: 0 | N56: =+SUM(N18:N55)/2*L56 -> 0 | O56: 4.96535489 | P56: =+SUM(P18:P55)/2*L56 -> 0 | Q56: 3177.827129 | R56: =+J56*E$7 -> 0
A57: Total Variable Costs | I57: 275.6091315 | J57: =SUM(J19:J56) -> 0 | M57: 0 | N57: =SUM(N19:N56) -> 0 | O57: 275.6091315 | P57: =SUM(P19:P56) -> 0 | Q57: 176389.8441 | R57: =SUM(R19:R56) -> 0
A58: Planned Returns Above Variable Costs: | I58: 72.39086855 | J58: =+J14-J57 -> 0 | M58: 0 | N58: =+N14-N57 -> 0 | O58: 72.39086855 | P58: =+P14-P57 -> 0 | Q58: 46330.15587 | R58: =+R14-R57 -> 0
B59: Breakeven Price to Cover Variable Costs | G59: 0.4091856905 | H59: =IF(E10=0,"n/a",(YVarExp-(YTotExp+YTotRet-J10))/E10) -> n/a | I59: Pound
Q60: Enterprise | R60: Enterprise
A61: FIXED COSTS | D61: Quantity | E61: Quantity | F61: Units | G61: $/Unit | H61: $/Unit | I61: Total | J61: Total | K61: Share | L61: Share | M61: Landlord | N61: Landlord | O61: Tenant | P61: Tenant | Q61: Total | R61: Total
B62: Machinery Depreciation
C63: Pickup/General Use Equipment | D63: 1 | F63: Acre | G63: 0.3929091797 | I63: 0.3929091797 | J63: =E63*H63 -> 0 | K63: 0 | M63: 0 | N63: =J63*L63 -> 0 | O63: 0.3929091797 | P63: =+J63-N63 -> 0 | Q63: 251.461875 | R63: =+J63*E$7 -> 0
C64: Tractors/Self-Propelled | D64: 1 | F64: Acre | G64: 13.87733432 | I64: 13.87733432 | J64: 0 | K64: 0 | M64: 0 | N64: =J64*L64 -> 0 | O64: 13.87733432 | P64: 0 | Q64: 8881.493964 | R64: 0
C65: Implements | D65: 1 | F65: Acre | G65: 19.03747978 | I65: 19.03747978 | J65: 0 | K65: 0 | M65: 0 | N65: =J65*L65 -> 0 | O65: 19.03747978 | P65: 0 | Q65: 12183.98706 | R65: 0
B66: Equipment Investment
C67: Pickup/General Use Equipment | D67: 2.752250977 | F67: Dollars | G67: 0.055 | I67: 0.1513738037 | J67: =E67*H67 -> 0 | K67: 0 | M67: 0 | N67: =J67*L67 -> 0 | O67: 0.1513738037 | P67: =+J67-N67 -> 0 | Q67: 96.87923438 | R67: =+J67*E$7 -> 0
C68: Tractors/Self-Propelled | D68: 108.1089109 | F68: Dollars | G68: 0.055 | I68: 5.9459901 | J68: 0 | K68: 0 | M68: 0 | N68: =J68*L68 -> 0 | O68: 5.9459901 | P68: 0 | Q68: 3805.433664 | R68: 0
C69: Implements | D69: 81.43810793 | F69: Dollars | G69: 0.055 | I69: 4.479095936 | J69: 0 | K69: 0 | M69: 0 | N69: =J69*L69 -> 0 | O69: 4.479095936 | P69: 0 | Q69: 2866.621399 | R69: 0
B70: Salaried Labor | D70: 1 | F70: Acre | G70: 0 | I70: 0 | J70: 0 | K70: 0 | M70: 0 | N70: =J70*L70 -> 0 | O70: 0 | P70: =+J70-N70 -> 0 | Q70: 0 | R70: =+J70*E$7 -> 0
B71: Management Fee, Owner/Operator Labor | D71: 1 | F71: Acre | G71: 0 | I71: 0 | J71: 0 | K71: 0 | M71: 0 | N71: 0 | O71: 0 | P71: 0 | Q71: 0 | R71: 0
B72: Allocated Establishment Cost | D72: 1 | F72: Acre | G72: 0 | I72: 0 | J72: 0 | K72: 0 | M72: 0 | N72: 0 | O72: 0 | P72: 0 | Q72: 0 | R72: 0
B73: Cash Rent - Dryland Cotton | D73: 1 | F73: Acre | G73: 32 | I73: 32 | J73: 0 | K73: 0 | M73: 0 | N73: 0 | O73: 32 | P73: 0 | Q73: 20480 | R73: 0
B74: Property Taxes | D74: 1 | F74: Acre | G74: 0 | I74: 0 | J74: 0 | K74: 0 | M74: 0 | N74: 0 | O74: 0 | P74: 0 | Q74: 0 | R74: 0
B75: Whole Farm Insurance | D75: 1 | F75: Acre | G75: 0 | I75: 0 | J75: 0 | K75: 0 | M75: 0 | N75: 0 | O75: 0 | P75: 0 | Q75: 0 | R75: 0
D76: 1 | G76: 0 | I76: 0 | J76: 0 | K76: 0 | M76: 0 | N76: 0 | O76: 0 | P76: 0 | Q76: 0 | R76: 0
D77: 1 | G77: 0 | I77: 0 | J77: =E77*H77 -> 0 | K77: 0 | M77: 0 | N77: 0 | O77: 0 | P77: 0 | Q77: 0 | R77: 0
A78: Total Fixed Costs | I78: 75.88418312 | J78: =+SUM(J63:J77) -> 0 | M78: 0 | N78: =+SUM(N63:N77) -> 0 | O78: 75.88418312 | P78: =+SUM(P63:P77) -> 0 | Q78: 48565.87719 | R78: =+SUM(R63:R77) -> 0
A79: Total Specified Costs | I79: 351.4933146 | J79: =+J57+J78 -> 0 | M79: 0 | N79: =+N57+N78 -> 0 | O79: 351.4933146 | P79: =+P57+P78 -> 0 | Q79: 224955.7213 | R79: =+R57+R78 -> 0
A81: Returns Above Specified Costs | I81: -3.493314566 | J81: =+J14-J79 -> 0 | M81: 0 | N81: =+N14-N79 -> 0 | O81: -3.493314566 | P81: =+P14-P79 -> 0 | Q81: -2235.721322 | R81: =+R14-R79 -> 0
A83: Breakeven Price to Cover Total Costs | G83: 0.5672777387 | H83: =IF(E10=0,"n/a",(YTotExp-(YTotExp+YTotRet-J10))/E10) -> n/a | I83: Pound
D85: Example Breakeven Prices
B86: Example | C86: Example | D86: To Cover | G86: To Cover
B87: Yield | C87: Yield | D87: Variable | G87: Total
B88: Percent | C88: Pound | D88: Costs | G88: Costs
B89: 0.75 | C89: 360 | D89: 0.5455809207 | G89: 0.7563703182
B90: 0.9 | C90: 432 | D90: 0.4546507672 | G90: 0.6303085985
B91: 1 | C91: 480 | D91: 0.4091856905 | G91: 0.5672777387
B92: 1.1 | C92: 528 | D92: 0.3719869914 | G92: 0.5157070352
B93: 1.25 | C93: 600 | D93: 0.3273485524 | G93: 0.4538221909
D95: Your Breakeven Prices
B96: Your | C96: Your | E96: To Cover | H96: To Cover
B97: Yield | C97: Yield | E97: Variable | H97: Total
B98: Percent | C98: Pound | E98: Costs | H98: Costs
B99: 0.75 | C99: =E10*YPER1 -> 0 | E99: =IF($E$10=0,0,(YVarExp-(YTotExp+YTotRet-J10))/($E$10*YPER1)) -> 0 | H99: =IF($E$10=0,0,(YTotExp-(YTotExp+YTotRet-J10))/($E$10*YPER1)) -> 0
B100: 0.9 | C100: =E10*YPER2 -> 0 | E100: =IF($E$10=0,0,(YVarExp-(YTotExp+YTotRet-J10))/($E$10*YPER2)) -> 0 | H100: =IF($E$10=0,0,(YTotExp-(YTotExp+YTotRet-J10))/($E$10*YPER2)) -> 0
B101: 1 | C101: =+E10 -> 0 | E101: =IF($E$10=0,0,(YVarExp-(YTotExp+YTotRet-J10))/($E$10*YPER3)) -> 0 | H101: =IF($E$10=0,0,(YTotExp-(YTotExp+YTotRet-J10))/($E$10*YPER3)) -> 0
B102: 1.1 | C102: =E10*YPER4 -> 0 | E102: =IF($E$10=0,0,(YVarExp-(YTotExp+YTotRet-J10))/($E$10*YPER4)) -> 0 | H102: =IF($E$10=0,0,(YTotExp-(YTotExp+YTotRet-J10))/($E$10*YPER4)) -> 0
B103: 1.25 | C103: =E10*YPER5 -> 0 | E103: =IF($E$10=0,0,(YVarExp-(YTotExp+YTotRet-J10))/($E$10*YPER5)) -> 0 | H103: =IF($E$10=0,0,(YTotExp-(YTotExp+YTotRet-J10))/($E$10*YPER5)) -> 0
A105: Developed by Extension Economists, Texas A&M AgriLife Extension Service, budgets@tamu.edu.
A107: Information presented is prepared solely as a general guide and not intended to recognize or predict the costs and returns from any one operation. Brand names are mentioned only as examples and imply no endorsement.

Sheet CottonIrrigated
A1: Projections for Planning Purposes Only -- Not to be Used without Updating
A2: 2018 Estimated Costs and Returns per Acre
A3: Sprinkler Irrigated Cotton
A4: Enter your name for this budget in the cell above.
A5: Enter Your Values in the cells highlighed in MAROON.
E6: Your Acres | R6: Your
C7: Crop Acres | D7: 120 | L7: Your | Q7: Enterprise | R7: Enterprise
E8: Your | H8: Your | I8: Cash | J8: Your | K8: Landlord | L8: Landlord | N8: Your | P8: Your | Q8: Total | R8: Total
A9: REVENUE | D9: Quantity | E9: Quantity | F9: Units | G9: $/Unit | H9: $/Unit | I9: Total | J9: Total | K9: Share | L9: Share | M9: Landlord | N9: Landlord | O9: Tenant | P9: Tenant | Q9: (120 acres) | R9: ="(" & E7 & " acres)" -> ( acres)
B10: Cotton Lint | D10: 800 | F10: Pound | G10: 0.56 | I10: 448 | J10: =E10*H10 -> 0 | K10: 0 | M10: 0 | N10: =J10*L10 -> 0 | O10: 448 | P10: =+J10-N10 -> 0 | Q10: 53760 | R10: =+J10*E$7 -> 0
B11: Cottonseed | D11: 0.6 | F11: Ton | G11: 200 | I11: 120 | J11: 0 | K11: 0 | M11: 0 | N11: 0 | O11: 120 | P11: =+J11-N11 -> 0 | Q11: 14400 | R11: 0
D12: 0 | G12: 0 | I12: 0 | J12: 0 | K12: 0 | M12: 0 | N12: 0 | O12: 0 | P12: 0 | Q12: 0 | R12: 0
D13: 0 | G13: 0 | I13: 0 | J13: 0 | K13: 0 | M13: 0 | N13: 0 | O13: 0 | P13: 0 | Q13: 0 | R13: 0
A14: Total Revenue | I14: 568 | J14: =SUM(J10:J13) -> 0 | M14: 0 | N14: =SUM(N10:N13) -> 0 | O14: 568 | P14: =SUM(P10:P13) -> 0 | Q14: 68160 | R14: =SUM(R10:R13) -> 0
Q15: Enterprise | R15: Enterprise
A16: VARIABLE COSTS | D16: Quantity | E16: Quantity | F16: Units | G16: $/Unit | H16: $/Unit | I16: Total | J16: Total | K16: Share | L16: Share | M16: Landlord | N16: Landlord | O16: Tenant | P16: Tenant | Q16: Total | R16: Total
A17: Production Costs
B18: Custom
C19: Fertilizer Application | D19: 1 | F19: Acre | G19: 5.5 | I19: 5.5 | J19: =E19*H19 -> 0 | K19: 0 | M19: 0 | N19: =J19*L19 -> 0 | O19: 5.5 | P19: =+J19-N19 -> 0 | Q19: 660 | R19: =+J19*E$7 -> 0
C20: Insecticide Application | D20: 1 | F20: Acre | G20: 5.5 | I20: 5.5 | J20: 0 | K20: 0 | M20: 0 | N20: 0 | O20: 5.5 | P20: 0 | Q20: 660 | R20: 0
C21: Harvest Aid Application | D21: 1 | F21: Acre | G21: 5.5 | I21: 5.5 | J21: 0 | K21: 0 | M21: 0 | N21: 0 | O21: 5.5 | P21: 0 | Q21: 660 | R21: 0
C22: Gin, Bag, Ties | D22: 800 | F22: Pound | G22: 0.12 | I22: 96 | J22: 0 | K22: 0 | M22: 0 | N22: 0 | O22: 96 | P22: 0 | Q22: 11520 | R22: 0
C23: Custom Picking | D23: 800 | F23: Pound | G23: 0.13 | I23: 104 | J23: 0 | K23: 0 | M23: 0 | N23: 0 | O23: 104 | P23: 0 | Q23: 12480 | R23: 0
B24: Fertilizer
C25: Fertilizer (N) | D25: 75 | F25: Pound | G25: 0.41 | I25: 30.75 | J25: 0 | K25: 0 | M25: 0 | N25: 0 | O25: 30.75 | P25: 0 | Q25: 3690 | R25: 0
C26: Fertilizer (P) | D26: 60 | F26: Pound | G26: 0.34 | I26: 20.4 | J26: 0 | K26: 0 | M26: 0 | N26: 0 | O26: 20.4 | P26: 0 | Q26: 2448 | R26: 0
C27: Potash (K) | D27: 40 | F27: Pound | G27: 0.3 | I27: 12 | J27: 0 | K27: 0 | M27: 0 | N27: 0 | O27: 12 | P27: 0 | Q27: 1440 | R27: 0
C28: Sulfur | D28: 12 | F28: Pound | G28: 0.25 | I28: 3 | J28: 0 | K28: 0 | M28: 0 | N28: 0 | O28: 3 | P28: 0 | Q28: 360 | R28: 0
B29: Herbicide
C30: Roundup | D30: 2 | F30: Pint | G30: 2.1875 | I30: 4.375 | J30: 0 | K30: 0 | M30: 0 | N30: 0 | O30: 4.375 | P30: 0 | Q30: 525 | R30: 0
C31: Harvest Aid - Prep | D31: 3 | F31: Pint | G31: 2.375 | I31: 7.125 | J31: 0 | K31: 0 | M31: 0 | N31: 0 | O31: 7.125 | P31: 0 | Q31: 855 | R31: 0
C32: Harvest Aid -Def | D32: 8 | F32: Ounce | G32: 0.546875 | I32: 4.375 | J32: 0 | K32: 0 | M32: 0 | N32: 0 | O32: 4.375 | P32: 0 | Q32: 525 | R32: 0
B33: Seed
C34: Cotton Seed | D34: 11.5 | F34: Pound | G34: 7.7 | I34: 88.55 | J34: 0 | K34: 0 | M34: 0 | N34: 0 | O34: 88.55 | P34: 0 | Q34: 10626 | R34: 0
B35: Insecticide
C36: Insecticide - Cotton | D36: 0.5 | F36: Pound | G36: 7.2 | I36: 3.6 | J36: 0 | K36: 0 | M36: 0 | N36: 0 | O36: 3.6 | P36: 0 | Q36: 432 | R36: 0
C37: Bollweevil Eradication | D37: 1 | F37: Acre | G37: 2.5 | I37: 2.5 | J37: 0 | K37: 0 | M37: 0 | N37: 0 | O37: 2.5 | P37: 0 | Q37: 300 | R37: 0
B38: Miscellaneous
C39: Insurance - Irrigated Cotton | D39: 1 | F39: Acre | G39: 17 | I39: 17 | J39: 0 | K39: 0 | M39: 0 | N39: 0 | O39: 17 | P39: 0 | Q39: 2040 | R39: 0
D40: 0 | G40: 0 | I40: 0 | J40: 0 | K40: 0 | M40: 0 | N40: 0 | O40: 0 | P40: 0 | Q40: 0 | R40: 0
D41: 0 | G41: 0 | I41: 0 | J41: 0 | K41: 0 | M41: 0 | N41: 0 | O41: 0 | P41: 0 | Q41: 0 | R41: 0
D42: 0 | G42: 0 | I42: 0 | J42: =E42*H42 -> 0 | K42: 0 | M42: 0 | N42: =J42*L42 -> 0 | O42: 0 | P42: =+J42-N42 -> 0 | Q42: 0 | R42: =+J42*E$7 -> 0
B43: Irrigation
C44: Energy Cost | D44: 15 | F44: AcreInch | G44: 1.200036706 | I44: 18.0005506 | J44: =E44*H44 -> 0 | K44: 0 | M44: 0 | N44: =J44*L44 -> 0 | O44: 18.0005506 | P44: =+J44-N44 -> 0 | Q44: 2160.066072 | R44: =+J44*E$7 -> 0
C45: Irrigation Labor | D45: 0.96 | F45: Hour | G45: 10 | I45: 9.6 | J45: 0 | K45: 0 | M45: 0 | N45: 0 | O45: 9.6 | P45: 0 | Q45: 1152 | R45: 0
B46: Machinery Labor
C47: Tractors/Self-Propelled | D47: 0.87 | F47: Hour | G47: 10 | I47: 8.7 | J47: =E47*H47 -> 0 | K47: 0 | M47: 0 | N47: =J47*L47 -> 0 | O47: 8.7 | P47: =+J47-N47 -> 0 | Q47: 1044 | R47: =+J47*E$7 -> 0
C48: Other Labor | D48: 1.04 | F48: Hour | G48: 10 | I48: 10.4 | J48: =E48*H48 -> 0 | K48: 0 | M48: 0 | N48: =J48*L48 -> 0 | O48: 10.4 | P48: =+J48-N48 -> 0 | Q48: 1248 | R48: =+J48*E$7 -> 0
B50: Diesel Fuel
C51: Pickup/General Use Equipment | D51: 1 | F51: Acre | G51: 0 | I51: 0 | J51: =E51*H51 -> 0 | K51: 0 | M51: 0 | N51: =J51*L51 -> 0 | O51: 0 | P51: =+J51-N51 -> 0 | Q51: 0 | R51: =+J51*E$7 -> 0
C52: Tractors/Self-Propelled | D52: 5.92 | F52: Gallon | G52: 2.1 | I52: 12.432 | J52: =E52*H52 -> 0 | K52: 0 | M52: 0 | N52: =J52*L52 -> 0 | O52: 12.432 | P52: =+J52-N52 -> 0 | Q52: 1491.84 | R52: =+J52*E$7 -> 0
B54: Gasoline
C55: Pickup/General Use Equipment | D55: 1 | F55: Acre | G55: 9 | I55: 9 | J55: =E55*H55 -> 0 | K55: 0 | M55: 0 | N55: =J55*L55 -> 0 | O55: 9 | P55: =+J55-N55 -> 0 | Q55: 1080 | R55: =+J55*E$7 -> 0
C56: Tractors/Self-Propelled | D56: 0 | F56: Gallon | G56: 2.25 | I56: 0 | J56: =E56*H56 -> 0 | K56: 0 | M56: 0 | N56: =J56*L56 -> 0 | O56: 0 | P56: =+J56-N56 -> 0 | Q56: 0 | R56: =+J56*E$7 -> 0
B58: Repairs & Maintenance
C59: Pickup/General Use Equipment | D59: 1 | F59: Acre | G59: 2.415 | I59: 2.415 | J59: =E59*H59 -> 0 | K59: 0 | M59: 0 | N59: =J59*L59 -> 0 | O59: 2.415 | P59: =+J59-N59 -> 0 | Q59: 289.8 | R59: =+J59*E$7 -> 0
C60: Irrigation Equipment | D60: 1 | F60: Acre | G60: 16.6695 | I60: 16.6695 | J60: 0 | K60: 0 | M60: 0 | N60: 0 | O60: 16.6695 | P60: 0 | Q60: 2000.34 | R60: 0
C61: Tractors/Self-Propelled | D61: 1 | F61: Acre | G61: 11.54608167 | I61: 11.54608167 | J61: 0 | K61: 0 | M61: 0 | N61: 0 | O61: 11.54608167 | P61: 0 | Q61: 1385.5298 | R61: 0
C62: Implements | D62: 1 | F62: Acre | G62: 13.53071556 | I62: 13.53071556 | J62: 0 | K62: 0 | M62: 0 | N62: 0 | O62: 13.53071556 | P62: 0 | Q62: 1623.685867 | R62: 0
I63: 0 | J63: 0 | K63: 0 | M63: 0 | N63: 0 | O63: 0 | P63: 0 | Q63: 0 | R63: 0
I64: 0 | J64: 0 | K64: 0 | M64: 0 | N64: 0 | O64: 0 | P64: 0 | Q64: 0 | R64: 0
B65: Interest on Credit Line | G65: 0.0575 | I65: 10.2710292 | J65: =+SUM(J18:J64)/2*H65 -> 0 | M65: 0 | N65: =+SUM(N18:N64)/2*L65 -> 0 | O65: 10.2710292 | P65: =+SUM(P18:P64)/2*L65 -> 0 | Q65: 1232.523504 | R65: =+J65*E$7 -> 0
A66: Total Variable Costs | I66: 532.739877 | J66: =SUM(J19:J65) -> 0 | M66: 0 | N66: =SUM(N19:N65) -> 0 | O66: 532.739877 | P66: =SUM(P19:P65) -> 0 | Q66: 63928.78524 | R66: =SUM(R19:R65) -> 0
A67: Planned Returns Above Variable Costs: | I67: 35.26012298 | J67: =+J14-J66 -> 0 | M67: 0 | N67: =+N14-N66 -> 0 | O67: 35.26012298 | P67: =+P14-P66 -> 0 | Q67: 4231.214758 | R67: =+R14-R66 -> 0
B68: Breakeven Price to Cover Variable Costs | G68: 0.5159248463 | H68: =IF(E10=0,"n/a",(YVarExp-(YTotExp+YTotRet-J10))/E10) -> n/a | I68: Pound
Q69: Enterprise | R69: Enterprise
A70: FIXED COSTS | D70: Quantity | E70: Quantity | F70: Units | G70: $/Unit | H70: $/Unit | I70: Total | J70: Total | K70: Share | L70: Share | M70: Landlord | N70: Landlord | O70: Tenant | P70: Tenant | Q70: Total | R70: Total
B71: Machinery Depreciation
C72: Pickup/General Use Equipment | D72: 1 | F72: Acre | G72: 3.352825 | I72: 3.352825 | J72: =E72*H72 -> 0 | K72: 0 | M72: 0 | N72: =J72*L72 -> 0 | O72: 3.352825 | P72: =+J72-N72 -> 0 | Q72: 402.339 | R72: =+J72*E$7 -> 0
C73: Irrigation Equipment | D73: 1 | F73: Acre | G73: 10 | I73: 10 | J73: 0 | K73: 0 | M73: 0 | N73: =J73*L73 -> 0 | O73: 10 | P73: 0 | Q73: 1200 | R73: 0
C74: Tractors/Self-Propelled | D74: 1 | F74: Acre | G74: 11.93095106 | I74: 11.93095106 | J74: 0 | K74: 0 | M74: 0 | N74: =J74*L74 -> 0 | O74: 11.93095106 | P74: 0 | Q74: 1431.714127 | R74: 0
C75: Implements | D75: 1 | F75: Acre | G75: 17.28894002 | I75: 17.28894002 | J75: 0 | K75: 0 | M75: 0 | N75: =J75*L75 -> 0 | O75: 17.28894002 | P75: 0 | Q75: 2074.672803 | R75: 0
B76: Equipment Investment
C77: Pickup/General Use Equipment | D77: 23.485875 | F77: Dollars | G77: 0.055 | I77: 1.291723125 | J77: =E77*H77 -> 0 | K77: 0 | M77: 0 | N77: =J77*L77 -> 0 | O77: 1.291723125 | P77: =+J77-N77 -> 0 | Q77: 155.006775 | R77: =+J77*E$7 -> 0
C78: Irrigation Equipment | D78: 291.6666667 | F78: Dollars | G78: 0.055 | I78: 16.04166667 | J78: 0 | K78: 0 | M78: 0 | N78: =J78*L78 -> 0 | O78: 16.04166667 | P78: 0 | Q78: 1925 | R78: 0
C79: Tractors/Self-Propelled | D79: 92.94595742 | F79: Dollars | G79: 0.055 | I79: 5.112027658 | J79: 0 | K79: 0 | M79: 0 | N79: =J79*L79 -> 0 | O79: 5.112027658 | P79: 0 | Q79: 613.443319 | R79: 0
C80: Implements | D80: 73.95824343 | F80: Dollars | G80: 0.055 | I80: 4.067703388 | J80: 0 | K80: 0 | M80: 0 | N80: =J80*L80 -> 0 | O80: 4.067703388 | P80: 0 | Q80: 488.1244066 | R80: 0
B81: Salaried Labor | D81: 1 | F81: Acre | G81: 0 | I81: 0 | J81: 0 | K81: 0 | M81: 0 | N81: =J81*L81 -> 0 | O81: 0 | P81: =+J81-N81 -> 0 | Q81: 0 | R81: =+J81*E$7 -> 0
B82: Management Fee, Owner/Operator Labor | D82: 1 | F82: Acre | G82: 0 | I82: 0 | J82: 0 | K82: 0 | M82: 0 | N82: 0 | O82: 0 | P82: 0 | Q82: 0 | R82: 0
B83: Allocated Establishment Cost | D83: 1 | F83: Acre | G83: 0 | I83: 0 | J83: 0 | K83: 0 | M83: 0 | N83: 0 | O83: 0 | P83: 0 | Q83: 0 | R83: 0
B84: Cash Rent - Irrigated Cotton | D84: 1 | F84: Acre | G84: 75 | I84: 75 | J84: 0 | K84: 0 | M84: 0 | N84: 0 | O84: 75 | P84: 0 | Q84: 9000 | R84: 0
B85: Property Taxes | D85: 1 | F85: Acre | G85: 0 | I85: 0 | J85: 0 | K85: 0 | M85: 0 | N85: 0 | O85: 0 | P85: 0 | Q85: 0 | R85: 0
B86: Whole Farm Insurance | D86: 1 | F86: Acre | G86: 0 | I86: 0 | J86: 0 | K86: 0 | M86: 0 | N86: 0 | O86: 0 | P86: 0 | Q86: 0 | R86: 0
D87: 1 | G87: 0 | I87: 0 | J87: 0 | K87: 0 | M87: 0 | N87: 0 | O87: 0 | P87: 0 | Q87: 0 | R87: 0
D88: 1 | G88: 0 | I88: 0 | J88: =E88*H88 -> 0 | K88: 0 | M88: 0 | N88: 0 | O88: 0 | P88: 0 | Q88: 0 | R88: 0
A89: Total Fixed Costs | I89: 144.0858369 | J89: =+SUM(J72:J88) -> 0 | M89: 0 | N89: =+SUM(N72:N88) -> 0 | O89: 144.0858369 | P89: =+SUM(P72:P88) -> 0 | Q89: 17290.30043 | R89: =+SUM(R72:R88) -> 0
A90: Total Specified Costs | I90: 676.8257139 | J90: =+J66+J89 -> 0 | M90: 0 | N90: =+N66+N89 -> 0 | O90: 676.8257139 | P90: =+P66+P89 -> 0 | Q90: 81219.08567 | R90: =+R66+R89 -> 0
A92: Returns Above Specified Costs | I92: -108.8257139 | J92: =+J14-J90 -> 0 | M92: 0 | N92: =+N14-N90 -> 0 | O92: -108.8257139 | P92: =+P14-P90 -> 0 | Q92: -13059.08567 | R92: =+R14-R90 -> 0
A94: Breakeven Price to Cover Total Costs | G94: 0.6960321424 | H94: =IF(E10=0,"n/a",(YTotExp-(YTotExp+YTotRet-J10))/E10) -> n/a | I94: Pound
D96: Example Breakeven Prices
B97: Example | C97: Example | D97: To Cover | G97: To Cover
B98: Yield | C98: Yield | D98: Variable | G98: Total
B99: Percent | C99: Pound | D99: Costs | G99: Costs
B100: 0.75 | C100: 600 | D100: 0.687899795 | G100: 0.9280428566
B101: 0.9 | C101: 720 | D101: 0.5732498292 | G101: 0.7733690471
B102: 1 | C102: 800 | D102: 0.5159248463 | G102: 0.6960321424
B103: 1.1 | C103: 880 | D103: 0.4690225875 | G103: 0.6327564931
B104: 1.25 | C104: 1000 | D104: 0.412739877 | G104: 0.5568257139
D106: Your Breakeven Prices
B107: Your | C107: Your | E107: To Cover | H107: To Cover
B108: Yield | C108: Yield | E108: Variable | H108: Total
B109: Percent | C109: Pound | E109: Costs | H109: Costs
B110: 0.75 | C110: =E10*YPER1 -> 0 | E110: =IF($E$10=0,0,(YVarExp-(YTotExp+YTotRet-J10))/($E$10*YPER1)) -> 0 | H110: =IF($E$10=0,0,(YTotExp-(YTotExp+YTotRet-J10))/($E$10*YPER1)) -> 0
B111: 0.9 | C111: =E10*YPER2 -> 0 | E111: =IF($E$10=0,0,(YVarExp-(YTotExp+YTotRet-J10))/($E$10*YPER2)) -> 0 | H111: =IF($E$10=0,0,(YTotExp-(YTotExp+YTotRet-J10))/($E$10*YPER2)) -> 0
B112: 1 | C112: =+E10 -> 0 | E112: =IF($E$10=0,0,(YVarExp-(YTotExp+YTotRet-J10))/($E$10*YPER3)) -> 0 | H112: =IF($E$10=0,0,(YTotExp-(YTotExp+YTotRet-J10))/($E$10*YPER3)) -> 0
B113: 1.1 | C113: =E10*YPER4 -> 0 | E113: =IF($E$10=0,0,(YVarExp-(YTotExp+YTotRet-J10))/($E$10*YPER4)) -> 0 | H113: =IF($E$10=0,0,(YTotExp-(YTotExp+YTotRet-J10))/($E$10*YPER4)) -> 0
B114: 1.25 | C114: =E10*YPER5 -> 0 | E114: =IF($E$10=0,0,(YVarExp-(YTotExp+YTotRet-J10))/($E$10*YPER5)) -> 0 | H114: =IF($E$10=0,0,(YTotExp-(YTotExp+YTotRet-J10))/($E$10*YPER5)) -> 0
A116: Developed by Extension Economists, Texas A&M AgriLife Extension Service, budgets@tamu.edu.
A118: Information presented is prepared solely as a general guide and not intended to recognize or predict the costs and returns from any one operation. Brand names are mentioned only as examples and imply no endorsement.

Sheet Peanuts
A1: Projections for Planning Purposes Only -- Not to be Used without Updating
A2: 2018 Estimated Costs and Returns per Acre
A3: Sprinkler Irrigated Peanuts
A4: Enter your name for this budget in the cell above.
A5: Enter Your Values in the cells highlighed in MAROON.
E6: Your Acres | R6: Your
C7: Crop Acres | D7: 120 | L7: Your | Q7: Enterprise | R7: Enterprise
E8: Your | H8: Your | I8: Cash | J8: Your | K8: Landlord | L8: Landlord | N8: Your | P8: Your | Q8: Total | R8: Total
A9: REVENUE | D9: Quantity | E9: Quantity | F9: Units | G9: $/Unit | H9: $/Unit | I9: Total | J9: Total | K9: Share | L9: Share | M9: Landlord | N9: Landlord | O9: Tenant | P9: Tenant | Q9: (120 acres) | R9: ="(" & E7 & " acres)" -> ( acres)
B10: Runner Peanuts | D10: 2 | F10: Ton | G10: 390 | I10: 780 | J10: =E10*H10 -> 0 | K10: 0 | M10: 0 | N10: =J10*L10 -> 0 | O10: 780 | P10: =+J10-N10 -> 0 | Q10: 93600 | R10: =+J10*E$7 -> 0
D11: 0 | G11: 0 | I11: 0 | J11: 0 | K11: 0 | M11: 0 | N11: 0 | O11: 0 | P11: =+J11-N11 -> 0 | Q11: 0 | R11: 0
D12: 0 | G12: 0 | I12: 0 | J12: 0 | K12: 0 | M12: 0 | N12: 0 | O12: 0 | P12: 0 | Q12: 0 | R12: 0
A13: Total Revenue | I13: 780 | J13: =SUM(J10:J12) -> 0 | M13: 0 | N13: =SUM(N10:N12) -> 0 | O13: 780 | P13: =SUM(P10:P12) -> 0 | Q13: 93600 | R13: =SUM(R10:R12) -> 0
Q14: Enterprise | R14: Enterprise
A15: VARIABLE COSTS | D15: Quantity | E15: Quantity | F15: Units | G15: $/Unit | H15: $/Unit | I15: Total | J15: Total | K15: Share | L15: Share | M15: Landlord | N15: Landlord | O15: Tenant | P15: Tenant | Q15: Total | R15: Total
A16: Production Costs
B17: Custom
C18: Fungicide Application | D18: 2 | F18: Acre | G18: 5.5 | I18: 11 | J18: =E18*H18 -> 0 | K18: 0 | M18: 0 | N18: =J18*L18 -> 0 | O18: 11 | P18: =+J18-N18 -> 0 | Q18: 1320 | R18: =+J18*E$7 -> 0
C19: Drying - Peanut | D19: 2 | F19: Ton | G19: 20 | I19: 40 | J19: 0 | K19: 0 | M19: 0 | N19: 0 | O19: 40 | P19: 0 | Q19: 4800 | R19: 0
B20: Fertilizer
C21: Fertilizer (N) | D21: 40 | F21: Pound | G21: 0.41 | I21: 16.4 | J21: 0 | K21: 0 | M21: 0 | N21: 0 | O21: 16.4 | P21: 0 | Q21: 1968 | R21: 0
C22: Fertilizer (P) | D22: 40 | F22: Pound | G22: 0.34 | I22: 13.6 | J22: 0 | K22: 0 | M22: 0 | N22: 0 | O22: 13.6 | P22: 0 | Q22: 1632 | R22: 0
B23: Herbicide
C24: Prowl | D24: 1.5 | F24: Pint | G24: 3.4375 | I24: 5.15625 | J24: 0 | K24: 0 | M24: 0 | N24: 0 | O24: 5.15625 | P24: 0 | Q24: 618.75 | R24: 0
C25: Valor SX | D25: 2 | F25: Ounce | G25: 4.75 | I25: 9.5 | J25: 0 | K25: 0 | M25: 0 | N25: 0 | O25: 9.5 | P25: 0 | Q25: 1140 | R25: 0
C26: Cobra | D26: 12.5 | F26: Ounce | G26: 1.484375 | I26: 18.5546875 | J26: 0 | K26: 0 | M26: 0 | N26: 0 | O26: 18.5546875 | P26: 0 | Q26: 2226.5625 | R26: 0
B27: Seed
C28: Peanut Seed | D28: 90 | F28: Pound | G28: 0.85 | I28: 76.5 | J28: 0 | K28: 0 | M28: 0 | N28: 0 | O28: 76.5 | P28: 0 | Q28: 9180 | R28: 0
B29: Fungicides
C30: Folicular Fungicide-Abound | D30: 24.5 | F30: Ounce | G30: 1.405859375 | I30: 34.44355469 | J30: 0 | K30: 0 | M30: 0 | N30: 0 | O30: 34.44355469 | P30: 0 | Q30: 4133.226562 | R30: 0
C31: Fungicide - Bravo | D31: 1.5 | F31: Pint | G31: 3.5625 | I31: 5.34375 | J31: 0 | K31: 0 | M31: 0 | N31: 0 | O31: 5.34375 | P31: 0 | Q31: 641.25 | R31: 0
D32: 0 | G32: 0 | I32: 0 | J32: 0 | K32: 0 | M32: 0 | N32: 0 | O32: 0 | P32: 0 | Q32: 0 | R32: 0
D33: 0 | G33: 0 | I33: 0 | J33: 0 | K33: 0 | M33: 0 | N33: 0 | O33: 0 | P33: 0 | Q33: 0 | R33: 0
D34: 0 | G34: 0 | I34: 0 | J34: =E34*H34 -> 0 | K34: 0 | M34: 0 | N34: =J34*L34 -> 0 | O34: 0 | P34: =+J34-N34 -> 0 | Q34: 0 | R34: =+J34*E$7 -> 0
B35: Irrigation
C36: Energy Cost | D36: 18.95 | F36: AcreInch | G36: 1.200036706 | I36: 22.74069559 | J36: =E36*H36 -> 0 | K36: 0 | M36: 0 | N36: =J36*L36 -> 0 | O36: 22.74069559 | P36: =+J36-N36 -> 0 | Q36: 2728.883471 | R36: =+J36*E$7 -> 0
C37: Irrigation Labor | D37: 1.208 | F37: Hour | G37: 10 | I37: 12.08 | J37: 0 | K37: 0 | M37: 0 | N37: 0 | O37: 12.08 | P37: 0 | Q37: 1449.6 | R37: 0
B38: Machinery Labor
C39: Tractors/Self-Propelled | D39: 1.96 | F39: Hour | G39: 10 | I39: 19.6 | J39: =E39*H39 -> 0 | K39: 0 | M39: 0 | N39: =J39*L39 -> 0 | O39: 19.6 | P39: =+J39-N39 -> 0 | Q39: 2352 | R39: =+J39*E$7 -> 0
C40: Other Labor | D40: 2.35 | F40: Hour | G40: 10 | I40: 23.5 | J40: =E40*H40 -> 0 | K40: 0 | M40: 0 | N40: =J40*L40 -> 0 | O40: 23.5 | P40: =+J40-N40 -> 0 | Q40: 2820 | R40: =+J40*E$7 -> 0
B42: Diesel Fuel
C43: Pickup/General Use Equipment | D43: 1 | F43: Acre | G43: 0 | I43: 0 | J43: =E43*H43 -> 0 | K43: 0 | M43: 0 | N43: =J43*L43 -> 0 | O43: 0 | P43: =+J43-N43 -> 0 | Q43: 0 | R43: =+J43*E$7 -> 0
C44: Tractors/Self-Propelled | D44: 13.37 | F44: Gallon | G44: 2.1 | I44: 28.077 | J44: =E44*H44 -> 0 | K44: 0 | M44: 0 | N44: =J44*L44 -> 0 | O44: 28.077 | P44: =+J44-N44 -> 0 | Q44: 3369.24 | R44: =+J44*E$7 -> 0
B46: Gasoline
C47: Pickup/General Use Equipment | D47: 1 | F47: Acre | G47: 6.375 | I47: 6.375 | J47: =E47*H47 -> 0 | K47: 0 | M47: 0 | N47: =J47*L47 -> 0 | O47: 6.375 | P47: =+J47-N47 -> 0 | Q47: 765 | R47: =+J47*E$7 -> 0
C48: Tractors/Self-Propelled | D48: 0 | F48: Gallon | G48: 2.25 | I48: 0 | J48: =E48*H48 -> 0 | K48: 0 | M48: 0 | N48: =J48*L48 -> 0 | O48: 0 | P48: =+J48-N48 -> 0 | Q48: 0 | R48: =+J48*E$7 -> 0
B50: Repairs & Maintenance
C51: Pickup/General Use Equipment | D51: 1 | F51: Acre | G51: 1.710625 | I51: 1.710625 | J51: =E51*H51 -> 0 | K51: 0 | M51: 0 | N51: =J51*L51 -> 0 | O51: 1.710625 | P51: =+J51-N51 -> 0 | Q51: 205.275 | R51: =+J51*E$7 -> 0
C52: Irrigation Equipment | D52: 1 | F52: Acre | G52: 16.670315 | I52: 16.670315 | J52: 0 | K52: 0 | M52: 0 | N52: 0 | O52: 16.670315 | P52: 0 | Q52: 2000.4378 | R52: 0
C53: Tractors/Self-Propelled | D53: 1 | F53: Acre | G53: 26.08760409 | I53: 26.08760409 | J53: 0 | K53: 0 | M53: 0 | N53: 0 | O53: 26.08760409 | P53: 0 | Q53: 3130.51249 | R53: 0
C54: Implements | D54: 1 | F54: Acre | G54: 22.2451823 | I54: 22.2451823 | J54: 0 | K54: 0 | M54: 0 | N54: 0 | O54: 22.2451823 | P54: 0 | Q54: 2669.421877 | R54: 0
I55: 0 | J55: 0 | K55: 0 | M55: 0 | N55: 0 | O55: 0 | P55: 0 | Q55: 0 | R55: 0
I56: 0 | J56: 0 | K56: 0 | M56: 0 | N56: 0 | O56: 0 | P56: 0 | Q56: 0 | R56: 0
B57: Interest on Credit Line | G57: 0.0575 | I57: 10.03650359 | J57: =+SUM(J17:J56)/2*H57 -> 0 | M57: 0 | N57: =+SUM(N17:N56)/2*L57 -> 0 | O57: 10.03650359 | P57: =+SUM(P17:P56)/2*L57 -> 0 | Q57: 1204.380431 | R57: =+J57*E$7 -> 0
A58: Total Variable Costs | I58: 419.6211678 | J58: =SUM(J18:J57) -> 0 | M58: 0 | N58: =SUM(N18:N57) -> 0 | O58: 419.6211678 | P58: =SUM(P18:P57) -> 0 | Q58: 50354.54013 | R58: =SUM(R18:R57) -> 0
A59: Planned Returns Above Variable Costs: | I59: 360.3788322 | J59: =+J13-J58 -> 0 | M59: 0 | N59: =+N13-N58 -> 0 | O59: 360.3788322 | P59: =+P13-P58 -> 0 | Q59: 43245.45987 | R59: =+R13-R58 -> 0
B60: Breakeven Price to Cover Variable Costs | G60: 209.8105839 | H60: =IF(E10=0,"n/a",(YVarExp-(YTotExp+YTotRet-J10))/E10) -> n/a | I60: Ton
Q61: Enterprise | R61: Enterprise
A62: FIXED COSTS | D62: Quantity | E62: Quantity | F62: Units | G62: $/Unit | H62: $/Unit | I62: Total | J62: Total | K62: Share | L62: Share | M62: Landlord | N62: Landlord | O62: Tenant | P62: Tenant | Q62: Total | R62: Total
B63: Machinery Depreciation
C64: Pickup/General Use Equipment | D64: 1 | F64: Acre | G64: 2.374917708 | I64: 2.374917708 | J64: =E64*H64 -> 0 | K64: 0 | M64: 0 | N64: =J64*L64 -> 0 | O64: 2.374917708 | P64: =+J64-N64 -> 0 | Q64: 284.990125 | R64: =+J64*E$7 -> 0
C65: Irrigation Equipment | D65: 1 | F65: Acre | G65: 10 | I65: 10 | J65: 0 | K65: 0 | M65: 0 | N65: =J65*L65 -> 0 | O65: 10 | P65: 0 | Q65: 1200 | R65: 0
C66: Tractors/Self-Propelled | D66: 1 | F66: Acre | G66: 26.95719089 | I66: 26.95719089 | J66: 0 | K66: 0 | M66: 0 | N66: =J66*L66 -> 0 | O66: 26.95719089 | P66: 0 | Q66: 3234.862907 | R66: 0
C67: Implements | D67: 1 | F67: Acre | G67: 28.32085326 | I67: 28.32085326 | J67: 0 | K67: 0 | M67: 0 | N67: =J67*L67 -> 0 | O67: 28.32085326 | P67: 0 | Q67: 3398.502391 | R67: 0
B68: Equipment Investment
C69: Pickup/General Use Equipment | D69: 16.63582813 | F69: Dollars | G69: 0.055 | I69: 0.9149705469 | J69: =E69*H69 -> 0 | K69: 0 | M69: 0 | N69: =J69*L69 -> 0 | O69: 0.9149705469 | P69: =+J69-N69 -> 0 | Q69: 109.7964656 | R69: =+J69*E$7 -> 0
C70: Irrigation Equipment | D70: 291.6666667 | F70: Dollars | G70: 0.055 | I70: 16.04166667 | J70: 0 | K70: 0 | M70: 0 | N70: =J70*L70 -> 0 | O70: 16.04166667 | P70: 0 | Q70: 1925 | R70: 0
C71: Tractors/Self-Propelled | D71: 210.0052129 | F71: Dollars | G71: 0.055 | I71: 11.55028671 | J71: 0 | K71: 0 | M71: 0 | N71: =J71*L71 -> 0 | O71: 11.55028671 | P71: 0 | Q71: 1386.034405 | R71: 0
C72: Implements | D72: 332.9997807 | F72: Dollars | G72: 0.055 | I72: 18.31498794 | J72: 0 | K72: 0 | M72: 0 | N72: =J72*L72 -> 0 | O72: 18.31498794 | P72: 0 | Q72: 2197.798553 | R72: 0
B73: Salaried Labor | D73: 1 | F73: Acre | G73: 0 | I73: 0 | J73: 0 | K73: 0 | M73: 0 | N73: =J73*L73 -> 0 | O73: 0 | P73: =+J73-N73 -> 0 | Q73: 0 | R73: =+J73*E$7 -> 0
B74: Management Fee, Owner/Operator Labor | D74: 1 | F74: Acre | G74: 0 | I74: 0 | J74: 0 | K74: 0 | M74: 0 | N74: 0 | O74: 0 | P74: 0 | Q74: 0 | R74: 0
B75: Allocated Establishment Cost | D75: 1 | F75: Acre | G75: 0 | I75: 0 | J75: 0 | K75: 0 | M75: 0 | N75: 0 | O75: 0 | P75: 0 | Q75: 0 | R75: 0
B76: Cash Rent - Peanuts | D76: 1 | F76: Acre | G76: 75 | I76: 75 | J76: 0 | K76: 0 | M76: 0 | N76: 0 | O76: 75 | P76: 0 | Q76: 9000 | R76: 0
B77: Property Taxes | D77: 1 | F77: Acre | G77: 0 | I77: 0 | J77: 0 | K77: 0 | M77: 0 | N77: 0 | O77: 0 | P77: 0 | Q77: 0 | R77: 0
B78: Whole Farm Insurance | D78: 1 | F78: Acre | G78: 0 | I78: 0 | J78: 0 | K78: 0 | M78: 0 | N78: 0 | O78: 0 | P78: 0 | Q78: 0 | R78: 0
D79: 1 | G79: 0 | I79: 0 | J79: 0 | K79: 0 | M79: 0 | N79: 0 | O79: 0 | P79: 0 | Q79: 0 | R79: 0
D80: 1 | G80: 0 | I80: 0 | J80: =E80*H80 -> 0 | K80: 0 | M80: 0 | N80: 0 | O80: 0 | P80: 0 | Q80: 0 | R80: 0
A81: Total Fixed Costs | I81: 189.4748737 | J81: =+SUM(J64:J80) -> 0 | M81: 0 | N81: =+SUM(N64:N80) -> 0 | O81: 189.4748737 | P81: =+SUM(P64:P80) -> 0 | Q81: 22736.98485 | R81: =+SUM(R64:R80) -> 0
A82: Total Specified Costs | I82: 609.0960415 | J82: =+J58+J81 -> 0 | M82: 0 | N82: =+N58+N81 -> 0 | O82: 609.0960415 | P82: =+P58+P81 -> 0 | Q82: 73091.52498 | R82: =+R58+R81 -> 0
A84: Returns Above Specified Costs | I84: 170.9039585 | J84: =+J13-J82 -> 0 | M84: 0 | N84: =+N13-N82 -> 0 | O84: 170.9039585 | P84: =+P13-P82 -> 0 | Q84: 20508.47502 | R84: =+R13-R82 -> 0
A86: Breakeven Price to Cover Total Costs | G86: 304.5480207 | H86: =IF(E10=0,"n/a",(YTotExp-(YTotExp+YTotRet-J10))/E10) -> n/a | I86: Ton
D88: Example Breakeven Prices
B89: Example | C89: Example | D89: To Cover | G89: To Cover
B90: Yield | C90: Yield | D90: Variable | G90: Total
B91: Percent | C91: Ton | D91: Costs | G91: Costs
B92: 0.75 | C92: 1.5 | D92: 279.7474452 | G92: 406.0640277
B93: 0.9 | C93: 1.8 | D93: 233.122871 | G93: 338.3866897
B94: 1 | C94: 2 | D94: 209.8105839 | G94: 304.5480207
B95: 1.1 | C95: 2.2 | D95: 190.7368944 | G95: 276.861837
B96: 1.25 | C96: 2.5 | D96: 167.8484671 | G96: 243.6384166
D98: Your Breakeven Prices
B99: Your | C99: Your | E99: To Cover | H99: To Cover
B100: Yield | C100: Yield | E100: Variable | H100: Total
B101: Percent | C101: Ton | E101: Costs | H101: Costs
B102: 0.75 | C102: =E10*YPER1 -> 0 | E102: =IF($E$10=0,0,(YVarExp-(YTotExp+YTotRet-J10))/($E$10*YPER1)) -> 0 | H102: =IF($E$10=0,0,(YTotExp-(YTotExp+YTotRet-J10))/($E$10*YPER1)) -> 0
B103: 0.9 | C103: =E10*YPER2 -> 0 | E103: =IF($E$10=0,0,(YVarExp-(YTotExp+YTotRet-J10))/($E$10*YPER2)) -> 0 | H103: =IF($E$10=0,0,(YTotExp-(YTotExp+YTotRet-J10))/($E$10*YPER2)) -> 0
B104: 1 | C104: =+E10 -> 0 | E104: =IF($E$10=0,0,(YVarExp-(YTotExp+YTotRet-J10))/($E$10*YPER3)) -> 0 | H104: =IF($E$10=0,0,(YTotExp-(YTotExp+YTotRet-J10))/($E$10*YPER3)) -> 0
B105: 1.1 | C105: =E10*YPER4 -> 0 | E105: =IF($E$10=0,0,(YVarExp-(YTotExp+YTotRet-J10))/($E$10*YPER4)) -> 0 | H105: =IF($E$10=0,0,(YTotExp-(YTotExp+YTotRet-J10))/($E$10*YPER4)) -> 0
B106: 1.25 | C106: =E10*YPER5 -> 0 | E106: =IF($E$10=0,0,(YVarExp-(YTotExp+YTotRet-J10))/($E$10*YPER5)) -> 0 | H106: =IF($E$10=0,0,(YTotExp-(YTotExp+YTotRet-J10))/($E$10*YPER5)) -> 0
A108: Developed by Extension Economists, Texas A&M AgriLife Extension Service, budgets@tamu.edu.
A110: Information presented is prepared solely as a general guide and not intended to recognize or predict the costs and returns from any one operation. Brand names are mentioned only as examples and imply no endorsement.

Sheet SorghumDryland
A1: Projections for Planning Purposes Only -- Not to be Used without Updating
A2: 2018 Estimated Costs and Returns per Acre
A3: Dryland Sorghum
A4: Enter your name for this budget in the cell above.
A5: Enter Your Values in the cells highlighed in MAROON.
E6: Your Acres | R6: Your
C7: Crop Acres | D7: 640 | L7: Your | Q7: Enterprise | R7: Enterprise
E8: Your | H8: Your | I8: Cash | J8: Your | K8: Landlord | L8: Landlord | N8: Your | P8: Your | Q8: Total | R8: Total
A9: REVENUE | D9: Quantity | E9: Quantity | F9: Units | G9: $/Unit | H9: $/Unit | I9: Total | J9: Total | K9: Share | L9: Share | M9: Landlord | N9: Landlord | O9: Tenant | P9: Tenant | Q9: (640 acres) | R9: ="(" & E7 & " acres)" -> ( acres)
B10: Grain Sorghum | D10: 22 | F10: CWT | G10: 5.77 | I10: 126.94 | J10: =E10*H10 -> 0 | K10: 0 | M10: 0 | N10: =J10*L10 -> 0 | O10: 126.94 | P10: =+J10-N10 -> 0 | Q10: 81241.6 | R10: =+J10*E$7 -> 0
D11: 0 | G11: 0 | I11: 0 | J11: 0 | K11: 0 | M11: 0 | N11: 0 | O11: 0 | P11: =+J11-N11 -> 0 | Q11: 0 | R11: 0
D12: 0 | G12: 0 | I12: 0 | J12: 0 | K12: 0 | M12: 0 | N12: 0 | O12: 0 | P12: 0 | Q12: 0 | R12: 0
A13: Total Revenue | I13: 126.94 | J13: =SUM(J10:J12) -> 0 | M13: 0 | N13: =SUM(N10:N12) -> 0 | O13: 126.94 | P13: =SUM(P10:P12) -> 0 | Q13: 81241.6 | R13: =SUM(R10:R12) -> 0
Q14: Enterprise | R14: Enterprise
A15: VARIABLE COSTS | D15: Quantity | E15: Quantity | F15: Units | G15: $/Unit | H15: $/Unit | I15: Total | J15: Total | K15: Share | L15: Share | M15: Landlord | N15: Landlord | O15: Tenant | P15: Tenant | Q15: Total | R15: Total
A16: Production Costs
B17: Herbicide
C18: Atrazine | D18: 1 | F18: Quart | G18: 4.125 | I18: 4.125 | J18: =E18*H18 -> 0 | K18: 0 | M18: 0 | N18: =J18*L18 -> 0 | O18: 4.125 | P18: =+J18-N18 -> 0 | Q18: 2640 | R18: =+J18*E$7 -> 0
B19: Seed
C20: Grain Sorghum Seed | D20: 3 | F20: Pound | G20: 2.5 | I20: 7.5 | J20: 0 | K20: 0 | M20: 0 | N20: 0 | O20: 7.5 | P20: 0 | Q20: 4800 | R20: 0
B21: Custom
C22: Custom Harvest Sorghum | D22: 1 | F22: Acre | G22: 24 | I22: 24 | J22: 0 | K22: 0 | M22: 0 | N22: 0 | O22: 24 | P22: 0 | Q22: 15360 | R22: 0
C23: Custom Haul Sorghum | D23: 22 | F23: CWT | G23: 0.24 | I23: 5.28 | J23: 0 | K23: 0 | M23: 0 | N23: 0 | O23: 5.28 | P23: 0 | Q23: 3379.2 | R23: 0
B24: Miscellaneous
C25: Insurance - Grain Sorghum | D25: 1 | F25: Acre | G25: 8 | I25: 8 | J25: 0 | K25: 0 | M25: 0 | N25: 0 | O25: 8 | P25: 0 | Q25: 5120 | R25: 0
D26: 0 | G26: 0 | I26: 0 | J26: 0 | K26: 0 | M26: 0 | N26: 0 | O26: 0 | P26: 0 | Q26: 0 | R26: 0
D27: 0 | G27: 0 | I27: 0 | J27: 0 | K27: 0 | M27: 0 | N27: 0 | O27: 0 | P27: 0 | Q27: 0 | R27: 0
D28: 0 | G28: 0 | I28: 0 | J28: =E28*H28 -> 0 | K28: 0 | M28: 0 | N28: =J28*L28 -> 0 | O28: 0 | P28: =+J28-N28 -> 0 | Q28: 0 | R28: =+J28*E$7 -> 0
B29: Machinery Labor
C30: Tractors/Self-Propelled | D30: 0.82 | F30: Hour | G30: 10 | I30: 8.2 | J30: =E30*H30 -> 0 | K30: 0 | M30: 0 | N30: =J30*L30 -> 0 | O30: 8.2 | P30: =+J30-N30 -> 0 | Q30: 5248 | R30: =+J30*E$7 -> 0
C31: Other Labor | D31: 0.98 | F31: Hour | G31: 10 | I31: 9.8 | J31: =E31*H31 -> 0 | K31: 0 | M31: 0 | N31: =J31*L31 -> 0 | O31: 9.8 | P31: =+J31-N31 -> 0 | Q31: 6272 | R31: =+J31*E$7 -> 0
B33: Diesel Fuel
C34: Pickup/General Use Equipment | D34: 1 | F34: Acre | G34: 0 | I34: 0 | J34: =E34*H34 -> 0 | K34: 0 | M34: 0 | N34: =J34*L34 -> 0 | O34: 0 | P34: =+J34-N34 -> 0 | Q34: 0 | R34: =+J34*E$7 -> 0
C35: Tractors/Self-Propelled | D35: 5.59 | F35: Gallon | G35: 2.1 | I35: 11.739 | J35: =E35*H35 -> 0 | K35: 0 | M35: 0 | N35: =J35*L35 -> 0 | O35: 11.739 | P35: =+J35-N35 -> 0 | Q35: 7512.96 | R35: =+J35*E$7 -> 0
B37: Gasoline
C38: Pickup/General Use Equipment | D38: 1 | F38: Acre | G38: 2.109375 | I38: 2.109375 | J38: =E38*H38 -> 0 | K38: 0 | M38: 0 | N38: =J38*L38 -> 0 | O38: 2.109375 | P38: =+J38-N38 -> 0 | Q38: 1350 | R38: =+J38*E$7 -> 0
C39: Tractors/Self-Propelled | D39: 0 | F39: Gallon | G39: 2.25 | I39: 0 | J39: =E39*H39 -> 0 | K39: 0 | M39: 0 | N39: =J39*L39 -> 0 | O39: 0 | P39: =+J39-N39 -> 0 | Q39: 0 | R39: =+J39*E$7 -> 0
B41: Repairs & Maintenance
C42: Pickup/General Use Equipment | D42: 1 | F42: Acre | G42: 0.566015625 | I42: 0.566015625 | J42: =E42*H42 -> 0 | K42: 0 | M42: 0 | N42: =J42*L42 -> 0 | O42: 0.566015625 | P42: =+J42-N42 -> 0 | Q42: 362.25 | R42: =+J42*E$7 -> 0
C43: Irrigation Equipment | D43: 1 | F43: Acre | G43: 0 | I43: 0 | J43: 0 | K43: 0 | M43: 0 | N43: 0 | O43: 0 | P43: 0 | Q43: 0 | R43: 0
C44: Tractors/Self-Propelled | D44: 1 | F44: Acre | G44: 10.89636577 | I44: 10.89636577 | J44: 0 | K44: 0 | M44: 0 | N44: 0 | O44: 10.89636577 | P44: 0 | Q44: 6973.67409 | R44: 0
C45: Implements | D45: 1 | F45: Acre | G45: 13.35616875 | I45: 13.35616875 | J45: 0 | K45: 0 | M45: 0 | N45: 0 | O45: 13.35616875 | P45: 0 | Q45: 8547.947999 | R45: 0
I46: 0 | J46: 0 | K46: 0 | M46: 0 | N46: 0 | O46: 0 | P46: 0 | Q46: 0 | R46: 0
I47: 0 | J47: 0 | K47: 0 | M47: 0 | N47: 0 | O47: 0 | P47: 0 | Q47: 0 | R47: 0
B48: Interest on Credit Line | G48: 0.0575 | I48: 1.992121797 | J48: =+SUM(J17:J47)/2*H48 -> 0 | M48: 0 | N48: =+SUM(N17:N47)/2*L48 -> 0 | O48: 1.992121797 | P48: =+SUM(P17:P47)/2*L48 -> 0 | Q48: 1274.95795 | R48: =+J48*E$7 -> 0
A49: Total Variable Costs | I49: 107.5640469 | J49: =SUM(J18:J48) -> 0 | M49: 0 | N49: =SUM(N18:N48) -> 0 | O49: 107.5640469 | P49: =SUM(P18:P48) -> 0 | Q49: 68840.99004 | R49: =SUM(R18:R48) -> 0
A50: Planned Returns Above Variable Costs: | I50: 19.37595306 | J50: =+J13-J49 -> 0 | M50: 0 | N50: =+N13-N49 -> 0 | O50: 19.37595306 | P50: =+P13-P49 -> 0 | Q50: 12400.60996 | R50: =+R13-R49 -> 0
B51: Breakeven Price to Cover Variable Costs | G51: 4.889274861 | H51: =IF(E10=0,"n/a",(YVarExp-(YTotExp+YTotRet-J10))/E10) -> n/a | I51: CWT
Q52: Enterprise | R52: Enterprise
A53: FIXED COSTS | D53: Quantity | E53: Quantity | F53: Units | G53: $/Unit | H53: $/Unit | I53: Total | J53: Total | K53: Share | L53: Share | M53: Landlord | N53: Landlord | O53: Tenant | P53: Tenant | Q53: Total | R53: Total
B54: Machinery Depreciation
C55: Pickup/General Use Equipment | D55: 1 | F55: Acre | G55: 0.7858183594 | I55: 0.7858183594 | J55: =E55*H55 -> 0 | K55: 0 | M55: 0 | N55: =J55*L55 -> 0 | O55: 0.7858183594 | P55: =+J55-N55 -> 0 | Q55: 502.92375 | R55: =+J55*E$7 -> 0
C56: Tractors/Self-Propelled | D56: 1 | F56: Acre | G56: 11.25957796 | I56: 11.25957796 | J56: 0 | K56: 0 | M56: 0 | N56: =J56*L56 -> 0 | O56: 11.25957796 | P56: 0 | Q56: 7206.129893 | R56: 0
C57: Implements | D57: 1 | F57: Acre | G57: 16.94492462 | I57: 16.94492462 | J57: 0 | K57: 0 | M57: 0 | N57: =J57*L57 -> 0 | O57: 16.94492462 | P57: 0 | Q57: 10844.75176 | R57: 0
B58: Equipment Investment
C59: Pickup/General Use Equipment | D59: 5.504501953 | F59: Dollars | G59: 0.055 | I59: 0.3027476074 | J59: =E59*H59 -> 0 | K59: 0 | M59: 0 | N59: =J59*L59 -> 0 | O59: 0.3027476074 | P59: =+J59-N59 -> 0 | Q59: 193.7584688 | R59: =+J59*E$7 -> 0
C60: Tractors/Self-Propelled | D60: 87.71574441 | F60: Dollars | G60: 0.055 | I60: 4.824365943 | J60: 0 | K60: 0 | M60: 0 | N60: =J60*L60 -> 0 | O60: 4.824365943 | P60: 0 | Q60: 3087.594203 | R60: 0
C61: Implements | D61: 72.48662198 | F61: Dollars | G61: 0.055 | I61: 3.986764209 | J61: 0 | K61: 0 | M61: 0 | N61: =J61*L61 -> 0 | O61: 3.986764209 | P61: 0 | Q61: 2551.529094 | R61: 0
B62: Salaried Labor | D62: 1 | F62: Acre | G62: 0 | I62: 0 | J62: 0 | K62: 0 | M62: 0 | N62: =J62*L62 -> 0 | O62: 0 | P62: =+J62-N62 -> 0 | Q62: 0 | R62: =+J62*E$7 -> 0
B63: Management Fee, Owner/Operator Labor | D63: 1 | F63: Acre | G63: 0 | I63: 0 | J63: 0 | K63: 0 | M63: 0 | N63: 0 | O63: 0 | P63: 0 | Q63: 0 | R63: 0
B64: Allocated Establishment Cost | D64: 1 | F64: Acre | G64: 0 | I64: 0 | J64: 0 | K64: 0 | M64: 0 | N64: 0 | O64: 0 | P64: 0 | Q64: 0 | R64: 0
B65: Cash Rent - Grain Sorghum | D65: 1 | F65: Acre | G65: 32 | I65: 32 | J65: 0 | K65: 0 | M65: 0 | N65: 0 | O65: 32 | P65: 0 | Q65: 20480 | R65: 0
B66: Property Taxes | D66: 1 | F66: Acre | G66: 0 | I66: 0 | J66: 0 | K66: 0 | M66: 0 | N66: 0 | O66: 0 | P66: 0 | Q66: 0 | R66: 0
B67: Whole Farm Insurance | D67: 1 | F67: Acre | G67: 0 | I67: 0 | J67: 0 | K67: 0 | M67: 0 | N67: 0 | O67: 0 | P67: 0 | Q67: 0 | R67: 0
D68: 1 | G68: 0 | I68: 0 | J68: 0 | K68: 0 | M68: 0 | N68: 0 | O68: 0 | P68: 0 | Q68: 0 | R68: 0
D69: 1 | G69: 0 | I69: 0 | J69: =E69*H69 -> 0 | K69: 0 | M69: 0 | N69: 0 | O69: 0 | P69: 0 | Q69: 0 | R69: 0
A70: Total Fixed Costs | I70: 70.1041987 | J70: =+SUM(J55:J69) -> 0 | M70: 0 | N70: =+SUM(N55:N69) -> 0 | O70: 70.1041987 | P70: =+SUM(P55:P69) -> 0 | Q70: 44866.68717 | R70: =+SUM(R55:R69) -> 0
A71: Total Specified Costs | I71: 177.6682456 | J71: =+J49+J70 -> 0 | M71: 0 | N71: =+N49+N70 -> 0 | O71: 177.6682456 | P71: =+P49+P70 -> 0 | Q71: 113707.6772 | R71: =+R49+R70 -> 0
A73: Returns Above Specified Costs | I73: -50.72824563 | J73: =+J13-J71 -> 0 | M73: 0 | N73: =+N13-N71 -> 0 | O73: -50.72824563 | P73: =+P13-P71 -> 0 | Q73: -32466.0772 | R73: =+R13-R71 -> 0
A75: Breakeven Price to Cover Total Costs | G75: 8.075829347 | H75: =IF(E10=0,"n/a",(YTotExp-(YTotExp+YTotRet-J10))/E10) -> n/a | I75: CWT
D77: Example Breakeven Prices
B78: Example | C78: Example | D78: To Cover | G78: To Cover
B79: Yield | C79: Yield | D79: Variable | G79: Total
B80: Percent | C80: CWT | D80: Costs | G80: Costs
B81: 0.75 | C81: 16.5 | D81: 6.519033148 | G81: 10.76777246
B82: 0.9 | C82: 19.8 | D82: 5.432527623 | G82: 8.973143719
B83: 1 | C83: 22 | D83: 4.889274861 | G83: 8.075829347
B84: 1.1 | C84: 24.2 | D84: 4.444795328 | G84: 7.341663043
B85: 1.25 | C85: 27.5 | D85: 3.911419889 | G85: 6.460663478
D87: Your Breakeven Prices
B88: Your | C88: Your | E88: To Cover | H88: To Cover
B89: Yield | C89: Yield | E89: Variable | H89: Total
B90: Percent | C90: CWT | E90: Costs | H90: Costs
B91: 0.75 | C91: =E10*YPER1 -> 0 | E91: =IF($E$10=0,0,(YVarExp-(YTotExp+YTotRet-J10))/($E$10*YPER1)) -> 0 | H91: =IF($E$10=0,0,(YTotExp-(YTotExp+YTotRet-J10))/($E$10*YPER1)) -> 0
B92: 0.9 | C92: =E10*YPER2 -> 0 | E92: =IF($E$10=0,0,(YVarExp-(YTotExp+YTotRet-J10))/($E$10*YPER2)) -> 0 | H92: =IF($E$10=0,0,(YTotExp-(YTotExp+YTotRet-J10))/($E$10*YPER2)) -> 0
B93: 1 | C93: =+E10 -> 0 | E93: =IF($E$10=0,0,(YVarExp-(YTotExp+YTotRet-J10))/($E$10*YPER3)) -> 0 | H93: =IF($E$10=0,0,(YTotExp-(YTotExp+YTotRet-J10))/($E$10*YPER3)) -> 0
B94: 1.1 | C94: =E10*YPER4 -> 0 | E94: =IF($E$10=0,0,(YVarExp-(YTotExp+YTotRet-J10))/($E$10*YPER4)) -> 0 | H94: =IF($E$10=0,0,(YTotExp-(YTotExp+YTotRet-J10))/($E$10*YPER4)) -> 0
B95: 1.25 | C95: =E10*YPER5 -> 0 | E95: =IF($E$10=0,0,(YVarExp-(YTotExp+YTotRet-J10))/($E$10*YPER5)) -> 0 | H95: =IF($E$10=0,0,(YTotExp-(YTotExp+YTotRet-J10))/($E$10*YPER5)) -> 0
A97: Developed by Extension Economists, Texas A&M AgriLife Extension Service, budgets@tamu.edu.
A99: Information presented is prepared solely as a general guide and not intended to recognize or predict the costs and returns from any one operation. Brand names are mentioned only as examples and imply no endorsement.

Sheet WheatDryland
A1: Projections for Planning Purposes Only -- Not to be Used without Updating
A2: 2018 Estimated Costs and Returns per Acre
A3: Dryland Wheat
A4: Enter your name for this budget in the cell above.
A5: Enter Your Values in the cells highlighed in MAROON.
E6: Your Acres | R6: Your
C7: Crop Acres | D7: 640 | L7: Your | Q7: Enterprise | R7: Enterprise
E8: Your | H8: Your | I8: Cash | J8: Your | K8: Landlord | L8: Landlord | N8: Your | P8: Your | Q8: Total | R8: Total
A9: REVENUE | D9: Quantity | E9: Quantity | F9: Units | G9: $/Unit | H9: $/Unit | I9: Total | J9: Total | K9: Share | L9: Share | M9: Landlord | N9: Landlord | O9: Tenant | P9: Tenant | Q9: (640 acres) | R9: ="(" & E7 & " acres)" -> ( acres)
B10: Wheat | D10: 30 | F10: Bushel | G10: 4.3 | I10: 129 | J10: =E10*H10 -> 0 | K10: 0 | M10: 0 | N10: =J10*L10 -> 0 | O10: 129 | P10: =+J10-N10 -> 0 | Q10: 82560 | R10: =+J10*E$7 -> 0
B11: Wheat Pasture | D11: 64 | F11: Pound of Gain | G11: 0.4 | I11: 25.6 | J11: 0 | K11: 0 | M11: 0 | N11: 0 | O11: 25.6 | P11: =+J11-N11 -> 0 | Q11: 16384 | R11: 0
D12: 0 | G12: 0 | I12: 0 | J12: 0 | K12: 0 | M12: 0 | N12: 0 | O12: 0 | P12: 0 | Q12: 0 | R12: 0
D13: 0 | G13: 0 | I13: 0 | J13: 0 | K13: 0 | M13: 0 | N13: 0 | O13: 0 | P13: 0 | Q13: 0 | R13: 0
A14: Total Revenue | I14: 154.6 | J14: =SUM(J10:J13) -> 0 | M14: 0 | N14: =SUM(N10:N13) -> 0 | O14: 154.6 | P14: =SUM(P10:P13) -> 0 | Q14: 98944 | R14: =SUM(R10:R13) -> 0
Q15: Enterprise | R15: Enterprise
A16: VARIABLE COSTS | D16: Quantity | E16: Quantity | F16: Units | G16: $/Unit | H16: $/Unit | I16: Total | J16: Total | K16: Share | L16: Share | M16: Landlord | N16: Landlord | O16: Tenant | P16: Tenant | Q16: Total | R16: Total
A17: Production Costs
B18: Herbicide
C19: Herbicide - Wheat | D19: 6.4 | F19: Ounce | G19: 0.22265625 | I19: 1.425 | J19: =E19*H19 -> 0 | K19: 0 | M19: 0 | N19: =J19*L19 -> 0 | O19: 1.425 | P19: =+J19-N19 -> 0 | Q19: 912 | R19: =+J19*E$7 -> 0
B20: Seed
C21: Wheat Seed | D21: 70 | F21: Pound | G21: 0.21 | I21: 14.7 | J21: 0 | K21: 0 | M21: 0 | N21: 0 | O21: 14.7 | P21: 0 | Q21: 9408 | R21: 0
B22: Fertilizer
C23: Fertilizer (N) | D23: 100 | F23: Pound | G23: 0.41 | I23: 41 | J23: 0 | K23: 0 | M23: 0 | N23: 0 | O23: 41 | P23: 0 | Q23: 26240 | R23: 0
C24: Fertilizer (P) | D24: 50 | F24: Pound | G24: 0.34 | I24: 17 | J24: 0 | K24: 0 | M24: 0 | N24: 0 | O24: 17 | P24: 0 | Q24: 10880 | R24: 0
B25: Custom
C26: Herbicide Application | D26: 1 | F26: Acre | G26: 5.5 | I26: 5.5 | J26: 0 | K26: 0 | M26: 0 | N26: 0 | O26: 5.5 | P26: 0 | Q26: 3520 | R26: 0
C27: Custom Harvest Wheat | D27: 1 | F27: Acre | G27: 24 | I27: 24 | J27: 0 | K27: 0 | M27: 0 | N27: 0 | O27: 24 | P27: 0 | Q27: 15360 | R27: 0
C28: Overage - Wheat | D28: 10 | F28: Bushel | G28: 0.24 | I28: 2.4 | J28: 0 | K28: 0 | M28: 0 | N28: 0 | O28: 2.4 | P28: 0 | Q28: 1536 | R28: 0
C29: Custom Haul Wheat | D29: 30 | F29: Bushel | G29: 0.24 | I29: 7.2 | J29: 0 | K29: 0 | M29: 0 | N29: 0 | O29: 7.2 | P29: 0 | Q29: 4608 | R29: 0
B30: Miscellaneous
C31: Insurance - Wheat | D31: 1 | F31: Acre | G31: 12 | I31: 12 | J31: 0 | K31: 0 | M31: 0 | N31: 0 | O31: 12 | P31: 0 | Q31: 7680 | R31: 0
B32: Insecticide
C33: Insecticide & Application - Wheat | D33: 1 | F33: Ounce | G33: 0.25 | I33: 0.25 | J33: 0 | K33: 0 | M33: 0 | N33: 0 | O33: 0.25 | P33: 0 | Q33: 160 | R33: 0
D34: 0 | G34: 0 | I34: 0 | J34: 0 | K34: 0 | M34: 0 | N34: 0 | O34: 0 | P34: 0 | Q34: 0 | R34: 0
D35: 0 | G35: 0 | I35: 0 | J35: 0 | K35: 0 | M35: 0 | N35: 0 | O35: 0 | P35: 0 | Q35: 0 | R35: 0
D36: 0 | G36: 0 | I36: 0 | J36: =E36*H36 -> 0 | K36: 0 | M36: 0 | N36: =J36*L36 -> 0 | O36: 0 | P36: =+J36-N36 -> 0 | Q36: 0 | R36: =+J36*E$7 -> 0
B37: Machinery Labor
C38: Tractors/Self-Propelled | D38: 0.47 | F38: Hour | G38: 10 | I38: 4.7 | J38: =E38*H38 -> 0 | K38: 0 | M38: 0 | N38: =J38*L38 -> 0 | O38: 4.7 | P38: =+J38-N38 -> 0 | Q38: 3008 | R38: =+J38*E$7 -> 0
C39: Other Labor | D39: 0.5 | F39: Hour | G39: 10 | I39: 5 | J39: =E39*H39 -> 0 | K39: 0 | M39: 0 | N39: =J39*L39 -> 0 | O39: 5 | P39: =+J39-N39 -> 0 | Q39: 3200 | R39: =+J39*E$7 -> 0
B41: Diesel Fuel
C42: Pickup/General Use Equipment | D42: 1 | F42: Acre | G42: 0 | I42: 0 | J42: =E42*H42 -> 0 | K42: 0 | M42: 0 | N42: =J42*L42 -> 0 | O42: 0 | P42: =+J42-N42 -> 0 | Q42: 0 | R42: =+J42*E$7 -> 0
C43: Tractors/Self-Propelled | D43: 1.96 | F43: Gallon | G43: 2.1 | I43: 4.116 | J43: =E43*H43 -> 0 | K43: 0 | M43: 0 | N43: =J43*L43 -> 0 | O43: 4.116 | P43: =+J43-N43 -> 0 | Q43: 2634.24 | R43: =+J43*E$7 -> 0
B45: Gasoline
C46: Pickup/General Use Equipment | D46: 1 | F46: Acre | G46: 2.109375 | I46: 2.109375 | J46: =E46*H46 -> 0 | K46: 0 | M46: 0 | N46: =J46*L46 -> 0 | O46: 2.109375 | P46: =+J46-N46 -> 0 | Q46: 1350 | R46: =+J46*E$7 -> 0
C47: Tractors/Self-Propelled | D47: 0 | F47: Gallon | G47: 2.25 | I47: 0 | J47: =E47*H47 -> 0 | K47: 0 | M47: 0 | N47: =J47*L47 -> 0 | O47: 0 | P47: =+J47-N47 -> 0 | Q47: 0 | R47: =+J47*E$7 -> 0
B49: Repairs & Maintenance
C50: Pickup/General Use Equipment | D50: 1 | F50: Acre | G50: 0.566015625 | I50: 0.566015625 | J50: =E50*H50 -> 0 | K50: 0 | M50: 0 | N50: =J50*L50 -> 0 | O50: 0.566015625 | P50: =+J50-N50 -> 0 | Q50: 362.25 | R50: =+J50*E$7 -> 0
C51: Irrigation Equipment | D51: 1 | F51: Acre | G51: 0 | I51: 0 | J51: 0 | K51: 0 | M51: 0 | N51: 0 | O51: 0 | P51: 0 | Q51: 0 | R51: 0
C52: Tractors/Self-Propelled | D52: 1 | F52: Acre | G52: 3.070750066 | I52: 3.070750066 | J52: 0 | K52: 0 | M52: 0 | N52: 0 | O52: 3.070750066 | P52: 0 | Q52: 1965.280042 | R52: 0
C53: Implements | D53: 1 | F53: Acre | G53: 6.951826862 | I53: 6.951826862 | J53: 0 | K53: 0 | M53: 0 | N53: 0 | O53: 6.951826862 | P53: 0 | Q53: 4449.169192 | R53: 0
I54: 0 | J54: 0 | K54: 0 | M54: 0 | N54: 0 | O54: 0 | P54: 0 | Q54: 0 | R54: 0
I55: 0 | J55: 0 | K55: 0 | M55: 0 | N55: 0 | O55: 0 | P55: 0 | Q55: 0 | R55: 0
B56: Interest on Credit Line | G56: 0.0575 | I56: 4.361659198 | J56: =+SUM(J18:J55)/2*H56 -> 0 | M56: 0 | N56: =+SUM(N18:N55)/2*L56 -> 0 | O56: 4.361659198 | P56: =+SUM(P18:P55)/2*L56 -> 0 | Q56: 2791.461887 | R56: =+J56*E$7 -> 0
A57: Total Variable Costs | I57: 156.3506268 | J57: =SUM(J19:J56) -> 0 | M57: 0 | N57: =SUM(N19:N56) -> 0 | O57: 156.3506268 | P57: =SUM(P19:P56) -> 0 | Q57: 100064.4011 | R57: =SUM(R19:R56) -> 0
A58: Planned Returns Above Variable Costs: | I58: -1.750626751 | J58: =+J14-J57 -> 0 | M58: 0 | N58: =+N14-N57 -> 0 | O58: -1.750626751 | P58: =+P14-P57 -> 0 | Q58: -1120.401121 | R58: =+R14-R57 -> 0
B59: Breakeven Price to Cover Variable Costs | G59: 4.358354225 | H59: =IF(E10=0,"n/a",(YVarExp-(YTotExp+YTotRet-J10))/E10) -> n/a | I59: Bushel
Q60: Enterprise | R60: Enterprise
A61: FIXED COSTS | D61: Quantity | E61: Quantity | F61: Units | G61: $/Unit | H61: $/Unit | I61: Total | J61: Total | K61: Share | L61: Share | M61: Landlord | N61: Landlord | O61: Tenant | P61: Tenant | Q61: Total | R61: Total
B62: Machinery Depreciation
C63: Pickup/General Use Equipment | D63: 1 | F63: Acre | G63: 0.7858183594 | I63: 0.7858183594 | J63: =E63*H63 -> 0 | K63: 0 | M63: 0 | N63: =J63*L63 -> 0 | O63: 0.7858183594 | P63: =+J63-N63 -> 0 | Q63: 502.92375 | R63: =+J63*E$7 -> 0
C64: Tractors/Self-Propelled | D64: 1 | F64: Acre | G64: 2.865141548 | I64: 2.865141548 | J64: 0 | K64: 0 | M64: 0 | N64: =J64*L64 -> 0 | O64: 2.865141548 | P64: 0 | Q64: 1833.690591 | R64: 0
C65: Implements | D65: 1 | F65: Acre | G65: 8.938063108 | I65: 8.938063108 | J65: 0 | K65: 0 | M65: 0 | N65: =J65*L65 -> 0 | O65: 8.938063108 | P65: 0 | Q65: 5720.360389 | R65: 0
B66: Equipment Investment
C67: Pickup/General Use Equipment | D67: 5.504501953 | F67: Dollars | G67: 0.055 | I67: 0.3027476074 | J67: =E67*H67 -> 0 | K67: 0 | M67: 0 | N67: =J67*L67 -> 0 | O67: 0.3027476074 | P67: =+J67-N67 -> 0 | Q67: 193.7584688 | R67: =+J67*E$7 -> 0
C68: Tractors/Self-Propelled | D68: 22.3203769 | F68: Dollars | G68: 0.055 | I68: 1.227620729 | J68: 0 | K68: 0 | M68: 0 | N68: =J68*L68 -> 0 | O68: 1.227620729 | P68: 0 | Q68: 785.6772667 | R68: 0
C69: Implements | D69: 38.23504774 | F69: Dollars | G69: 0.055 | I69: 2.102927626 | J69: 0 | K69: 0 | M69: 0 | N69: =J69*L69 -> 0 | O69: 2.102927626 | P69: 0 | Q69: 1345.87368 | R69: 0
B70: Salaried Labor | D70: 1 | F70: Acre | G70: 0 | I70: 0 | J70: 0 | K70: 0 | M70: 0 | N70: =J70*L70 -> 0 | O70: 0 | P70: =+J70-N70 -> 0 | Q70: 0 | R70: =+J70*E$7 -> 0
B71: Management Fee, Owner/Operator Labor | D71: 1 | F71: Acre | G71: 0 | I71: 0 | J71: 0 | K71: 0 | M71: 0 | N71: 0 | O71: 0 | P71: 0 | Q71: 0 | R71: 0
B72: Allocated Establishment Cost | D72: 1 | F72: Acre | G72: 0 | I72: 0 | J72: 0 | K72: 0 | M72: 0 | N72: 0 | O72: 0 | P72: 0 | Q72: 0 | R72: 0
B73: Cash Rent - Wheat | D73: 1 | F73: Acre | G73: 32 | I73: 32 | J73: 0 | K73: 0 | M73: 0 | N73: 0 | O73: 32 | P73: 0 | Q73: 20480 | R73: 0
B74: Property Taxes | D74: 1 | F74: Acre | G74: 0 | I74: 0 | J74: 0 | K74: 0 | M74: 0 | N74: 0 | O74: 0 | P74: 0 | Q74: 0 | R74: 0
B75: Whole Farm Insurance | D75: 1 | F75: Acre | G75: 0 | I75: 0 | J75: 0 | K75: 0 | M75: 0 | N75: 0 | O75: 0 | P75: 0 | Q75: 0 | R75: 0
D76: 1 | G76: 0 | I76: 0 | J76: 0 | K76: 0 | M76: 0 | N76: 0 | O76: 0 | P76: 0 | Q76: 0 | R76: 0
D77: 1 | G77: 0 | I77: 0 | J77: =E77*H77 -> 0 | K77: 0 | M77: 0 | N77: 0 | O77: 0 | P77: 0 | Q77: 0 | R77: 0
A78: Total Fixed Costs | I78: 48.22231898 | J78: =+SUM(J63:J77) -> 0 | M78: 0 | N78: =+SUM(N63:N77) -> 0 | O78: 48.22231898 | P78: =+SUM(P63:P77) -> 0 | Q78: 30862.28415 | R78: =+SUM(R63:R77) -> 0
A79: Total Specified Costs | I79: 204.5729457 | J79: =+J57+J78 -> 0 | M79: 0 | N79: =+N57+N78 -> 0 | O79: 204.5729457 | P79: =+P57+P78 -> 0 | Q79: 130926.6853 | R79: =+R57+R78 -> 0
A81: Returns Above Specified Costs | I81: -49.97294573 | J81: =+J14-J79 -> 0 | M81: 0 | N81: =+N14-N79 -> 0 | O81: -49.97294573 | P81: =+P14-P79 -> 0 | Q81: -31982.68527 | R81: =+R14-R79 -> 0
A83: Breakeven Price to Cover Total Costs | G83: 5.965764858 | H83: =IF(E10=0,"n/a",(YTotExp-(YTotExp+YTotRet-J10))/E10) -> n/a | I83: Bushel
D85: Example Breakeven Prices
B86: Example | C86: Example | D86: To Cover | G86: To Cover
B87: Yield | C87: Yield | D87: Variable | G87: Total
B88: Percent | C88: Bushel | D88: Costs | G88: Costs
B89: 0.75 | C89: 22.5 | D89: 5.811138967 | G89: 7.954353144
B90: 0.9 | C90: 27 | D90: 4.842615806 | G90: 6.62862762
B91: 1 | C91: 30 | D91: 4.358354225 | G91: 5.965764858
B92: 1.1 | C92: 33 | D92: 3.962140205 | G92: 5.423422598
B93: 1.25 | C93: 37.5 | D93: 3.48668338 | G93: 4.772611886
D95: Your Breakeven Prices
B96: Your | C96: Your | E96: To Cover | H96: To Cover
B97: Yield | C97: Yield | E97: Variable | H97: Total
B98: Percent | C98: Bushel | E98: Costs | H98: Costs
B99: 0.75 | C99: =E10*YPER1 -> 0 | E99: =IF($E$10=0,0,(YVarExp-(YTotExp+YTotRet-J10))/($E$10*YPER1)) -> 0 | H99: =IF($E$10=0,0,(YTotExp-(YTotExp+YTotRet-J10))/($E$10*YPER1)) -> 0
B100: 0.9 | C100: =E10*YPER2 -> 0 | E100: =IF($E$10=0,0,(YVarExp-(YTotExp+YTotRet-J10))/($E$10*YPER2)) -> 0 | H100: =IF($E$10=0,0,(YTotExp-(YTotExp+YTotRet-J10))/($E$10*YPER2)) -> 0
B101: 1 | C101: =+E10 -> 0 | E101: =IF($E$10=0,0,(YVarExp-(YTotExp+YTotRet-J10))/($E$10*YPER3)) -> 0 | H101: =IF($E$10=0,0,(YTotExp-(YTotExp+YTotRet-J10))/($E$10*YPER3)) -> 0
B102: 1.1 | C102: =E10*YPER4 -> 0 | E102: =IF($E$10=0,0,(YVarExp-(YTotExp+YTotRet-J10))/($E$10*YPER4)) -> 0 | H102: =IF($E$10=0,0,(YTotExp-(YTotExp+YTotRet-J10))/($E$10*YPER4)) -> 0
B103: 1.25 | C103: =E10*YPER5 -> 0 | E103: =IF($E$10=0,0,(YVarExp-(YTotExp+YTotRet-J10))/($E$10*YPER5)) -> 0 | H103: =IF($E$10=0,0,(YTotExp-(YTotExp+YTotRet-J10))/($E$10*YPER5)) -> 0
A105: Developed by Extension Economists, Texas A&M AgriLife Extension Service, budgets@tamu.edu.
A107: Information presented is prepared solely as a general guide and not intended to recognize or predict the costs and returns from any one operation. Brand names are mentioned only as examples and imply no endorsement.

Sheet SmallGrain
A1: Projections for Planning Purposes Only -- Not to be Used without Updating
A2: 2018 Estimated Costs and Returns per Acre
A3: Small Grain Grazing
A4: Enter your name for this budget in the cell above.
A5: Enter Your Values in the cells highlighed in MAROON.
E6: Your Acres | R6: Your
C7: Crop Acres | D7: 640 | L7: Your | Q7: Enterprise | R7: Enterprise
E8: Your | H8: Your | I8: Cash | J8: Your | K8: Landlord | L8: Landlord | N8: Your | P8: Your | Q8: Total | R8: Total
A9: REVENUE | D9: Quantity | E9: Quantity | F9: Units | G9: $/Unit | H9: $/Unit | I9: Total | J9: Total | K9: Share | L9: Share | M9: Landlord | N9: Landlord | O9: Tenant | P9: Tenant | Q9: (640 acres) | R9: ="(" & E7 & " acres)" -> ( acres)
B10: 0 | D10: 0 | G10: 0 | I10: 0 | J10: =E10*H10 -> 0 | K10: 0 | M10: 0 | N10: =J10*L10 -> 0 | O10: 0 | P10: =+J10-N10 -> 0 | Q10: 0 | R10: =+J10*E$7 -> 0
D11: 0 | G11: 0 | I11: 0 | J11: 0 | K11: 0 | M11: 0 | N11: 0 | O11: 0 | P11: =+J11-N11 -> 0 | Q11: 0 | R11: 0
D12: 0 | G12: 0 | I12: 0 | J12: 0 | K12: 0 | M12: 0 | N12: 0 | O12: 0 | P12: 0 | Q12: 0 | R12: 0
A13: Total Revenue | I13: 0 | J13: =SUM(J10:J12) -> 0 | M13: 0 | N13: =SUM(N10:N12) -> 0 | O13: 0 | P13: =SUM(P10:P12) -> 0 | Q13: 0 | R13: =SUM(R10:R12) -> 0
Q14: Enterprise | R14: Enterprise
A15: VARIABLE COSTS | D15: Quantity | E15: Quantity | F15: Units | G15: $/Unit | H15: $/Unit | I15: Total | J15: Total | K15: Share | L15: Share | M15: Landlord | N15: Landlord | O15: Tenant | P15: Tenant | Q15: Total | R15: Total
A16: Production Costs
B17: Fertilizer
C18: Fertilizer (N) - Small Grain | D18: 50 | F18: Pound | G18: 0.41 | I18: 20.5 | J18: =E18*H18 -> 0 | K18: 0 | M18: 0 | N18: =J18*L18 -> 0 | O18: 20.5 | P18: =+J18-N18 -> 0 | Q18: 13120 | R18: =+J18*E$7 -> 0
B19: Seed
C20: Small Grain Seed | D20: 80 | F20: Pound | G20: 0.21 | I20: 16.8 | J20: 0 | K20: 0 | M20: 0 | N20: 0 | O20: 16.8 | P20: 0 | Q20: 10752 | R20: 0
D21: 0 | G21: 0 | I21: 0 | J21: 0 | K21: 0 | M21: 0 | N21: 0 | O21: 0 | P21: 0 | Q21: 0 | R21: 0
D22: 0 | G22: 0 | I22: 0 | J22: 0 | K22: 0 | M22: 0 | N22: 0 | O22: 0 | P22: 0 | Q22: 0 | R22: 0
D23: 0 | G23: 0 | I23: 0 | J23: =E23*H23 -> 0 | K23: 0 | M23: 0 | N23: =J23*L23 -> 0 | O23: 0 | P23: =+J23-N23 -> 0 | Q23: 0 | R23: =+J23*E$7 -> 0
B24: Machinery Labor
C25: Tractors/Self-Propelled | D25: 0.62 | F25: Hour | G25: 10 | I25: 6.2 | J25: =E25*H25 -> 0 | K25: 0 | M25: 0 | N25: =J25*L25 -> 0 | O25: 6.2 | P25: =+J25-N25 -> 0 | Q25: 3968 | R25: =+J25*E$7 -> 0
C26: Other Labor | D26: 0.68 | F26: Hour | G26: 10 | I26: 6.8 | J26: =E26*H26 -> 0 | K26: 0 | M26: 0 | N26: =J26*L26 -> 0 | O26: 6.8 | P26: =+J26-N26 -> 0 | Q26: 4352 | R26: =+J26*E$7 -> 0
B28: Diesel Fuel
C29: Pickup/General Use Equipment | D29: 1 | F29: Acre | G29: 0 | I29: 0 | J29: =E29*H29 -> 0 | K29: 0 | M29: 0 | N29: =J29*L29 -> 0 | O29: 0 | P29: =+J29-N29 -> 0 | Q29: 0 | R29: =+J29*E$7 -> 0
C30: Tractors/Self-Propelled | D30: 4.25 | F30: Gallon | G30: 2.1 | I30: 8.925 | J30: =E30*H30 -> 0 | K30: 0 | M30: 0 | N30: =J30*L30 -> 0 | O30: 8.925 | P30: =+J30-N30 -> 0 | Q30: 5712 | R30: =+J30*E$7 -> 0
B32: Gasoline
C33: Pickup/General Use Equipment | D33: 1 | F33: Acre | G33: 0 | I33: 0 | J33: =E33*H33 -> 0 | K33: 0 | M33: 0 | N33: =J33*L33 -> 0 | O33: 0 | P33: =+J33-N33 -> 0 | Q33: 0 | R33: =+J33*E$7 -> 0
C34: Tractors/Self-Propelled | D34: 0 | F34: Gallon | G34: 2.25 | I34: 0 | J34: =E34*H34 -> 0 | K34: 0 | M34: 0 | N34: =J34*L34 -> 0 | O34: 0 | P34: =+J34-N34 -> 0 | Q34: 0 | R34: =+J34*E$7 -> 0
B36: Repairs & Maintenance
C37: Pickup/General Use Equipment | D37: 1 | F37: Acre | G37: 0 | I37: 0 | J37: =E37*H37 -> 0 | K37: 0 | M37: 0 | N37: =J37*L37 -> 0 | O37: 0 | P37: =+J37-N37 -> 0 | Q37: 0 | R37: =+J37*E$7 -> 0
C38: Irrigation Equipment | D38: 1 | F38: Acre | G38: 0 | I38: 0 | J38: 0 | K38: 0 | M38: 0 | N38: 0 | O38: 0 | P38: 0 | Q38: 0 | R38: 0
C39: Tractors/Self-Propelled | D39: 1 | F39: Acre | G39: 8.296157186 | I39: 8.296157186 | J39: 0 | K39: 0 | M39: 0 | N39: 0 | O39: 8.296157186 | P39: 0 | Q39: 5309.540599 | R39: 0
C40: Implements | D40: 1 | F40: Acre | G40: 11.23201003 | I40: 11.23201003 | J40: 0 | K40: 0 | M40: 0 | N40: 0 | O40: 11.23201003 | P40: 0 | Q40: 7188.486421 | R40: 0
I41: 0 | J41: 0 | K41: 0 | M41: 0 | N41: 0 | O41: 0 | P41: 0 | Q41: 0 | R41: 0
I42: 0 | J42: 0 | K42: 0 | M42: 0 | N42: 0 | O42: 0 | P42: 0 | Q42: 0 | R42: 0
B43: Interest on Credit Line | G43: 0.0575 | I43: 0.9242247304 | J43: =+SUM(J17:J42)/2*H43 -> 0 | M43: 0 | N43: =+SUM(N17:N42)/2*L43 -> 0 | O43: 0.9242247304 | P43: =+SUM(P17:P42)/2*L43 -> 0 | Q43: 591.5038275 | R43: =+J43*E$7 -> 0
A44: Total Variable Costs | I44: 79.67739195 | J44: =SUM(J18:J43) -> 0 | M44: 0 | N44: =SUM(N18:N43) -> 0 | O44: 79.67739195 | P44: =SUM(P18:P43) -> 0 | Q44: 50993.53085 | R44: =SUM(R18:R43) -> 0
A45: Planned Returns Above Variable Costs: | I45: -79.67739195 | J45: =+J13-J44 -> 0 | M45: 0 | N45: =+N13-N44 -> 0 | O45: -79.67739195 | P45: =+P13-P44 -> 0 | Q45: -50993.53085 | R45: =+R13-R44 -> 0
B46: Breakeven Price to Cover Variable Costs | G46: n/a | H46: =IF(E10=0,"n/a",(YVarExp-(YTotExp+YTotRet-J10))/E10) -> n/a
Q47: Enterprise | R47: Enterprise
A48: FIXED COSTS | D48: Quantity | E48: Quantity | F48: Units | G48: $/Unit | H48: $/Unit | I48: Total | J48: Total | K48: Share | L48: Share | M48: Landlord | N48: Landlord | O48: Tenant | P48: Tenant | Q48: Total | R48: Total
B49: Machinery Depreciation
C50: Tractors/Self-Propelled | D50: 1 | F50: Acre | G50: 8.572695758 | I50: 8.572695758 | J50: =E50*H50 -> 0 | K50: 0 | M50: 0 | N50: =J50*L50 -> 0 | O50: 8.572695758 | P50: =+J50-N50 -> 0 | Q50: 5486.525285 | R50: =+J50*E$7 -> 0
C51: Implements | D51: 1 | F51: Acre | G51: 13.56089628 | I51: 13.56089628 | J51: 0 | K51: 0 | M51: 0 | N51: =J51*L51 -> 0 | O51: 13.56089628 | P51: 0 | Q51: 8678.97362 | R51: 0
B52: Equipment Investment
C53: Tractors/Self-Propelled | D53: 66.78406534 | F53: Dollars | G53: 0.055 | I53: 3.673123594 | J53: =E53*H53 -> 0 | K53: 0 | M53: 0 | N53: =J53*L53 -> 0 | O53: 3.673123594 | P53: =+J53-N53 -> 0 | Q53: 2350.7991 | R53: =+J53*E$7 -> 0
C54: Implements | D54: 58.01050076 | F54: Dollars | G54: 0.055 | I54: 3.190577542 | J54: 0 | K54: 0 | M54: 0 | N54: =J54*L54 -> 0 | O54: 3.190577542 | P54: 0 | Q54: 2041.969627 | R54: 0
B55: Salaried Labor | D55: 1 | F55: Acre | G55: 0 | I55: 0 | J55: 0 | K55: 0 | M55: 0 | N55: =J55*L55 -> 0 | O55: 0 | P55: =+J55-N55 -> 0 | Q55: 0 | R55: =+J55*E$7 -> 0
B56: Management Fee, Owner/Operator Labor | D56: 1 | F56: Acre | G56: 0 | I56: 0 | J56: 0 | K56: 0 | M56: 0 | N56: 0 | O56: 0 | P56: 0 | Q56: 0 | R56: 0
B57: Allocated Establishment Cost | D57: 1 | F57: Acre | G57: 0 | I57: 0 | J57: 0 | K57: 0 | M57: 0 | N57: 0 | O57: 0 | P57: 0 | Q57: 0 | R57: 0
B58: Cash Rent - Small Grains | D58: 1 | F58: Acre | G58: 32 | I58: 32 | J58: 0 | K58: 0 | M58: 0 | N58: 0 | O58: 32 | P58: 0 | Q58: 20480 | R58: 0
B59: Property Taxes | D59: 1 | F59: Acre | G59: 0 | I59: 0 | J59: 0 | K59: 0 | M59: 0 | N59: 0 | O59: 0 | P59: 0 | Q59: 0 | R59: 0
B60: Whole Farm Insurance | D60: 1 | F60: Acre | G60: 0 | I60: 0 | J60: 0 | K60: 0 | M60: 0 | N60: 0 | O60: 0 | P60: 0 | Q60: 0 | R60: 0
D61: 1 | G61: 0 | I61: 0 | J61: 0 | K61: 0 | M61: 0 | N61: 0 | O61: 0 | P61: 0 | Q61: 0 | R61: 0
D62: 1 | G62: 0 | I62: 0 | J62: =E62*H62 -> 0 | K62: 0 | M62: 0 | N62: 0 | O62: 0 | P62: 0 | Q62: 0 | R62: 0
A63: Total Fixed Costs | I63: 60.99729318 | J63: =+SUM(J50:J62) -> 0 | M63: 0 | N63: =+SUM(N50:N62) -> 0 | O63: 60.99729318 | P63: =+SUM(P50:P62) -> 0 | Q63: 39038.26763 | R63: =+SUM(R50:R62) -> 0
A64: Total Specified Costs | I64: 140.6746851 | J64: =+J44+J63 -> 0 | M64: 0 | N64: =+N44+N63 -> 0 | O64: 140.6746851 | P64: =+P44+P63 -> 0 | Q64: 90031.79848 | R64: =+R44+R63 -> 0
A66: Returns Above Specified Costs | I66: -140.6746851 | J66: =+J13-J64 -> 0 | M66: 0 | N66: =+N13-N64 -> 0 | O66: -140.6746851 | P66: =+P13-P64 -> 0 | Q66: -90031.79848 | R66: =+R13-R64 -> 0
A68: Breakeven Price to Cover Total Costs | G68: n/a | H68: =IF(E10=0,"n/a",(YTotExp-(YTotExp+YTotRet-J10))/E10) -> n/a
D70: Example Breakeven Prices
B71: Example | C71: Example | D71: To Cover | G71: To Cover
B72: Yield | C72: Yield | D72: Variable | G72: Total
B73: Percent | D73: Costs | G73: Costs
B74: 0.75 | C74: 0 | D74: 0 | G74: 0
B75: 0.9 | C75: 0 | D75: 0 | G75: 0
B76: 1 | C76: 0 | D76: 0 | G76: 0
B77: 1.1 | C77: 0 | D77: 0 | G77: 0
B78: 1.25 | C78: 0 | D78: 0 | G78: 0
D80: Your Breakeven Prices
B81: Your | C81: Your | E81: To Cover | H81: To Cover
B82: Yield | C82: Yield | E82: Variable | H82: Total
B83: Percent | E83: Costs | H83: Costs
B84: 0.75 | C84: =E10*YPER1 -> 0 | E84: =IF($E$10=0,0,(YVarExp-(YTotExp+YTotRet-J10))/($E$10*YPER1)) -> 0 | H84: =IF($E$10=0,0,(YTotExp-(YTotExp+YTotRet-J10))/($E$10*YPER1)) -> 0
B85: 0.9 | C85: =E10*YPER2 -> 0 | E85: =IF($E$10=0,0,(YVarExp-(YTotExp+YTotRet-J10))/($E$10*YPER2)) -> 0 | H85: =IF($E$10=0,0,(YTotExp-(YTotExp+YTotRet-J10))/($E$10*YPER2)) -> 0
B86: 1 | C86: =+E10 -> 0 | E86: =IF($E$10=0,0,(YVarExp-(YTotExp+YTotRet-J10))/($E$10*YPER3)) -> 0 | H86: =IF($E$10=0,0,(YTotExp-(YTotExp+YTotRet-J10))/($E$10*YPER3)) -> 0
B87: 1.1 | C87: =E10*YPER4 -> 0 | E87: =IF($E$10=0,0,(YVarExp-(YTotExp+YTotRet-J10))/($E$10*YPER4)) -> 0 | H87: =IF($E$10=0,0,(YTotExp-(YTotExp+YTotRet-J10))/($E$10*YPER4)) -> 0
B88: 1.25 | C88: =E10*YPER5 -> 0 | E88: =IF($E$10=0,0,(YVarExp-(YTotExp+YTotRet-J10))/($E$10*YPER5)) -> 0 | H88: =IF($E$10=0,0,(YTotExp-(YTotExp+YTotRet-J10))/($E$10*YPER5)) -> 0
A90: Developed by Extension Economists, Texas A&M AgriLife Extension Service, budgets@tamu.edu.
A92: Information presented is prepared solely as a general guide and not intended to recognize or predict the costs and returns from any one operation. Brand names are mentioned only as examples and imply no endorsement.

Sheet CanolaDryland
A1: Projections for Planning Purposes Only -- Not to be Used without Updating
A2: 2018 Estimated Costs and Returns per Acre
A3: Dryland Canola
A4: Enter your name for this budget in the cell above.
A5: Enter Your Values in the cells highlighed in MAROON.
E6: Your Acres | R6: Your
C7: Crop Acres | D7: 640 | L7: Your | Q7: Enterprise | R7: Enterprise
E8: Your | H8: Your | I8: Cash | J8: Your | K8: Landlord | L8: Landlord | N8: Your | P8: Your | Q8: Total | R8: Total
A9: REVENUE | D9: Quantity | E9: Quantity | F9: Units | G9: $/Unit | H9: $/Unit | I9: Total | J9: Total | K9: Share | L9: Share | M9: Landlord | N9: Landlord | O9: Tenant | P9: Tenant | Q9: (640 acres) | R9: ="(" & E7 & " acres)" -> ( acres)
B10: Canola | D10: 1000 | F10: Pound | G10: 0.16 | I10: 160 | J10: =E10*H10 -> 0 | K10: 0 | M10: 0 | N10: =J10*L10 -> 0 | O10: 160 | P10: =+J10-N10 -> 0 | Q10: 102400 | R10: =+J10*E$7 -> 0
D11: 0 | G11: 0 | I11: 0 | J11: 0 | K11: 0 | M11: 0 | N11: 0 | O11: 0 | P11: =+J11-N11 -> 0 | Q11: 0 | R11: 0
D12: 0 | G12: 0 | I12: 0 | J12: 0 | K12: 0 | M12: 0 | N12: 0 | O12: 0 | P12: 0 | Q12: 0 | R12: 0
A13: Total Revenue | I13: 160 | J13: =SUM(J10:J12) -> 0 | M13: 0 | N13: =SUM(N10:N12) -> 0 | O13: 160 | P13: =SUM(P10:P12) -> 0 | Q13: 102400 | R13: =SUM(R10:R12) -> 0
Q14: Enterprise | R14: Enterprise
A15: VARIABLE COSTS | D15: Quantity | E15: Quantity | F15: Units | G15: $/Unit | H15: $/Unit | I15: Total | J15: Total | K15: Share | L15: Share | M15: Landlord | N15: Landlord | O15: Tenant | P15: Tenant | Q15: Total | R15: Total
A16: Production Costs
B17: Herbicide
C18: Roundup | D18: 3 | F18: Pint | G18: 2.1875 | I18: 6.5625 | J18: =E18*H18 -> 0 | K18: 0 | M18: 0 | N18: =J18*L18 -> 0 | O18: 6.5625 | P18: =+J18-N18 -> 0 | Q18: 4200 | R18: =+J18*E$7 -> 0
B19: Seed
C20: Canola Seed | D20: 5 | F20: Pound | G20: 5.4 | I20: 27 | J20: 0 | K20: 0 | M20: 0 | N20: 0 | O20: 27 | P20: 0 | Q20: 17280 | R20: 0
B21: Fertilizer
C22: Fertilizer (N) | D22: 50 | F22: Pound | G22: 0.41 | I22: 20.5 | J22: 0 | K22: 0 | M22: 0 | N22: 0 | O22: 20.5 | P22: 0 | Q22: 13120 | R22: 0
C23: Fertilizer (P) | D23: 25 | F23: Pound | G23: 0.34 | I23: 8.5 | J23: 0 | K23: 0 | M23: 0 | N23: 0 | O23: 8.5 | P23: 0 | Q23: 5440 | R23: 0
B24: Custom
C25: Insecticide Application | D25: 1 | F25: Acre | G25: 5.5 | I25: 5.5 | J25: 0 | K25: 0 | M25: 0 | N25: 0 | O25: 5.5 | P25: 0 | Q25: 3520 | R25: 0
C26: Swath | D26: 1 | F26: Acre | G26: 12 | I26: 12 | J26: 0 | K26: 0 | M26: 0 | N26: 0 | O26: 12 | P26: 0 | Q26: 7680 | R26: 0
C27: Combine | D27: 1 | F27: Acre | G27: 24 | I27: 24 | J27: 0 | K27: 0 | M27: 0 | N27: 0 | O27: 24 | P27: 0 | Q27: 15360 | R27: 0
C28: Hauling - Canola | D28: 1 | F28: Acre | G28: 3.5 | I28: 3.5 | J28: 0 | K28: 0 | M28: 0 | N28: 0 | O28: 3.5 | P28: 0 | Q28: 2240 | R28: 0
B29: Miscellaneous
C30: Insurance - Canola | D30: 1 | F30: Acre | G30: 14 | I30: 14 | J30: 0 | K30: 0 | M30: 0 | N30: 0 | O30: 14 | P30: 0 | Q30: 8960 | R30: 0
B31: Insecticide
C32: Insecticide - Canola | D32: 14 | F32: Ounce | G32: 1.171875 | I32: 16.40625 | J32: 0 | K32: 0 | M32: 0 | N32: 0 | O32: 16.40625 | P32: 0 | Q32: 10500 | R32: 0
D33: 0 | G33: 0 | I33: 0 | J33: 0 | K33: 0 | M33: 0 | N33: 0 | O33: 0 | P33: 0 | Q33: 0 | R33: 0
D34: 0 | G34: 0 | I34: 0 | J34: 0 | K34: 0 | M34: 0 | N34: 0 | O34: 0 | P34: 0 | Q34: 0 | R34: 0
D35: 0 | G35: 0 | I35: 0 | J35: =E35*H35 -> 0 | K35: 0 | M35: 0 | N35: =J35*L35 -> 0 | O35: 0 | P35: =+J35-N35 -> 0 | Q35: 0 | R35: =+J35*E$7 -> 0
B36: Machinery Labor
C37: Tractors/Self-Propelled | D37: 0.35 | F37: Hour | G37: 10 | I37: 3.5 | J37: =E37*H37 -> 0 | K37: 0 | M37: 0 | N37: =J37*L37 -> 0 | O37: 3.5 | P37: =+J37-N37 -> 0 | Q37: 2240 | R37: =+J37*E$7 -> 0
C38: Other Labor | D38: 0.42 | F38: Hour | G38: 10 | I38: 4.2 | J38: =E38*H38 -> 0 | K38: 0 | M38: 0 | N38: =J38*L38 -> 0 | O38: 4.2 | P38: =+J38-N38 -> 0 | Q38: 2688 | R38: =+J38*E$7 -> 0
B40: Diesel Fuel
C41: Pickup/General Use Equipment | D41: 1 | F41: Acre | G41: 0 | I41: 0 | J41: =E41*H41 -> 0 | K41: 0 | M41: 0 | N41: =J41*L41 -> 0 | O41: 0 | P41: =+J41-N41 -> 0 | Q41: 0 | R41: =+J41*E$7 -> 0
C42: Tractors/Self-Propelled | D42: 1.76 | F42: Gallon | G42: 2.1 | I42: 3.696 | J42: =E42*H42 -> 0 | K42: 0 | M42: 0 | N42: =J42*L42 -> 0 | O42: 3.696 | P42: =+J42-N42 -> 0 | Q42: 2365.44 | R42: =+J42*E$7 -> 0
B44: Gasoline
C45: Pickup/General Use Equipment | D45: 1 | F45: Acre | G45: 0 | I45: 0 | J45: =E45*H45 -> 0 | K45: 0 | M45: 0 | N45: =J45*L45 -> 0 | O45: 0 | P45: =+J45-N45 -> 0 | Q45: 0 | R45: =+J45*E$7 -> 0
C46: Tractors/Self-Propelled | D46: 0 | F46: Gallon | G46: 2.25 | I46: 0 | J46: =E46*H46 -> 0 | K46: 0 | M46: 0 | N46: =J46*L46 -> 0 | O46: 0 | P46: =+J46-N46 -> 0 | Q46: 0 | R46: =+J46*E$7 -> 0
B48: Repairs & Maintenance
C49: Pickup/General Use Equipment | D49: 1 | F49: Acre | G49: 0 | I49: 0 | J49: =E49*H49 -> 0 | K49: 0 | M49: 0 | N49: =J49*L49 -> 0 | O49: 0 | P49: =+J49-N49 -> 0 | Q49: 0 | R49: =+J49*E$7 -> 0
C50: Irrigation Equipment | D50: 1 | F50: Acre | G50: 0 | I50: 0 | J50: 0 | K50: 0 | M50: 0 | N50: 0 | O50: 0 | P50: 0 | Q50: 0 | R50: 0
C51: Tractors/Self-Propelled | D51: 1 | F51: Acre | G51: 2.804862965 | I51: 2.804862965 | J51: 0 | K51: 0 | M51: 0 | N51: 0 | O51: 2.804862965 | P51: 0 | Q51: 1795.112298 | R51: 0
C52: Implements | D52: 1 | F52: Acre | G52: 19.42580564 | I52: 19.42580564 | J52: 0 | K52: 0 | M52: 0 | N52: 0 | O52: 19.42580564 | P52: 0 | Q52: 12432.51561 | R52: 0
I53: 0 | J53: 0 | K53: 0 | M53: 0 | N53: 0 | O53: 0 | P53: 0 | Q53: 0 | R53: 0
I54: 0 | J54: 0 | K54: 0 | M54: 0 | N54: 0 | O54: 0 | P54: 0 | Q54: 0 | R54: 0
B55: Interest on Credit Line | G55: 0.0575 | I55: 3.27119934 | J55: =+SUM(J17:J54)/2*H55 -> 0 | M55: 0 | N55: =+SUM(N17:N54)/2*L55 -> 0 | O55: 3.27119934 | P55: =+SUM(P17:P54)/2*L55 -> 0 | Q55: 2093.567578 | R55: =+J55*E$7 -> 0
A56: Total Variable Costs | I56: 174.8666179 | J56: =SUM(J18:J55) -> 0 | M56: 0 | N56: =SUM(N18:N55) -> 0 | O56: 174.8666179 | P56: =SUM(P18:P55) -> 0 | Q56: 111914.6355 | R56: =SUM(R18:R55) -> 0
A57: Planned Returns Above Variable Costs: | I57: -14.86661795 | J57: =+J13-J56 -> 0 | M57: 0 | N57: =+N13-N56 -> 0 | O57: -14.86661795 | P57: =+P13-P56 -> 0 | Q57: -9514.635486 | R57: =+R13-R56 -> 0
B58: Breakeven Price to Cover Variable Costs | G58: 0.1748666179 | H58: =IF(E10=0,"n/a",(YVarExp-(YTotExp+YTotRet-J10))/E10) -> n/a | I58: Pound
Q59: Enterprise | R59: Enterprise
A60: FIXED COSTS | D60: Quantity | E60: Quantity | F60: Units | G60: $/Unit | H60: $/Unit | I60: Total | J60: Total | K60: Share | L60: Share | M60: Landlord | N60: Landlord | O60: Tenant | P60: Tenant | Q60: Total | R60: Total
B61: Machinery Depreciation
C62: Tractors/Self-Propelled | D62: 1 | F62: Acre | G62: 2.674306021 | I62: 2.674306021 | J62: =E62*H62 -> 0 | K62: 0 | M62: 0 | N62: =J62*L62 -> 0 | O62: 2.674306021 | P62: =+J62-N62 -> 0 | Q62: 1711.555853 | R62: =+J62*E$7 -> 0
C63: Implements | D63: 1 | F63: Acre | G63: 17.94492002 | I63: 17.94492002 | J63: 0 | K63: 0 | M63: 0 | N63: =J63*L63 -> 0 | O63: 17.94492002 | P63: 0 | Q63: 11484.74881 | R63: 0
B64: Equipment Investment
C65: Tractors/Self-Propelled | D65: 20.83370658 | F65: Dollars | G65: 0.055 | I65: 1.145853862 | J65: =E65*H65 -> 0 | K65: 0 | M65: 0 | N65: =J65*L65 -> 0 | O65: 1.145853862 | P65: =+J65-N65 -> 0 | Q65: 733.3464716 | R65: =+J65*E$7 -> 0
C66: Implements | D66: 76.7643801 | F66: Dollars | G66: 0.055 | I66: 4.222040905 | J66: 0 | K66: 0 | M66: 0 | N66: =J66*L66 -> 0 | O66: 4.222040905 | P66: 0 | Q66: 2702.106179 | R66: 0
B67: Salaried Labor | D67: 1 | F67: Acre | G67: 0 | I67: 0 | J67: 0 | K67: 0 | M67: 0 | N67: =J67*L67 -> 0 | O67: 0 | P67: =+J67-N67 -> 0 | Q67: 0 | R67: =+J67*E$7 -> 0
B68: Management Fee, Owner/Operator Labor | D68: 1 | F68: Acre | G68: 0 | I68: 0 | J68: 0 | K68: 0 | M68: 0 | N68: 0 | O68: 0 | P68: 0 | Q68: 0 | R68: 0
B69: Allocated Establishment Cost | D69: 1 | F69: Acre | G69: 0 | I69: 0 | J69: 0 | K69: 0 | M69: 0 | N69: 0 | O69: 0 | P69: 0 | Q69: 0 | R69: 0
B70: Cash Rent - Canola | D70: 1 | F70: Acre | G70: 32 | I70: 32 | J70: 0 | K70: 0 | M70: 0 | N70: 0 | O70: 32 | P70: 0 | Q70: 20480 | R70: 0
B71: Property Taxes | D71: 1 | F71: Acre | G71: 0 | I71: 0 | J71: 0 | K71: 0 | M71: 0 | N71: 0 | O71: 0 | P71: 0 | Q71: 0 | R71: 0
B72: Whole Farm Insurance | D72: 1 | F72: Acre | G72: 0 | I72: 0 | J72: 0 | K72: 0 | M72: 0 | N72: 0 | O72: 0 | P72: 0 | Q72: 0 | R72: 0
D73: 1 | G73: 0 | I73: 0 | J73: 0 | K73: 0 | M73: 0 | N73: 0 | O73: 0 | P73: 0 | Q73: 0 | R73: 0
D74: 1 | G74: 0 | I74: 0 | J74: =E74*H74 -> 0 | K74: 0 | M74: 0 | N74: 0 | O74: 0 | P74: 0 | Q74: 0 | R74: 0
A75: Total Fixed Costs | I75: 57.98712081 | J75: =+SUM(J62:J74) -> 0 | M75: 0 | N75: =+SUM(N62:N74) -> 0 | O75: 57.98712081 | P75: =+SUM(P62:P74) -> 0 | Q75: 37111.75732 | R75: =+SUM(R62:R74) -> 0
A76: Total Specified Costs | I76: 232.8537388 | J76: =+J56+J75 -> 0 | M76: 0 | N76: =+N56+N75 -> 0 | O76: 232.8537388 | P76: =+P56+P75 -> 0 | Q76: 149026.3928 | R76: =+R56+R75 -> 0
A78: Returns Above Specified Costs | I78: -72.85373876 | J78: =+J13-J76 -> 0 | M78: 0 | N78: =+N13-N76 -> 0 | O78: -72.85373876 | P78: =+P13-P76 -> 0 | Q78: -46626.3928 | R78: =+R13-R76 -> 0
A80: Breakeven Price to Cover Total Costs | G80: 0.2328537388 | H80: =IF(E10=0,"n/a",(YTotExp-(YTotExp+YTotRet-J10))/E10) -> n/a | I80: Pound
D82: Example Breakeven Prices
B83: Example | C83: Example | D83: To Cover | G83: To Cover
B84: Yield | C84: Yield | D84: Variable | G84: Total
B85: Percent | C85: Pound | D85: Costs | G85: Costs
B86: 0.75 | C86: 750 | D86: 0.2331554906 | G86: 0.3104716517
B87: 0.9 | C87: 900 | D87: 0.1942962422 | G87: 0.2587263764
B88: 1 | C88: 1000 | D88: 0.1748666179 | G88: 0.2328537388
B89: 1.1 | C89: 1100 | D89: 0.1589696527 | G89: 0.2116852171
B90: 1.25 | C90: 1250 | D90: 0.1398932944 | G90: 0.186282991
D92: Your Breakeven Prices
B93: Your | C93: Your | E93: To Cover | H93: To Cover
B94: Yield | C94: Yield | E94: Variable | H94: Total
B95: Percent | C95: Pound | E95: Costs | H95: Costs
B96: 0.75 | C96: =E10*YPER1 -> 0 | E96: =IF($E$10=0,0,(YVarExp-(YTotExp+YTotRet-J10))/($E$10*YPER1)) -> 0 | H96: =IF($E$10=0,0,(YTotExp-(YTotExp+YTotRet-J10))/($E$10*YPER1)) -> 0
B97: 0.9 | C97: =E10*YPER2 -> 0 | E97: =IF($E$10=0,0,(YVarExp-(YTotExp+YTotRet-J10))/($E$10*YPER2)) -> 0 | H97: =IF($E$10=0,0,(YTotExp-(YTotExp+YTotRet-J10))/($E$10*YPER2)) -> 0
B98: 1 | C98: =+E10 -> 0 | E98: =IF($E$10=0,0,(YVarExp-(YTotExp+YTotRet-J10))/($E$10*YPER3)) -> 0 | H98: =IF($E$10=0,0,(YTotExp-(YTotExp+YTotRet-J10))/($E$10*YPER3)) -> 0
B99: 1.1 | C99: =E10*YPER4 -> 0 | E99: =IF($E$10=0,0,(YVarExp-(YTotExp+YTotRet-J10))/($E$10*YPER4)) -> 0 | H99: =IF($E$10=0,0,(YTotExp-(YTotExp+YTotRet-J10))/($E$10*YPER4)) -> 0
B100: 1.25 | C100: =E10*YPER5 -> 0 | E100: =IF($E$10=0,0,(YVarExp-(YTotExp+YTotRet-J10))/($E$10*YPER5)) -> 0 | H100: =IF($E$10=0,0,(YTotExp-(YTotExp+YTotRet-J10))/($E$10*YPER5)) -> 0
A102: Developed by Extension Economists, Texas A&M AgriLife Extension Service, budgets@tamu.edu.
A104: Information presented is prepared solely as a general guide and not intended to recognize or predict the costs and returns from any one operation. Brand names are mentioned only as examples and imply no endorsement.

Sheet CowCalf
A1: Projections for Planning Purposes Only -- Not to be Used without Updating
A2: 2018 Estimated Costs and Returns per Animal Unit
A3: Rolling Plains Cow-Calf Production
A4: Enter your name for this budget in the cell above.
A5: Enter Your Values in the cells highlighed in MAROON.
E6: Your Cows
B7: Animal Units (AU) | D7: 400 | F7: Animal Unit | N7: Your
B8: Breeding Females | D8: 400 | F8: Calf | G8: Your | M8: Enterprise | N8: Enterprise
E9: Your | F9: Quantity | G9: Quantity | J9: Your | L9: Your | M9: Total | N9: Total
A10: REVENUE | D10: Head | E10: Head | F10: Per Head | G10: Per Head | H10: Units | I10: $/Unit | J10: $/Unit | K10: Total | L10: Total | M10: ="(" & D7 & " AUs)" -> (400 AUs) | N10: ="(" & E7 & " AUs)" -> ( AUs)
B11: Steer | D11: 0.415 | F11: 5.56 | H11: CWT | I11: 140 | K11: 323.036 | L11: =+E11*G11*J11 -> 0 | M11: 129214.4 | N11: =+L11*E$7 -> 0
B12: Heifer | D12: 0.215 | F12: 5.14 | H12: CWT | I12: 126 | K12: 139.2426 | L12: =+E12*G12*J12 -> 0 | M12: 55697.04 | N12: =+L12*E$7 -> 0
B13: Cull Cow | D13: 0.15 | F13: 10.25 | H13: CWT | I13: 45 | K13: 69.1875 | L13: 0 | M13: 27675 | N13: 0
B14: Cull Bull | D14: 0.009 | F14: 16.5 | H14: CWT | I14: 65 | K14: 9.6525 | L14: 0 | M14: 3861 | N14: 0
D15: 0 | F15: 0 | I15: 0 | K15: 0 | L15: 0 | M15: 0 | N15: 0
D16: 0 | F16: 0 | I16: 0 | K16: 0 | L16: 0 | M16: 0 | N16: 0
A17: Total Revenue | F17: 341.25 | K17: 541.1186 | L17: =+SUM(L11:L16) -> 0 | M17: 216447.44 | N17: =+SUM(N11:N16) -> 0
F18: 513.25
F19: 172 | M19: Enterprise | N19: Enterprise
A20: VARIABLE COSTS | F20: Quantity | G20: Quantity | H20: Units | I20: $/Unit | J20: $/Unit | K20: Total | L20: Total | M20: Total | N20: Total
A21: Production Costs
B22: Miscellaneous
F23: 1 | I23: 0 | K23: 0 | L23: =+J23*G23 -> 0 | M23: 0 | N23: =+L23*E$7 -> 0
F24: 1 | I24: 0 | K24: 0 | L24: 0 | M24: 0 | N24: 0
B25: Marketing Expense | F25: 1 | H25: AU | I25: 11.215 | K25: 11.215 | L25: 0 | M25: 4486 | N25: 0
B26: Feed
C27: Supplement | F27: 500 | H27: Pound | I27: 0.196 | K27: 98 | L27: =+J27*G27 -> 0 | M27: 39200 | N27: =+L27*E$7 -> 0
C28: Salt and Mineral | F28: 30 | H28: Pound | I28: 0.45 | K28: 13.5 | L28: 0 | M28: 5400 | N28: 0
F29: 0 | I29: 0 | K29: 0 | L29: 0 | M29: 0 | N29: 0
F30: 0 | I30: 0 | K30: 0 | L30: 0 | M30: 0 | N30: 0
F31: 0 | I31: 0 | K31: 0 | L31: 0 | M31: 0 | N31: 0
B32: Vet. Medicine
C33: Vet/Medicine - Cow-Calf | F33: 1 | H33: Head | I33: 32 | K33: 32 | L33: =+J33*G33 -> 0 | M33: 12800 | N33: =+L33*E$7 -> 0
F34: 0 | I34: 0 | K34: 0 | L34: 0 | M34: 0 | N34: 0
F35: 0 | I35: 0 | K35: 0 | L35: 0 | M35: 0 | N35: 0
F36: 0 | I36: 0 | K36: 0 | L36: 0 | M36: 0 | N36: 0
B37: Fuel | F37: 1 | H37: AU | I37: 36.967675 | K37: 36.967675 | L37: 0 | M37: 14787.07 | N37: 0
B38: Lube (As a % of fuel) | F38: 0.1 | H38: Percent | I38: 36.967675 | K38: 3.6967675 | L38: 0 | M38: 1478.707 | N38: 0
B39: Repairs | F39: 1 | H39: AU | I39: 0 | K39: 0 | L39: 0 | M39: 0 | N39: 0
B40: Labor | F40: 0.5 | H40: Hours | I40: 15 | K40: 7.5 | L40: 0 | M40: 3000 | N40: 0
B41: Utilities | F41: 1 | H41: AU | I41: 10 | K41: 10 | L41: 0 | M41: 4000 | N41: 0
K42: 0 | L42: =+J42*G42 -> 0 | M42: 0 | N42: 0
K43: 0 | L43: 0 | M43: 0 | N43: 0
K44: 0 | L44: 0 | M44: 0 | N44: 0
B45: Interest on Credit Line | I45: 0.06 | K45: 16.89850672 | L45: =+SUM(L21:L44)/2*J45 -> 0 | M45: 6759.402689 | N45: 0
A46: Total Variable Costs | K46: 229.7779492 | L46: =+SUM(L23:L45) -> 0 | M46: 91911.17969 | N46: =+SUM(N23:N45) -> 0
A48: Planned Returns Above Variable Costs: | K48: 311.3406508 | L48: =+L17-L46 -> 0 | M48: 124536.2603 | N48: =+N17-N46 -> 0
B49: Average Calf Breakeven Price to Cover Variable Costs | I49: 44.23090087 | J49: =IF((E11*G11+E12*G12)=0,"n/a",(L46-SUM(L13:L16))/(E11*G11+E12*G12)) -> n/a | K49: CWT
M50: Enterprise | N50: Enterprise
A51: FIXED COSTS | F51: Quantity | G51: Quantity | H51: Units | I51: $/Unit | J51: $/Unit | K51: Total | L51: Total | M51: Total | N51: Total
B52: Depreciation - Equipment | F52: 1 | H52: AU | I52: 62.61633333 | K52: 62.61633333 | L52: =+G52*J52 -> 0 | M52: 25046.53333 | N52: =+L52*E$7 -> 0
B53: Depreciation - Livestock | F53: 1 | H53: AU | I53: 41.9775 | K53: 41.9775 | L53: 0 | M53: 16791 | N53: 0
B54: Equipment Investment | F54: 1313.3175 | H54: dollars | I54: 0.055 | K54: 72.2324625 | L54: 0 | M54: 28892.985 | N54: 0
B55: Insurance | F55: 1 | H55: AU | I55: 0 | K55: 0 | L55: 0 | M55: 0 | N55: 0
B56: Management Fee, Owner/Operator Labor | F56: 1 | H56: AU | I56: 112.5 | K56: 112.5 | L56: =+J56*G56 -> 0 | M56: 45000 | N56: 0
B57: Salaried Labor | F57: 1 | H57: AU | I57: 37.5 | K57: 37.5 | L57: =+J57*G57 -> 0 | M57: 15000 | N57: 0
B58: Pasture Cost | F58: 11.25 | H58: Acres | I58: 15 | K58: 168.75 | L58: 0 | M58: 67500 | N58: 0
K59: 0 | L59: =+G59*J59 -> 0 | M59: 0 | N59: 0
K60: 0 | L60: 0 | M60: 0 | N60: 0
A61: Total Fixed Costs | K61: 495.5762958 | L61: =+SUM(L52:L58) -> 0 | M61: 198230.5183 | N61: =+SUM(N52:N58) -> 0
A62: Total Costs | K62: 725.3542451 | L62: =+L46+L61 -> 0 | M62: 290141.698 | N62: =+N46+N61 -> 0
A63: Planned Returns to Management, Risk, and Profit: | K63: -184.2356451 | L63: =+L17-L62 -> 0 | M63: -73694.25802 | N63: =+N17-N62 -> 0
B64: Average Calf Breakeven Price to Cover Total Costs | I64: 189.4547238 | J64: =IF((E11*G11+E12*G12)=0,"n/a",(L62-SUM(L13:L16))/(E11*G11+E12*G12)) -> n/a | K64: CWT
C66: Sensitivity Analysis for Example
C67: Example Weaning Percent | D67: Example Gross Sales per Animal Unit | F67: Pounds Produced per Animal Unit | H67: Example Breakeven Calf Pay Weight to Cover Total Cost | K67: Example Average Breakeven Price to Cover Total Cost
C68: 0.89 | D68: 574.5363301 | F68: 537.9186747 | H68: 644.933965 | K68: 176.6824953
C69: 0.86 | D69: 557.8274651 | F69: 525.5843373 | H69: 672.1846959 | K69: 182.8458381
C70: 0.83 | D70: 541.1186 | F70: 513.25 | H70: 701.8399031 | K70: 189.4547238
C71: 0.8 | D71: 524.4097349 | F71: 500.9156627 | H71: 734.232514 | K71: 196.559276
C72: 0.77 | D72: 507.7008699 | F72: 488.5813253 | H72: 769.7598937 | K72: 204.2174296
D74: ="Example Male "&F8&" Price" -> Example Male Calf Price | K74: =+I11 -> 140
D75: ="Example Female "&F8&" Price" -> Example Female Calf Price | K75: =+I12 -> 126
D76: ="Example Weighted Average "&F8&" Price ($/cwt)" -> Example Weighted Average Calf Price ($/cwt) | K76: =+(K11+K12)/(D11*F11+D12*F12) -> 135.4662564
C78: Sensitivity Analysis for Your Values
C79: Your Weaning Percent | D79: ="Your Gross Sales per "&F7 -> Your Gross Sales per Animal Unit | F79: ="Pounds Produced per "&F7 -> Pounds Produced per Animal Unit | H79: ="Your Breakeven "&F8&" Pay Weight to Cover Total Cost" -> Your Breakeven Calf Pay Weight to Cover Total Cost | K79: Your Average Breakeven Price to Cover Total Cost
C80: =+C81+C68-C69 -> 1.06 | D80: =+IF($C$82=0,0,$L$17-$L$11-$L$12+($L$11+$L$12)*C80/$C$82) -> 0 | F80: =IF($C$82=0,0,$M$86*C80/$C$82+$M$87) -> 0 | H80: =IF($D$82=0,0,(YTotExp-(YTotRet+YTotExp-$L$11-$L$12))/(YPrice/100)/(C80-$E$13*$E$7/$E$8)/($E$8/$E$7)) -> 0 | K80: =IF(F80-$M$87=0,0,(YTotExp-(YTotRet+YTotExp-$L$11-$L$12))/(F80-$M$87)*100) -> 0
C81: =+C82+C69-C70 -> 1.03 | D81: =+IF($C$82=0,0,$L$17-$L$11-$L$12+($L$11+$L$12)*C81/$C$82) -> 0 | F81: =IF($C$82=0,0,$M$86*C81/$C$82+$M$87) -> 0 | H81: =IF($D$82=0,0,(YTotExp-(YTotRet+YTotExp-$L$11-$L$12))/(YPrice/100)/(C81-$E$13*$E$7/$E$8)/($E$8/$E$7)) -> 0 | K81: =IF(F81-$M$87=0,0,(YTotExp-(YTotRet+YTotExp-$L$11-$L$12))/(F81-$M$87)*100) -> 0
C82: 1 | D82: =+L17 -> 0 | F82: =M86+M87 -> 0 | H82: =IF($D$82=0,0,(YTotExp-(YTotRet+YTotExp-$L$11-$L$12))/(YPrice/100)/(C82-$E$13*$E$7/$E$8)/($E$8/$E$7)) -> 0 | K82: =IF(F82-$M$87=0,0,(YTotExp-(YTotRet+YTotExp-$L$11-$L$12))/(F82-$M$87)*100) -> 0
C83: =+C82+C71-C70 -> 0.97 | D83: =+IF($C$82=0,0,$L$17-$L$11-$L$12+($L$11+$L$12)*C83/$C$82) -> 0 | F83: =IF($C$82=0,0,$M$86*C83/$C$82+$M$87) -> 0 | H83: =IF($D$82=0,0,(YTotExp-(YTotRet+YTotExp-$L$11-$L$12))/(YPrice/100)/(C83-$E$13*$E$7/$E$8)/($E$8/$E$7)) -> 0 | K83: =IF(F83-$M$87=0,0,(YTotExp-(YTotRet+YTotExp-$L$11-$L$12))/(F83-$M$87)*100) -> 0
C84: =+C83+C72-C71 -> 0.94 | D84: =+IF($C$82=0,0,$L$17-$L$11-$L$12+($L$11+$L$12)*C84/$C$82) -> 0 | F84: =IF($C$82=0,0,$M$86*C84/$C$82+$M$87) -> 0 | H84: =IF($D$82=0,0,(YTotExp-(YTotRet+YTotExp-$L$11-$L$12))/(YPrice/100)/(C84-$E$13*$E$7/$E$8)/($E$8/$E$7)) -> 0 | K84: =IF(F84-$M$87=0,0,(YTotExp-(YTotRet+YTotExp-$L$11-$L$12))/(F84-$M$87)*100) -> 0
D86: ="Your Male "&F8&" Price" -> Your Male Calf Price | K86: =+J11 -> 0 | M86: =(E11*G11+E12*G12)*100 -> 0
D87: ="Your Female "&F8&" Price" -> Your Female Calf Price | K87: =+J12 -> 0 | M87: =(E13*G13+E14*G14)*100 -> 0
D88: ="Your Weighted Average "&F8&" Price ($/cwt)" -> Your Weighted Average Calf Price ($/cwt) | K88: =+IF((E11*G11+E12*G12)=0,0,(L11+L12)/(E11*G11+E12*G12)) -> 0
A90: Developed by Extension Economists, Texas A&M AgriLife Extension Service, budgets@tamu.edu.
A92: Information presented is prepared solely as a general guide and not intended to recognize or predict the costs and returns from any one operation. Brand names are mentioned only as examples and imply no endorsement.

Sheet StockersMar1
A1: Projections for Planning Purposes Only -- Not to be Used without Updating
A2: 2018 Estimated Costs and Returns per Animal
A3: Stocker Calf Budget - Pull off Wheat March 1
A4: Enter your name for this budget in the cell above.
A5: Enter Your Values in the cells highlighed in MAROON. | M5: Stocker
E6: Your Head | N6: Your
B7: Number of Head | D7: 800 | G7: Your | M7: Enterprise | N7: Enterprise
E8: Your | F8: Pay Weight | G8: Weight | J8: Your | L8: Your | M8: Total | N8: Total
A9: REVENUE | D9: Head | E9: Head | F9: or Amount | G9: or Amount | H9: Units | I9: $/Unit | J9: $/Unit | K9: Total | L9: Total | M9: ="(" & D7 & " Head)" -> (800 Head) | N9: ="(" & E7 & " Head)" -> ( Head)
B11: Stocker | D11: 0.975 | F11: 6.4 | H11: CWT | I11: 136 | K11: 848.64 | L11: =+J11*G11*E11 -> 0 | M11: 678912 | N11: =+L11*E$7 -> 0
D12: 0.975 | F12: 0 | I12: 0 | K12: 0 | L12: 0 | M12: 0 | N12: 0
D13: 0.975 | F13: 0 | I13: 0 | K13: 0 | L13: 0 | M13: 0 | N13: 0
A14: Total Revenue | K14: 848.64 | L14: =+L11 -> 0 | M14: 678912 | N14: 0
M15: Enterprise | N15: Enterprise
A16: VARIABLE COSTS | F16: Quantity | G16: Quantity | H16: Units | I16: $/Unit | J16: $/Unit | K16: Total | L16: Total | M16: Total | N16: Total
A17: Production Costs
B18: Stocker Purchase | F18: 4.75 | H18: CWT | I18: 143 | K18: 679.25 | L18: =+J18*G18 -> 0 | M18: 543400 | N18: =+L18*E$7 -> 0
B19: Stocker Delivery | F19: 1 | H19: Head | I19: 0 | K19: 0 | L19: =+J19*G19 -> 0 | M19: 0 | N19: =+L19*E$7 -> 0
B20: Grazing
C21: Acre Lease | F21: 0.00125 | H21: Acre | I21: 0 | K21: 0 | L21: 0 | M21: 0 | N21: =+L21*E$7 -> 0
C22: Grazing by Month | F22: 0 | H22: Month | I22: 0 | K22: 0 | L22: 0 | M22: 0 | N22: 0
C23: Gain Contract | F23: 152.8205128 | H23: Pounds | I23: 0.4 | K23: 61.12820513 | L23: 0 | M23: 48902.5641 | N23: 0
C24: On Weight Per Month | F24: 0 | H24: Month | I24: 0 | K24: 0 | L24: =+G24*J24*G18 -> 0 | M24: 0 | N24: 0
B25: Health
C26: Vet/Medicine - Stocker | F26: 1 | H26: Head | I26: 24 | K26: 24 | L26: =+J26*G26 -> 0 | M26: 19200 | N26: =+L26*E$7 -> 0
F27: 0 | I27: 0 | K27: 0 | L27: 0 | M27: 0 | N27: 0
F28: 0 | I28: 0 | K28: 0 | L28: 0 | M28: 0 | N28: 0
F29: 0 | I29: 0 | K29: 0 | L29: 0 | M29: 0 | N29: 0
B30: Feed
C31: Hay | F31: 125 | H31: Pound | I31: 0.08 | K31: 10 | L31: 0 | M31: 8000 | N31: 0
C32: Salt & Mineral - Stocker | F32: 15 | H32: Pound | I32: 0.45 | K32: 6.75 | L32: 0 | M32: 5400 | N32: 0
F33: 0 | I33: 0 | K33: 0 | L33: 0 | M33: 0 | N33: 0
F34: 0 | I34: 0 | K34: 0 | L34: 0 | M34: 0 | N34: 0
F35: 0 | I35: 0 | K35: 0 | L35: 0 | M35: 0 | N35: 0
B36: Miscellaneous
F37: 1 | I37: 0 | K37: 0 | L37: =+J37*G37 -> 0 | M37: 0 | N37: =+L37*E$7 -> 0
F38: 1 | I38: 0 | K38: 0 | L38: 0 | M38: 0 | N38: 0
B39: Fuel | F39: 1 | H39: Head | I39: 8.195625 | K39: 8.195625 | L39: 0 | M39: 6556.5 | N39: 0
B40: Lube (As a % of fuel) | F40: 0.1 | H40: Percent | I40: 8.195625 | K40: 0.8195625 | L40: 0 | M40: 655.65 | N40: 0
B41: Utilities | F41: 1 | H41: Head | I41: 0 | K41: 0 | L41: 0 | M41: 0 | N41: 0
B42: Repairs | F42: 1 | H42: Head | I42: 0 | K42: 0 | L42: 0 | M42: 0 | N42: 0
B43: Marketing | F43: 0.975 | H43: Head | I43: 12 | K43: 11.7 | L43: 0 | M43: 9360 | N43: 0
B44: Labor | F44: 1 | H44: Head | I44: 8.415 | K44: 8.415 | L44: 0 | M44: 6732 | N44: 0
K45: 0 | L45: =+J45*G45 -> 0 | M45: 0 | N45: =+L45*E$7 -> 0
K46: 0 | L46: =+J46*G46 -> 0 | M46: 0 | N46: =+L46*E$7 -> 0
B47: Interest on Credit Line | I47: 0.06 | K47: 16.39185308 | L47: =+SUM(L18:L44)*J47/2 -> 0 | M47: 13113.48247 | N47: 0
A48: Total Variable Costs | K48: 826.6502457 | L48: =+SUM(L18:L47) -> 0 | M48: 661320.1966 | N48: =+SUM(N18:N47) -> 0
A50: Planned Returns Above Variable Costs: | K50: 21.98975429 | L50: =+L14-L48 -> 0 | M50: 17591.80343 | N50: =+N14-N48 -> 0
B52: Breakeven Price to Cover Variable Costs | I52: 132.4760009 | J52: =+IF(G11=0,"n/a",(L48-SUM(L12:L13))/(G11*E11)) -> n/a | K52: CWT
M53: Enterprise | N53: Enterprise
A54: FIXED COSTS | F54: Quantity | G54: Quantity | H54: Units | I54: $/Unit | J54: $/Unit | K54: Total | L54: Total | M54: Total | N54: Total
B56: Depreciation | F56: 1 | H56: Head | I56: 12.48583333 | K56: 12.48583333 | L56: =+J56*G56 -> 0 | M56: 9988.666667 | N56: =+L56*E$7 -> 0
B57: Equipment Investment | F57: 27.215 | H57: dollars | I57: 0.055 | K57: 1.496825 | L57: 0 | M57: 1197.46 | N57: 0
B58: Salaried Labor | F58: 1 | H58: Head | I58: 0 | K58: 0 | L58: 0 | M58: 0 | N58: 0
B59: Management Fee, Owner/Operator Labor | F59: 1 | H59: Head | I59: 0 | K59: 0 | L59: 0 | M59: 0 | N59: 0
B60: Insurance | F60: 1 | H60: Head | I60: 0 | K60: 0 | L60: 0 | M60: 0 | N60: 0
K61: 0 | L61: 0 | M61: 0 | N61: 0
K62: 0 | L62: 0 | M62: 0 | N62: 0
A63: Total Fixed Costs | K63: 13.98265833 | L63: =+SUM(L56:L60) -> 0 | M63: 11186.12667 | N63: =+SUM(N56:N60) -> 0
A65: Total Costs | K65: 840.632904 | L65: =+L48+L63 -> 0 | M65: 672506.3232 | N65: =+N48+N63 -> 0
A67: Planned Returns to Management, Risk, and Profit: | K67: 8.007095956 | L67: =+L50-L63 -> 0 | M67: 6405.676765 | N67: =+N50-N63 -> 0
A69: Breakeven Price to Cover Total Costs | I69: 134.7168115 | J69: =+IF(G11=0,"n/a",(L65-SUM(L12:L13))/(G11*E11)) -> n/a | K69: CWT
C71: Example Break Even Sensitivity Analysis
F72: Purchase Weight (Lbs/Hd): 475 | H72: Sales Price/Cwt of $Total
D73: Net Pay Weight | F73: Sales Price/Cwt 136.00 | H73: Purchase Price/Cwt 143.00
C74: ADG (Lbs/day) | D74: with Shrink | F74: B/E Purchase Price ($/CWT) | H74: B/E Sales Price ($/CWT)
C75: 1.455882353 | D75: 673 | F75: 153.8979149 | H75: 128.1110838
C76: 1.334558824 | D76: 656.5 | F76: 149.2918097 | H76: 131.3309359
C77: 1.213235294 | D77: 640 | F77: 144.6857044 | H77: 134.7168115
C78: 1.091911765 | D78: 623.5 | F78: 140.0795991 | H78: 138.2818916
C79: 0.9705882353 | D79: 607 | F79: 135.4734939 | H79: 142.0407898
C81: Your Average Daily Gain | E81: 0 | F81: Pounds per Day
C82: =+"Your Animal"&IF(M5="Stocker"," Grazing"," Feeding")&" Days" -> Your Animal Grazing Days | E82: 0 | F82: Days
C83: Your Sale Shrink | E83: 0
C85: Your Break Even Sensitivity Analysis
F86: =+"Purchase Weight (Lbs/Hd): "&G18*100 -> Purchase Weight (Lbs/Hd): 0 | H86: Sales Price/Cwt of $Total
D87: Net Pay Weight | F87: ="Sales Price/Cwt "&IF(J11="",".00",TEXT(J11,"#.00")) -> Sales Price/Cwt .00 | H87: ="Purchase Price/Cwt "&IF(J18="",".00",TEXT(J18,"#.00")) -> Purchase Price/Cwt .00
C88: ADG (Lbs/day) | D88: with Shrink | F88: B/E Purchase Price ($/CWT) | H88: B/E Sales Price ($/CWT)
C89: =+C91*1.2 -> 0 | D89: =+C89*$E$82+$G$18*100*(1-$E$83) -> 0 | F89: =IF($G$18=0,0,(((D89*$J$11/100*$E$11)-($L$48-SUM($J$12:$J$13)-$L$18)-$L$63)/(100*$G$18))*100) -> 0 | H89: =IF($E$11=0,0,($L$65-SUM($J$12:$J$13))/(D89*$E$11/100)) -> 0
C90: =+C91*1.1 -> 0 | D90: =+C90*$E$82+$G$18*100*(1-$E$83) -> 0 | F90: =IF($G$18=0,0,(((D90*$J$11/100*$E$11)-($L$48-SUM($J$12:$J$13)-$L$18)-$L$63)/(100*$G$18))*100) -> 0 | H90: =IF($E$11=0,0,($L$65-SUM($J$12:$J$13))/(D90*$E$11/100)) -> 0
C91: =+E81 -> 0 | D91: =+C91*$E$82+$G$18*100*(1-$E$83) -> 0 | F91: =IF($G$18=0,0,(((D91*$J$11/100*$E$11)-($L$48-SUM($J$12:$J$13)-$L$18)-$L$63)/(100*$G$18))*100) -> 0 | H91: =IF($E$11=0,0,($L$65-SUM($J$12:$J$13))/(D91*$E$11/100)) -> 0
C92: =+C91*0.9 -> 0 | D92: =+C92*$E$82+$G$18*100*(1-$E$83) -> 0 | F92: =IF($G$18=0,0,(((D92*$J$11/100*$E$11)-($L$48-SUM($J$12:$J$13)-$L$18)-$L$63)/(100*$G$18))*100) -> 0 | H92: =IF($E$11=0,0,($L$65-SUM($J$12:$J$13))/(D92*$E$11/100)) -> 0
C93: =+C91*0.8 -> 0 | D93: =+C93*$E$82+$G$18*100*(1-$E$83) -> 0 | F93: =IF($G$18=0,0,(((D93*$J$11/100*$E$11)-($L$48-SUM($J$12:$J$13)-$L$18)-$L$63)/(100*$G$18))*100) -> 0 | H93: =IF($E$11=0,0,($L$65-SUM($J$12:$J$13))/(D93*$E$11/100)) -> 0
A95: Developed by Extension Economists, Texas A&M AgriLife Extension Service, budgets@tamu.edu.
A97: Information presented is prepared solely as a general guide and not intended to recognize or predict the costs and returns from any one operation. Brand names are mentioned only as examples and imply no endorsement.

Sheet StockersGrazeOut
A1: Projections for Planning Purposes Only -- Not to be Used without Updating
A2: 2018 Estimated Costs and Returns per Animal
A3: Stocker Calf Budget - Grazeout
A4: Enter your name for this budget in the cell above.
A5: Enter Your Values in the cells highlighed in MAROON. | M5: Stocker
E6: Your Head | N6: Your
B7: Number of Head | D7: 800 | G7: Your | M7: Enterprise | N7: Enterprise
E8: Your | F8: Pay Weight | G8: Weight | J8: Your | L8: Your | M8: Total | N8: Total
A9: REVENUE | D9: Head | E9: Head | F9: or Amount | G9: or Amount | H9: Units | I9: $/Unit | J9: $/Unit | K9: Total | L9: Total | M9: ="(" & D7 & " Head)" -> (800 Head) | N9: ="(" & E7 & " Head)" -> ( Head)
B11: Stocker | D11: 0.97 | F11: 7.95 | H11: CWT | I11: 130 | K11: 1002.495 | L11: =+J11*G11*E11 -> 0 | M11: 801996 | N11: =+L11*E$7 -> 0
D12: 0.97 | F12: 0 | I12: 0 | K12: 0 | L12: 0 | M12: 0 | N12: 0
D13: 0.97 | F13: 0 | I13: 0 | K13: 0 | L13: 0 | M13: 0 | N13: 0
A14: Total Revenue | K14: 1002.495 | L14: =+L11 -> 0 | M14: 801996 | N14: 0
M15: Enterprise | N15: Enterprise
A16: VARIABLE COSTS | F16: Quantity | G16: Quantity | H16: Units | I16: $/Unit | J16: $/Unit | K16: Total | L16: Total | M16: Total | N16: Total
A17: Production Costs
B18: Stocker Purchase | F18: 4.75 | H18: CWT | I18: 143 | K18: 679.25 | L18: =+J18*G18 -> 0 | M18: 543400 | N18: =+L18*E$7 -> 0
B19: Stocker Delivery | F19: 1 | H19: Head | I19: 0 | K19: 0 | L19: =+J19*G19 -> 0 | M19: 0 | N19: =+L19*E$7 -> 0
B20: Grazing
C21: Acre Lease | F21: 0.00125 | H21: Acre | I21: 0 | K21: 0 | L21: 0 | M21: 0 | N21: =+L21*E$7 -> 0
C22: Grazing by Month | F22: 0 | H22: Month | I22: 0 | K22: 0 | L22: 0 | M22: 0 | N22: 0
C23: Gain Contract | F23: 305.3092784 | H23: Pounds | I23: 0.4 | K23: 122.1237113 | L23: 0 | M23: 97698.96907 | N23: 0
C24: On Weight Per Month | F24: 0 | H24: Month | I24: 0 | K24: 0 | L24: =+G24*J24*G18 -> 0 | M24: 0 | N24: 0
B25: Health
C26: Vet/Medicine - Stocker 1 | F26: 1 | H26: Head | I26: 12 | K26: 12 | L26: =+J26*G26 -> 0 | M26: 9600 | N26: =+L26*E$7 -> 0
C27: Vet/Medicine - Stocker 2 | F27: 0.25 | H27: Head | I27: 16.8 | K27: 4.2 | L27: 0 | M27: 3360 | N27: 0
F28: 0 | I28: 0 | K28: 0 | L28: 0 | M28: 0 | N28: 0
F29: 0 | I29: 0 | K29: 0 | L29: 0 | M29: 0 | N29: 0
F30: 0 | I30: 0 | K30: 0 | L30: 0 | M30: 0 | N30: 0
B31: Feed
C32: Hay | F32: 300 | H32: Pound | I32: 0.08 | K32: 24 | L32: 0 | M32: 19200 | N32: 0
C33: Salt & Mineral - Stocker | F33: 14 | H33: Pound | I33: 0.45 | K33: 6.3 | L33: 0 | M33: 5040 | N33: 0
F34: 0 | I34: 0 | K34: 0 | L34: 0 | M34: 0 | N34: 0
F35: 0 | I35: 0 | K35: 0 | L35: 0 | M35: 0 | N35: 0
F36: 0 | I36: 0 | K36: 0 | L36: 0 | M36: 0 | N36: 0
B37: Miscellaneous
F38: 1 | I38: 0 | K38: 0 | L38: =+J38*G38 -> 0 | M38: 0 | N38: =+L38*E$7 -> 0
F39: 1 | I39: 0 | K39: 0 | L39: 0 | M39: 0 | N39: 0
B40: Fuel | F40: 1 | H40: Head | I40: 18.425 | K40: 18.425 | L40: 0 | M40: 14740 | N40: 0
B41: Lube (As a % of fuel) | F41: 0.1 | H41: Percent | I41: 18.425 | K41: 1.8425 | L41: 0 | M41: 1474 | N41: 0
B42: Utilities | F42: 1 | H42: Head | I42: 0 | K42: 0 | L42: 0 | M42: 0 | N42: 0
B43: Repairs | F43: 1 | H43: Head | I43: 0 | K43: 0 | L43: 0 | M43: 0 | N43: 0
B44: Marketing | F44: 0.97 | H44: Head | I44: 15 | K44: 14.55 | L44: 0 | M44: 11640 | N44: 0
B45: Labor | F45: 1 | H45: Head | I45: 12.55875 | K45: 12.55875 | L45: 0 | M45: 10047 | N45: 0
K46: 0 | L46: =+J46*G46 -> 0 | M46: 0 | N46: =+L46*E$7 -> 0
K47: 0 | L47: =+J47*G47 -> 0 | M47: 0 | N47: =+L47*E$7 -> 0
B48: Interest on Credit Line | I48: 0.06 | K48: 23.7919726 | L48: =+SUM(L18:L45)*J48/2 -> 0 | M48: 19033.57808 | N48: 0
A49: Total Variable Costs | K49: 919.0419339 | L49: =+SUM(L18:L48) -> 0 | M49: 735233.5472 | N49: =+SUM(N18:N48) -> 0
A51: Planned Returns Above Variable Costs: | K51: 83.45306606 | L51: =+L14-L49 -> 0 | M51: 66762.45285 | N51: =+N14-N49 -> 0
B53: Breakeven Price to Cover Variable Costs | I53: 119.178102 | J53: =+IF(G11=0,"n/a",(L49-SUM(L12:L13))/(G11*E11)) -> n/a | K53: CWT
M54: Enterprise | N54: Enterprise
A55: FIXED COSTS | F55: Quantity | G55: Quantity | H55: Units | I55: $/Unit | J55: $/Unit | K55: Total | L55: Total | M55: Total | N55: Total
B57: Depreciation | F57: 1 | H57: Head | I57: 6.485833333 | K57: 6.485833333 | L57: =+J57*G57 -> 0 | M57: 5188.666667 | N57: =+L57*E$7 -> 0
B58: Equipment Investment | F58: 13.465 | H58: dollars | I58: 0.055 | K58: 0.740575 | L58: 0 | M58: 592.46 | N58: 0
B59: Salaried Labor | F59: 1 | H59: Head | I59: 0 | K59: 0 | L59: 0 | M59: 0 | N59: 0
B60: Management Fee, Owner/Operator Labor | F60: 1 | H60: Head | I60: 0 | K60: 0 | L60: 0 | M60: 0 | N60: 0
B61: Insurance | F61: 1 | H61: Head | I61: 0 | K61: 0 | L61: 0 | M61: 0 | N61: 0
K62: 0 | L62: 0 | M62: 0 | N62: 0
K63: 0 | L63: 0 | M63: 0 | N63: 0
A64: Total Fixed Costs | K64: 7.226408333 | L64: =+SUM(L57:L61) -> 0 | M64: 5781.126667 | N64: =+SUM(N57:N61) -> 0
A66: Total Costs | K66: 926.2683423 | L66: =+L49+L64 -> 0 | M66: 741014.6738 | N66: =+N49+N64 -> 0
A68: Planned Returns to Management, Risk, and Profit: | K68: 76.22665772 | L68: =+L51-L64 -> 0 | M68: 60981.32618 | N68: =+N51-N64 -> 0
A70: Breakeven Price to Cover Total Costs | I70: 120.1151971 | J70: =+IF(G11=0,"n/a",(L66-SUM(L12:L13))/(G11*E11)) -> n/a | K70: CWT
C72: Example Break Even Sensitivity Analysis
F73: Purchase Weight (Lbs/Hd): 475 | H73: Sales Price/Cwt of $Total
D74: Net Pay Weight | F74: Sales Price/Cwt 130.00 | H74: Purchase Price/Cwt 143.00
C75: ADG (Lbs/day) | D75: with Shrink | F75: B/E Purchase Price ($/CWT) | H75: B/E Sales Price ($/CWT)
C76: 1.949238579 | D76: 859 | F76: 176.0380332 | H76: 111.1659857
C77: 1.78680203 | D77: 827 | F77: 167.5428753 | H77: 115.4674506
C78: 1.624365482 | D78: 795 | F78: 159.0477174 | H78: 120.1151971
C79: 1.461928934 | D79: 763 | F79: 150.5525595 | H79: 125.1527938
C80: 1.299492386 | D80: 731 | F80: 142.0574016 | H80: 130.6314387
C82: Your Average Daily Gain | E82: 0 | F82: Pounds per Day
C83: =+"Your Animal"&IF(M5="Stocker"," Grazing"," Feeding")&" Days" -> Your Animal Grazing Days | E83: 0 | F83: Days
C84: Your Sale Shrink | E84: 0
C86: Your Break Even Sensitivity Analysis
F87: =+"Purchase Weight (Lbs/Hd): "&G18*100 -> Purchase Weight (Lbs/Hd): 0 | H87: Sales Price/Cwt of $Total
D88: Net Pay Weight | F88: ="Sales Price/Cwt "&IF(J11="",".00",TEXT(J11,"#.00")) -> Sales Price/Cwt .00 | H88: ="Purchase Price/Cwt "&IF(J18="",".00",TEXT(J18,"#.00")) -> Purchase Price/Cwt .00
C89: ADG (Lbs/day) | D89: with Shrink | F89: B/E Purchase Price ($/CWT) | H89: B/E Sales Price ($/CWT)
C90: =+C92*1.2 -> 0 | D90: =+C90*$E$83+$G$18*100*(1-$E$84) -> 0 | F90: =IF($G$18=0,0,(((D90*$J$11/100*$E$11)-($L$49-SUM($J$12:$J$13)-$L$18)-$L$64)/(100*$G$18))*100) -> 0 | H90: =IF($E$11=0,0,($L$66-SUM($J$12:$J$13))/(D90*$E$11/100)) -> 0
C91: =+C92*1.1 -> 0 | D91: =+C91*$E$83+$G$18*100*(1-$E$84) -> 0 | F91: =IF($G$18=0,0,(((D91*$J$11/100*$E$11)-($L$49-SUM($J$12:$J$13)-$L$18)-$L$64)/(100*$G$18))*100) -> 0 | H91: =IF($E$11=0,0,($L$66-SUM($J$12:$J$13))/(D91*$E$11/100)) -> 0
C92: =+E82 -> 0 | D92: =+C92*$E$83+$G$18*100*(1-$E$84) -> 0 | F92: =IF($G$18=0,0,(((D92*$J$11/100*$E$11)-($L$49-SUM($J$12:$J$13)-$L$18)-$L$64)/(100*$G$18))*100) -> 0 | H92: =IF($E$11=0,0,($L$66-SUM($J$12:$J$13))/(D92*$E$11/100)) -> 0
C93: =+C92*0.9 -> 0 | D93: =+C93*$E$83+$G$18*100*(1-$E$84) -> 0 | F93: =IF($G$18=0,0,(((D93*$J$11/100*$E$11)-($L$49-SUM($J$12:$J$13)-$L$18)-$L$64)/(100*$G$18))*100) -> 0 | H93: =IF($E$11=0,0,($L$66-SUM($J$12:$J$13))/(D93*$E$11/100)) -> 0
C94: =+C92*0.8 -> 0 | D94: =+C94*$E$83+$G$18*100*(1-$E$84) -> 0 | F94: =IF($G$18=0,0,(((D94*$J$11/100*$E$11)-($L$49-SUM($J$12:$J$13)-$L$18)-$L$64)/(100*$G$18))*100) -> 0 | H94: =IF($E$11=0,0,($L$66-SUM($J$12:$J$13))/(D94*$E$11/100)) -> 0
A96: Developed by Extension Economists, Texas A&M AgriLife Extension Service, budgets@tamu.edu.
A98: Information presented is prepared solely as a general guide and not intended to recognize or predict the costs and returns from any one operation. Brand names are mentioned only as examples and imply no endorsement.

Sheet Livestock Budget
A1: Estimated Costs and Returns per Animal or Breeding Female
A3: Livestock Enterprise
A5: Number of Head of Livestock | D5: 0
A7: Enter Your Values in the cells highlighed in MAROON. | H7: Enterprise
A8: REVENUE | C8: Head | D8: Quantity | E8: Units | F8: $/Unit | G8: Total | H8: Total
B9: Males Sold | C9: 0 | D9: 0 | E9: CWT | F9: 0 | G9: =IF($D$5=0,0,C9/$D$5*D9*F9) -> 0 | H9: =+G9*$D$5 -> 0
B10: Females Sold | C10: 0 | D10: 0 | E10: CWT | F10: 0 | G10: =IF($D$5=0,0,C10/$D$5*D10*F10) -> 0 | H10: =+G10*$D$5 -> 0
B11: Cull Breeding Females | C11: 0 | D11: 0 | E11: CWT | F11: 0 | G11: 0 | H11: 0
B12: Cull Breeding Males | C12: 0 | D12: 0 | E12: CWT | F12: 0 | G12: 0 | H12: 0
B13: Stocker or Feed Animal | C13: 0 | D13: 0 | E13: CWT | F13: 0 | G13: 0 | H13: 0
B14: Other Revenue | C14: 0 | D14: 0 | E14: CWT | F14: 0 | G14: 0 | H14: 0
B15: Other Revenue | C15: 0 | D15: 0 | E15: CWT | F15: 0 | G15: 0 | H15: 0
B16: Other Revenue | C16: 0 | D16: 0 | E16: CWT | F16: 0 | G16: 0 | H16: 0
A18: Total Revenue | G18: =+SUM(G9:G17) -> 0 | H18: =+SUM(H9:H17) -> 0
H20: Enterprise
A21: VARIABLE COSTS | D21: Quantity | E21: Units | F21: $/Unit | G21: Total | H21: Total
A22: Production Costs
B23: Animal Purchase Price, if applicable | D23: 0 | E23: Cwt | F23: 0 | G23: =D23*F23 -> 0 | H23: =+G23*$D$5 -> 0
B24: Pasture | C24: =+SUM(G25:G28) -> 0
C25: Pasture 1 | D25: 0 | E25: Acre | F25: 0 | G25: =D25*F25 -> 0 | H25: =+G25*$D$5 -> 0
C26: Pasture 2 | D26: 0 | E26: Acre | F26: 0 | G26: 0 | H26: 0
C27: Pasture 3 | D27: 0 | E27: Acre | F27: 0 | G27: 0 | H27: 0
C28: Pasture 4 | D28: 0 | E28: Acre | F28: 0 | G28: 0 | H28: 0
B29: Feed | C29: =SUM(G30:G37) -> 0
C30: Hay | D30: 0 | E30: Bales | F30: 0 | G30: =D30*F30 -> 0 | H30: =+G30*$D$5 -> 0
C31: Supplement | D31: 0 | E31: Cwt,lb,etc | F31: 0 | G31: =D31*F31 -> 0 | H31: =+G31*$D$5 -> 0
C32: Salt Minerals | D32: 0 | E32: Cwt | F32: 0 | G32: 0 | H32: 0
C33: Other Feed | D33: 0 | E33: Cwt,lb,etc | F33: 0 | G33: 0 | H33: 0
C34: Other Feed | D34: 0 | E34: Cwt,lb,etc | F34: 0 | G34: 0 | H34: 0
C35: Other Feed | D35: 0 | E35: Cwt,lb,etc | F35: 0 | G35: 0 | H35: 0
C36: Other Feed | D36: 0 | E36: Cwt,lb,etc | F36: 0 | G36: 0 | H36: 0
C37: Other Feed | D37: 0 | E37: Cwt,lb,etc | F37: 0 | G37: 0 | H37: 0
B38: Health | C38: =SUM(G39:G48) -> 0
C39: Vet/Medicine 1 | D39: 0 | E39: Visit,dose,cc's, etc. | F39: 0 | G39: =D39*F39 -> 0 | H39: =+G39*$D$5 -> 0
C40: Vet/Medicine 2 | D40: 0 | E40: Visit,dose,cc's, etc. | F40: 0 | G40: 0 | H40: 0
C41: Vet/Medicine 3 | D41: 0 | E41: Visit,dose,cc's, etc. | F41: 0 | G41: 0 | H41: 0
C42: Vet/Medicine 4 | D42: 0 | E42: Visit,dose,cc's, etc. | F42: 0 | G42: 0 | H42: 0
C43: Vet/Medicine 5 | D43: 0 | E43: Visit,dose,cc's, etc. | F43: 0 | G43: 0 | H43: 0
C44: Vet/Medicine 6 | D44: 0 | E44: Visit,dose,cc's, etc. | F44: 0 | G44: 0 | H44: 0
C45: Vet/Medicine 7 | D45: 0 | E45: Visit,dose,cc's, etc. | F45: 0 | G45: 0 | H45: 0
C46: Vet/Medicine 8 | D46: 0 | E46: Visit,dose,cc's, etc. | F46: 0 | G46: 0 | H46: 0
C47: Vet/Medicine 9 | D47: 0 | E47: Visit,dose,cc's, etc. | F47: 0 | G47: 0 | H47: 0
C48: Vet/Medicine 10 | D48: 0 | E48: Visit,dose,cc's, etc. | F48: 0 | G48: 0 | H48: 0
B50: Fuel, lube, repair | D50: 1 | E50: Head | F50: 0 | G50: 0 | H50: 0
B52: Labor | D52: 0 | E52: Hours | F52: 0 | G52: 0 | H52: 0
B54: Other Variable Expense | D54: 0 | E54: Cwt,lb,etc | F54: 0 | G54: 0 | H54: 0
B55: Other Variable Expense | D55: 0 | E55: Cwt,lb,etc | F55: 0 | G55: 0 | H55: 0
B56: Other Variable Expense | D56: 0 | E56: Cwt,lb,etc | F56: 0 | G56: 0 | H56: 0
B57: Other Variable Expense | D57: 0 | E57: Cwt,lb,etc | F57: 0 | G57: 0 | H57: 0
B58: Other Variable Expense | D58: 0 | E58: Cwt,lb,etc | F58: 0 | G58: 0 | H58: 0
B59: Other Variable Expense | D59: 0 | E59: Cwt,lb,etc | F59: 0 | G59: 0 | H59: 0
B61: Operating Interest | F61: 0 | G61: =+SUM(G23:G59)/2*F61 -> 0 | H61: 0
A63: Total Variable Costs | G63: =+SUM(G23:G62) -> 0 | H63: =+SUM(H23:H62) -> 0
A65: Planned Returns Above Variable Costs | G65: =+G18-G63 -> 0 | H65: =+H18-H63 -> 0
B67: Breakeven Price to Cover Variable Costs | E67: =IF((H101/100+C13*D13)=0,0,(G63-SUM(G11:G12,G14:G16))/(H101/100+C13*D13)) -> 0 | F67: =+E9 -> CWT
H69: Enterprise
A70: FIXED COSTS | D70: Quantity | E70: Units | F70: $/Unit | G70: Total | H70: Total
B71: Depreciation - Equipment | D71: 0 | E71: Head,$,etc | F71: 0 | G71: =D71*F71 -> 0 | H71: =+G71*$D$5 -> 0
B72: Depreciation - Livestock | D72: 0 | E72: Head,$,etc | F72: 0 | G72: =D72*F72 -> 0 | H72: 0
B73: Equipment Investment | D73: 0 | E73: Head,$,etc | F73: 0 | G73: 0 | H73: 0
B74: Insurance | D74: 0 | E74: Head,$,etc | F74: 0 | G74: 0 | H74: 0
B75: Management Fee | D75: 0 | E75: Head,$,etc | F75: 0 | G75: 0 | H75: 0
B76: Owner/Operator Labor | D76: 0 | E76: Head,$,etc | F76: 0 | G76: 0 | H76: 0
B77: Salaried Labor | D77: 0 | E77: Head,$,etc | F77: 0 | G77: 0 | H77: 0
B78: Other Fixed Expense | D78: 0 | E78: Head,$,etc | F78: 0 | G78: 0 | H78: 0
B79: Other Fixed Expense | D79: 0 | E79: Head,$,etc | F79: 0 | G79: 0 | H79: 0
B80: Other Fixed Expense | D80: 0 | E80: Head,$,etc | F80: 0 | G80: 0 | H80: 0
B81: Other Fixed Expense | D81: 0 | E81: Head,$,etc | F81: 0 | G81: 0 | H81: 0
B82: Other Fixed Expense | D82: 0 | E82: Head,$,etc | F82: 0 | G82: 0 | H82: 0
D84: Total Fixed Costs | G84: =+SUM(G71:G83) -> 0 | H84: =+SUM(H71:H83) -> 0
D86: Total Specified Costs | G86: =+G63+G84 -> 0 | H86: =+H63+H84 -> 0
D88: Returns Above Specifiied Costs | G88: =+G18-G86 -> 0 | H88: =+H18-H86 -> 0
B90: Breakeven Price to Cover Total Costs | E90: =IF((H101/100+C13*D13)=0,0,(G86-SUM(G11:G12,G14:G16))/(H101/100+C13*D13)) -> 0 | F90: =+F67 -> CWT
B93: Sensitivity Analysis for Your Breeding Herd or Flock Values
B94: Your Weaning Percent | C94: ="Your Gross Sales per "&F18 -> Your Gross Sales per | D94: Pounds Produced per AU | E94: ="Your Breakeven "&F19&" Pay Weight to Cover Total Cost" -> Your Breakeven Pay Weight to Cover Total Cost | G94: Your Average Breakeven Price to Cover Total Cost
B95: =+B96-0.03 -> 0.94 | C95: =+IF($B$97=0,0,YTotRet-$L$11-$L$12+($L$11+$L$12)*B95/$B$97) -> 0 | D95: =IF($B$97=0,0,$H$101*B95/$B$97+$H$102) -> 0 | E95: =IF($C$97=0,0,(YTotExp-(YTotRet+YTotExp-$G$9-$G$10))/(YPrice/100)/(B95-C9/D5)) -> 0 | G95: =IF(D95-$H$102=0,0,(YTotExp-(YTotRet+YTotExp-$G$9-$G$10))/(D95-$H$102)*100) -> 0
B96: =+B97-0.03 -> 0.97 | C96: =+IF($B$97=0,0,YTotRet-$L$11-$L$12+($L$11+$L$12)*B96/$B$97) -> 0 | D96: =IF($B$97=0,0,$H$101*B96/$B$97+$H$102) -> 0 | E96: =IF($C$97=0,0,(YTotExp-(YTotRet+YTotExp-$G$9-$G$10))/(YPrice/100)/(B96-C10/D5)) -> 0 | G96: =IF(D96-$H$102=0,0,(YTotExp-(YTotRet+YTotExp-$G$9-$G$10))/(D96-$H$102)*100) -> 0
B97: 1 | C97: =+YTotRet -> 0 | D97: =H101+H102 -> 0 | E97: =IF($C$97=0,0,(YTotExp-(YTotRet+YTotExp-$G$9-$G$10))/(YPrice/100)/(B97-C11/D5)) -> 0 | G97: =IF(D97-$H$102=0,0,(YTotExp-(YTotRet+YTotExp-$G$9-$G$10))/(D97-$H$102)*100) -> 0
B98: =+B97+0.03 -> 1.03 | C98: =+IF($B$97=0,0,YTotRet-$L$11-$L$12+($L$11+$L$12)*B98/$B$97) -> 0 | D98: =IF($B$97=0,0,$H$101*B98/$B$97+$H$102) -> 0 | E98: =IF($C$97=0,0,(YTotExp-(YTotRet+YTotExp-$G$9-$G$10))/(YPrice/100)/(B98-C12/D5)) -> 0 | G98: =IF(D98-$H$102=0,0,(YTotExp-(YTotRet+YTotExp-$G$9-$G$10))/(D98-$H$102)*100) -> 0
B99: =+B98+0.03 -> 1.06 | C99: =+IF($B$97=0,0,YTotRet-$L$11-$L$12+($L$11+$L$12)*B99/$B$97) -> 0 | D99: 0 | E99: =IF($C$97=0,0,(YTotExp-(YTotRet+YTotExp-$G$9-$G$10))/(YPrice/100)/(B99-C13/D5)) -> 0 | G99: =IF(D99-$H$102=0,0,(YTotExp-(YTotRet+YTotExp-$G$9-$G$10))/(D99-$H$102)*100) -> 0
C101: Your Male Price | F101: =+F9 -> 0 | H101: =(C9*D9+C10*D10)*100 -> 0
C102: Your Female Price | F102: =+F10 -> 0 | H102: =(C11*D11+C12*D12)*100 -> 0
C103: Your Weighted Average Price ($/cwt) | F103: =+IF((C9*D9+C10*D10)=0,F13,(G9+G10)/(C9*D9+C10*D10)) -> 0
C105: Your Stocker or Feeder Break Even Sensitivity Analysis
C106: Your Average Daily Gain | E106: 0 | F106: Pounds per Day
C107: =+"Your Animal"&IF(M25="Stocker"," Grazing"," Feeding")&" Days" -> Your Animal Feeding Days | E107: 0 | F107: Days
C108: Your Sale Shrink | E108: 0
C109: Average Daily Gain (Pounds/day) | D109: Net Pay Weight with Shrink (Pounds) | F109: =+"Purchase Weight (Pounds/Head): "&D23*100 -> Purchase Weight (Pounds/Head): 0 | H109: Sales Price/Cwt of $Total
F110: ="Sales Price "&IF(F13="",".00",TEXT(F13,"#.00")) -> Sales Price .00 | H110: ="Purchase Price "&IF(F23="",".00",TEXT(F23,"#.00")) -> Purchase Price .00
F111: B/E Purchase Price ($/CWT) | H111: B/E Sales Price ($/CWT)
C112: =+C114*1.2 -> 0 | D112: =+C112*$E$107+$D$23*100*(1-$E$108) -> 0 | F112: =IF($D$23=0,0,(((D112*$F$13/100*$C$13)-($G$63-SUM($F$14:$F$16)-$G$23)-$G$84)/(100*$D$23))*100) -> 0 | H112: =IF($C$13=0,0,($G$86-SUM($F$14:$F$16))/(D112*$C$13/100)) -> 0
C113: =+C114*1.1 -> 0 | D113: =+C113*$E$107+$D$23*100*(1-$E$108) -> 0 | F113: =IF($D$23=0,0,(((D113*$F$13/100*$C$13)-($G$63-SUM($F$14:$F$16)-$G$23)-$G$84)/(100*$D$23))*100) -> 0 | H113: =IF($C$13=0,0,($G$86-SUM($F$14:$F$16))/(D113*$C$13/100)) -> 0
C114: =+E106 -> 0 | D114: 0 | F114: 0 | H114: 0
C115: =+C114*0.9 -> 0 | D115: 0 | F115: 0 | H115: 0
C116: =+C114*0.8 -> 0 | D116: 0 | F116: 0 | H116: 0

Sheet Crop Budget
A1: Estimated Costs and Returns per Acre
A3: Crop Enterprise
A5: Number of Acres of Crop | D5: 0
A7: Enter Your Values in the cells highlighed in MAROON. | G7: Enterprise
A8: REVENUE | C8: Quantity | D8: Units | E8: $/Unit | F8: Total | G8: Total
B9: Primary Product | C9: 0 | D9: Cwt,lb,etc | E9: 0 | F9: =C9*E9 -> 0 | G9: =+F9*$D$5 -> 0
B10: Secondary Product | C10: 0 | D10: Cwt,lb,etc | E10: 0 | F10: =C10*E10 -> 0 | G10: =+F10*$D$5 -> 0
B11: Secondary Product | C11: 0 | D11: Cwt,lb,etc | E11: 0 | F11: 0 | G11: 0
B12: Secondary Product | C12: 0 | D12: Cwt,lb,etc | E12: 0 | F12: 0 | G12: 0
B13: Secondary Product | C13: 0 | D13: Cwt,lb,etc | E13: 0 | F13: 0 | G13: 0
B14: Secondary Product | C14: 0 | D14: Cwt,lb,etc | E14: 0 | F14: 0 | G14: 0
B15: Secondary Product | C15: 0 | D15: Cwt,lb,etc | E15: 0 | F15: 0 | G15: 0
B16: Secondary Product | C16: 0 | D16: Cwt,lb,etc | E16: 0 | F16: 0 | G16: 0
A18: Total Revenue | F18: =+SUM(F9:F16) -> 0 | G18: =+SUM(G9:G16) -> 0
G20: Enterprise
A21: VARIABLE COSTS | C21: Quantity | D21: Units | E21: $/Unit | F21: Total | G21: Total
A23: Custom Field and Harvest Operations
B24: Custom Field Operation 1 | C24: 0 | D24: Acre | E24: 0 | F24: =C24*E24 -> 0 | G24: =+F24*$D$5 -> 0
B25: Custom Field Operation 2 | C25: 0 | D25: Acre | E25: 0 | F25: 0 | G25: 0
B26: Custom Field Operation 3 | C26: 0 | D26: Acre | E26: 0 | F26: 0 | G26: 0
B27: Custom Field Operation 4 | C27: 0 | D27: Acre | E27: 0 | F27: 0 | G27: 0
B28: Custom Field Operation 5 | C28: 0 | D28: Acre | E28: 0 | F28: 0 | G28: 0
B29: Custom Field Operation 6 | C29: 0 | D29: Acre | E29: 0 | F29: 0 | G29: 0
A30: Machinery Expenses
B31: Diesel | C31: 0 | D31: Gallon | E31: 0 | F31: =C31*E31 -> 0 | G31: 0
B32: Gasoline | C32: 0 | D32: Gallon | E32: 0 | F32: 0 | G32: 0
B33: Lube | C33: 0 | D33: Acre | E33: 0 | F33: 0 | G33: 0
B34: Repairs | C34: 0 | D34: Acre | E34: 0 | F34: 0 | G34: 0
B35: Other Machinery Expense 1 | C35: 0 | D35: Acre | E35: 0 | F35: 0 | G35: 0
B36: Other Machinery Expense 2 | C36: 0 | D36: Acre | E36: 0 | F36: 0 | G36: 0
A37: Labor
B38: Labor 1 | C38: 0 | D38: Hour | E38: 0 | F38: =C38*E38 -> 0 | G38: 0
B39: Labor 2 | C39: 0 | D39: Hour | E39: 0 | F39: 0 | G39: 0
B40: Labor 3 | C40: 0 | D40: Hour | E40: 0 | F40: 0 | G40: 0
B41: Labor 4 | C41: 0 | D41: Hour | E41: 0 | F41: 0 | G41: 0
B42: Labor 5 | C42: 0 | D42: Hour | E42: 0 | F42: 0 | G42: 0
B43: Irrigation Labor | C43: 0 | D43: Hour | E43: 0 | F43: 0 | G43: 0
A44: Seed or Transplants
B45: Seed | C45: 0 | D45: Pound | E45: 0 | F45: =C45*E45 -> 0 | G45: 0
B46: Seed Treatment | C46: 0 | D46: Pound | E46: 0 | F46: 0 | G46: 0
B47: Seed Fee | C47: 0 | D47: Pound | E47: 0 | F47: 0 | G47: 0
B48: Transplants | C48: 0 | D48: Thousand | E48: 0 | F48: 0 | G48: 0
B49: Mulch | C49: 0 | D49: Foot | E49: 0 | F49: 0 | G49: 0
B50: Other Seed or Transplant | C50: 0 | D50: Pound | E50: 0 | F50: 0 | G50: 0
A51: Fertilizer and Lime
B52: Fertlizer 1 | C52: 0 | D52: Pound | E52: 0 | F52: =C52*E52 -> 0 | G52: 0
B53: Fertlizer 2 | C53: 0 | D53: Pound | E53: 0 | F53: 0 | G53: 0
B54: Fertlizer 3 | C54: 0 | D54: Pound | E54: 0 | F54: 0 | G54: 0
B55: Fertlizer 4 | C55: 0 | D55: Pound | E55: 0 | F55: 0 | G55: 0
B56: Fertlizer 5 | C56: 0 | D56: Pound | E56: 0 | F56: 0 | G56: 0
B57: Lime | C57: 0 | D57: Ton | E57: 0 | F57: 0 | G57: 0
B58: Other Soil Amendment 1 | C58: 0 | D58: Pound | E58: 0 | F58: 0 | G58: 0
B59: Other Soil Amendment 2 | C59: 0 | D59: Pound | E59: 0 | F59: 0 | G59: 0
A60: Herbicides
B61: Herbicide 1 | C61: 0 | D61: Lb,Oz,Acre | E61: 0 | F61: =C61*E61 -> 0 | G61: 0
B62: Herbicide 2 | C62: 0 | D62: Lb,Oz,Acre | E62: 0 | F62: 0 | G62: 0
B63: Herbicide 3 | C63: 0 | D63: Lb,Oz,Acre | E63: 0 | F63: 0 | G63: 0
B64: Herbicide 4 | C64: 0 | D64: Lb,Oz,Acre | E64: 0 | F64: 0 | G64: 0
B65: Herbicide 5 | C65: 0 | D65: Lb,Oz,Acre | E65: 0 | F65: 0 | G65: 0
B66: Herbicide 6 | C66: 0 | D66: Lb,Oz,Acre | E66: 0 | F66: 0 | G66: 0
A67: Insecticides
B68: Insecticide 1 | C68: 0 | D68: Lb,Oz,Acre | E68: 0 | F68: =C68*E68 -> 0 | G68: 0
B69: Insecticide 2 | C69: 0 | D69: Lb,Oz,Acre | E69: 0 | F69: 0 | G69: 0
B70: Insecticide 3 | C70: 0 | D70: Lb,Oz,Acre | E70: 0 | F70: 0 | G70: 0
B71: Insecticide 4 | C71: 0 | D71: Lb,Oz,Acre | E71: 0 | F71: 0 | G71: 0
B72: Insecticide 5 | C72: 0 | D72: Lb,Oz,Acre | E72: 0 | F72: 0 | G72: 0
B73: Insecticide 6 | C73: 0 | D73: Lb,Oz,Acre | E73: 0 | F73: 0 | G73: 0
A74: Fungicides
B75: Fungicide 1 | C75: 0 | D75: Lb,Oz,Acre | E75: 0 | F75: =C75*E75 -> 0 | G75: 0
B76: Fungicide 2 | C76: 0 | D76: Lb,Oz,Acre | E76: 0 | F76: 0 | G76: 0
B77: Fungicide 3 | C77: 0 | D77: Lb,Oz,Acre | E77: 0 | F77: 0 | G77: 0
B78: Fungicide 4 | C78: 0 | D78: Lb,Oz,Acre | E78: 0 | F78: 0 | G78: 0
B79: Fungicide 5 | C79: 0 | D79: Lb,Oz,Acre | E79: 0 | F79: 0 | G79: 0
B80: Fungicide 6 | C80: 0 | D80: Lb,Oz,Acre | E80: 0 | F80: 0 | G80: 0
A81: Growth Regulators
B82: Growth Regulator 1 | C82: 0 | D82: Lb,Oz,Acre | E82: 0 | F82: =C82*E82 -> 0 | G82: 0
B83: Growth Regulator 2 | C83: 0 | D83: Lb,Oz,Acre | E83: 0 | F83: 0 | G83: 0
B84: Growth Regulator 3 | C84: 0 | D84: Lb,Oz,Acre | E84: 0 | F84: 0 | G84: 0
B85: Growth Regulator 4 | C85: 0 | D85: Lb,Oz,Acre | E85: 0 | F85: 0 | G85: 0
B86: Growth Regulator 5 | C86: 0 | D86: Lb,Oz,Acre | E86: 0 | F86: 0 | G86: 0
B87: Growth Regulator 6 | C87: 0 | D87: Lb,Oz,Acre | E87: 0 | F87: 0 | G87: 0
A88: Other Chemicals
B89: Fumigant | C89: 0 | D89: Lb,Oz,Acre | E89: 0 | F89: =C89*E89 -> 0 | G89: 0
B90: Other Chemical 1 | C90: 0 | D90: Lb,Oz,Acre | E90: 0 | F90: 0 | G90: =+F90*$D$5 -> 0
B91: Other Chemical 2 | C91: 0 | D91: Lb,Oz,Acre | E91: 0 | F91: 0 | G91: 0
B92: Other Chemical 3 | C92: 0 | D92: Lb,Oz,Acre | E92: 0 | F92: 0 | G92: 0
B93: Other Chemical 4 | C93: 0 | D93: Lb,Oz,Acre | E93: 0 | F93: 0 | G93: 0
B94: Other Chemical 5 | C94: 0 | D94: Lb,Oz,Acre | E94: 0 | F94: 0 | G94: 0
A95: Irrigation
B96: Well Expense | C96: 0 | D96: Acre | E96: 0 | F96: =C96*E96 -> 0 | G96: =+F96*$D$5 -> 0
B97: Pump Fuel | C97: 0 | D97: Mcf,kWh,Gallon | E97: 0 | F97: 0 | G97: 0
B98: Pump Expense | C98: 0 | D98: Acre | E98: 0 | F98: 0 | G98: 0
B99: Irrigation Equipment Expense | C99: 0 | D99: Acre | E99: 0 | F99: 0 | G99: 0
B100: Repairs | C100: 0 | D100: Acre | E100: 0 | F100: 0 | G100: 0
B101: Drip Tape | C101: 0 | D101: Foot,Acre | E101: 0 | F101: 0 | G101: 0
B102: Water Cost | C102: 0 | D102: AcIn,Gallon | E102: 0 | F102: 0 | G102: 0
B103: Other Irrigation Expense 1 | C103: 0 | D103: Acre | E103: 0 | F103: 0 | G103: 0
B104: Other Irrigation Expense 2 | C104: 0 | D104: Acre | E104: 0 | F104: 0 | G104: 0
A105: Miscellaneous Expenses
B106: Crop Insurance | C106: 0 | D106: Acre | E106: 0 | F106: =C106*E106 -> 0 | G106: 0
B107: Other Variable Expense 1 | C107: 0 | D107: Enter Unit | E107: 0 | F107: 0 | G107: 0
B108: Other Variable Expense 2 | C108: 0 | D108: Enter Unit | E108: 0 | F108: 0 | G108: 0
B109: Other Variable Expense 3 | C109: 0 | D109: Enter Unit | E109: 0 | F109: 0 | G109: 0
B110: Other Variable Expense 4 | C110: 0 | D110: Enter Unit | E110: 0 | F110: 0 | G110: 0
B111: Other Variable Expense 5 | C111: 0 | D111: Enter Unit | E111: 0 | F111: 0 | G111: 0
B112: Other Variable Expense 6 | C112: 0 | D112: Enter Unit | E112: 0 | F112: 0 | G112: 0
B113: Other Variable Expense 7 | C113: 0 | D113: Enter Unit | E113: 0 | F113: 0 | G113: 0
B114: Other Variable Expense 8 | C114: 0 | D114: Enter Unit | E114: 0 | F114: 0 | G114: 0
B116: Operating Interest | E116: 0 | F116: =+SUM(F23:F115)/2*E116 -> 0 | G116: =+F116*$D$6 -> 0
A118: Total Variable Costs | F118: =+SUM(F23:F116) -> 0 | G118: =+SUM(G23:G116) -> 0
A120: Planned Returns Above Variable Costs | F120: =+F18-F118 -> 0 | G120: =+G18-G118 -> 0
B122: Breakeven Price to Cover Variable Costs | E122: =+IF(C9=0,0,F118-SUM(F10:F16)/C9) -> 0 | F122: =+D9 -> Cwt,lb,etc
G124: Enterprise
A125: FIXED COSTS | C125: Quantity | D125: Units | E125: $/Unit | F125: Total | G125: Total
B126: Land Rent or Expense | C126: 0 | D126: Acre | E126: 0 | F126: =C126*E126 -> 0 | G126: =+F126*$D$6 -> 0
B127: Depreciation - Equipment | C127: 0 | D127: Acre,$,etc | E127: 0 | F127: =C127*E127 -> 0 | G127: 0
B128: Equipment Investment | C128: 0 | D128: Acre,$,etc | E128: 0 | F128: 0 | G128: 0
B129: Insurance | C129: 0 | D129: Acre,$,etc | E129: 0 | F129: 0 | G129: 0
B130: Management Fee | C130: 0 | D130: Acre,$,etc | E130: 0 | F130: 0 | G130: 0
B131: Owner/Operator Labor | C131: 0 | D131: Acre,$,etc | E131: 0 | F131: 0 | G131: 0
B132: Salaried Labor | C132: 0 | D132: Acre,$,etc | E132: 0 | F132: 0 | G132: 0
B133: Other Fixed Expense | C133: 0 | D133: Acre,$,etc | E133: 0 | F133: 0 | G133: 0
B134: Other Fixed Expense | C134: 0 | D134: Acre,$,etc | E134: 0 | F134: 0 | G134: 0
B135: Other Fixed Expense | C135: 0 | D135: Acre,$,etc | E135: 0 | F135: 0 | G135: 0
B136: Other Fixed Expense | C136: 0 | D136: Acre,$,etc | E136: 0 | F136: 0 | G136: 0
B137: Other Fixed Expense | C137: 0 | D137: Acre,$,etc | E137: 0 | F137: 0 | G137: 0
D139: Total Fixed Costs | F139: =+SUM(F126:F137) -> 0 | G139: =+SUM(G126:G137) -> 0
D141: Total Specified Costs | F141: =+F118+F139 -> 0 | G141: =+G118+G139 -> 0
D143: Returns Above Specifiied Costs | F143: =+F18-F141 -> 0 | G143: =+G18-G141 -> 0
B145: Breakeven Price to Cover Total Costs | E145: =+IF(C9=0,0,F141-SUM(F10:F16)/C9) -> 0 | F145: =+D9 -> Cwt,lb,etc
B147: Breakeven Prices for Your Crop
E148: To Cover | G148: To Cover
B149: Yield | C149: Yield | E149: Variable | G149: Total
B150: Percent | C150: =+D9 -> Cwt,lb,etc | E150: Costs | G150: Costs
B151: 0.75 | C151: =+$C$153*B151 -> 0 | E151: =+IF(C151=0,0,($F$118-SUM($F$10:$F$16))/C151) -> 0 | G151: =+IF(C151=0,0,($F$141-SUM($F$10:$F$16))/C151) -> 0
B152: 0.9 | C152: =+$C$153*B152 -> 0 | E152: 0 | G152: =+IF(C152=0,0,($F$141-SUM($F$10:$F$16))/C152) -> 0
B153: 1 | C153: =+C9 -> 0 | E153: =+IF(C153=0,0,($F$118-SUM($F$10:$F$16))/C153) -> 0 | G153: =+IF(C153=0,0,($F$141-SUM($F$10:$F$16))/C153) -> 0
B154: 1.1 | C154: 0 | E154: =+IF(C154=0,0,($F$118-SUM($F$10:$F$16))/C154) -> 0 | G154: =+IF(C154=0,0,($F$141-SUM($F$10:$F$16))/C154) -> 0
B155: 1.25 | C155: 0 | E155: 0 | G155: =+IF(C155=0,0,($F$141-SUM($F$10:$F$16))/C155) -> 0

Sheet Comparative Returns - Cash Rent
A1: Comparative Returns - Cash Rent
B3: Returns Above Total Specified Expenses | E3: Total Direct Expenses | H3: Break-Even Yield to Cover Total Costs at Price Entered
B4: Total | C4: Variable | E4: Total | F4: Variable | H4: Price | I4: Units | J4: Total | K4: Variable
A5: FORAGE CROPS
A7: =+AlfalfaDrylandEstablish!A3 -> Dryland Alfalfa Establishment | B7: =+AlfalfaDrylandEstablish!TotRet -> -304.0545467 | C7: =+AlfalfaDrylandEstablish!VarRet -> -238.4127054 | E7: =+AlfalfaDrylandEstablish!TotExp -> 304.0545467 | F7: =+AlfalfaDrylandEstablish!VarExp -> 238.4127054 | H7: =+AlfalfaDrylandEstablish!Price -> 0 | I7: =+AlfalfaDrylandEstablish!Unit ->  | J7: =+IF($H7=0,0,E7/$H7) -> 0 | K7: 0
A8: =+AlfalfaHayDryland!A3 -> Dryland Alfalfa Hay | B8: =+AlfalfaHayDryland!TotRet -> 365.4934427 | C8: =+AlfalfaHayDryland!VarRet -> 460.8157167 | E8: =+AlfalfaHayDryland!TotExp -> 284.5065573 | F8: =+AlfalfaHayDryland!VarExp -> 189.1842833 | H8: =+AlfalfaHayDryland!Price -> 200 | I8: =+AlfalfaHayDryland!Unit -> Ton | J8: 1.422532787 | K8: 0.9459214163
A9: =+AlfalfaIrrigatedEstablish!A3 -> Irrigated Alfalfa Establishment | B9: =+AlfalfaIrrigatedEstablish!TotRet -> -385.5884528 | C9: =+AlfalfaIrrigatedEstablish!VarRet -> -261.3216115 | E9: =+AlfalfaIrrigatedEstablish!TotExp -> 385.5884528 | F9: =+AlfalfaIrrigatedEstablish!VarExp -> 261.3216115 | H9: =+AlfalfaIrrigatedEstablish!Price -> 0 | I9: =+AlfalfaIrrigatedEstablish!Unit ->  | J9: 0 | K9: 0
A10: =+AlfalfaHayIrrigated!A3 -> Irrigated Alfalfa Hay | B10: =+AlfalfaHayIrrigated!TotRet -> 786.3033252 | C10: =+AlfalfaHayIrrigated!VarRet -> 974.0367363 | E10: =+AlfalfaHayIrrigated!TotExp -> 513.6966748 | F10: =+AlfalfaHayIrrigated!VarExp -> 325.9632637 | H10: =+AlfalfaHayIrrigated!Price -> 200 | I10: =+AlfalfaHayIrrigated!Unit -> Ton | J10: 2.568483374 | K10: 1.629816318
A11: =+SmallGrain!A3 -> Small Grain Grazing | B11: =+SmallGrain!TotRet -> -140.6746851 | C11: =+SmallGrain!VarRet -> -79.67739195 | E11: =+SmallGrain!TotExp -> 140.6746851 | F11: =+SmallGrain!VarExp -> 79.67739195 | H11: =+SmallGrain!Price -> 0 | I11: =+SmallGrain!Unit ->  | J11: =+IF($H11=0,0,E11/$H11) -> 0 | K11: 0
A13: FIELD CROPS
A15: =+CanolaDryland!A3 -> Dryland Canola | B15: =+CanolaDryland!TotRet -> -72.85373876 | C15: =+CanolaDryland!VarRet -> -14.86661795 | E15: =+CanolaDryland!TotExp -> 232.8537388 | F15: =+CanolaDryland!VarExp -> 174.8666179 | H15: =+CanolaDryland!Price -> 0.16 | I15: =+CanolaDryland!Unit -> Pound | J15: =+IF($H15=0,0,E15/$H15) -> 1455.335867 | K15: =+IF($H15=0,0,F15/$H15) -> 1092.916362
A16: =+CottonDryland2X1!A3 -> Dryland Cotton (2X1 Planting Pattern) | B16: =+CottonDryland2X1!TotRet -> -88.53813565 | C16: =+CottonDryland2X1!VarRet -> -8.165636448 | E16: =+CottonDryland2X1!TotExp -> 320.5381357 | F16: =+CottonDryland2X1!VarExp -> 240.1656364 | H16: =+CottonDryland2X1!Price -> 0.56 | I16: =+CottonDryland2X1!Unit -> Pound | J16: =+IF($H16=0,0,E16/$H16) -> 572.3895279 | K16: =+IF($H16=0,0,F16/$H16) -> 428.8672079
A17: =+CottonDrylandSolid!A3 -> Dryland Cotton (Solid 40" Rows) | B17: =+CottonDrylandSolid!TotRet -> -3.493314566 | C17: =+CottonDrylandSolid!VarRet -> 72.39086855 | E17: =+CottonDrylandSolid!TotExp -> 351.4933146 | F17: =+CottonDrylandSolid!VarExp -> 275.6091315 | H17: =+CottonDrylandSolid!Price -> 0.56 | I17: =+CottonDrylandSolid!Unit -> Pound | J17: =+IF($H17=0,0,E17/$H17) -> 627.6666332 | K17: =+IF($H17=0,0,F17/$H17) -> 492.1591633
A18: =+CottonIrrigated!A3 -> Sprinkler Irrigated Cotton | B18: =+CottonIrrigated!TotRet -> -108.8257139 | C18: =+CottonIrrigated!VarRet -> 35.26012298 | E18: =+CottonIrrigated!TotExp -> 676.8257139 | F18: =+CottonIrrigated!VarExp -> 532.739877 | H18: =+CottonIrrigated!Price -> 0.56 | I18: =+CottonIrrigated!Unit -> Pound | J18: 1208.617346 | K18: 951.321209
A19: =+Peanuts!A3 -> Sprinkler Irrigated Peanuts | B19: =+Peanuts!TotRet -> 170.9039585 | C19: =+Peanuts!VarRet -> 360.3788322 | E19: =+Peanuts!TotExp -> 609.0960415 | F19: =+Peanuts!VarExp -> 419.6211678 | H19: =+Peanuts!Price -> 390 | I19: =+Peanuts!Unit -> Ton | J19: 1.561784722 | K19: 1.075951712
A20: =+SorghumDryland!A3 -> Dryland Sorghum | B20: =+SorghumDryland!TotRet -> -50.72824563 | C20: =+SorghumDryland!VarRet -> 19.37595306 | E20: =+SorghumDryland!TotExp -> 177.6682456 | F20: =+SorghumDryland!VarExp -> 107.5640469 | H20: =+SorghumDryland!Price -> 5.77 | I20: =+SorghumDryland!Unit -> CWT | J20: =+IF($H20=0,0,E20/$H20) -> 30.79172368 | K20: =+IF($H20=0,0,F20/$H20) -> 18.64194921
A21: =+WheatDryland!A3 -> Dryland Wheat | B21: =+WheatDryland!TotRet -> -49.97294573 | C21: =+WheatDryland!VarRet -> -1.750626751 | E21: =+WheatDryland!TotExp -> 204.5729457 | F21: =+WheatDryland!VarExp -> 156.3506268 | H21: =+WheatDryland!Price -> 4.3 | I21: =+WheatDryland!Unit -> Bushel | J21: =+IF($H21=0,0,E21/$H21) -> 47.57510366 | K21: =+IF($H21=0,0,F21/$H21) -> 36.36061087
A23: LIVESTOCK
A25: =+CowCalf!A3 -> Rolling Plains Cow-Calf Production | B25: =+CowCalf!TotRet -> -184.2356451 | C25: =+CowCalf!VarRet -> 311.3406508 | E25: =+CowCalf!TotExp -> 725.3542451 | F25: =+CowCalf!VarExp -> 229.7779492 | H25: =+CowCalf!Price -> 135.4662564 | I25: =+CowCalf!Unit -> CWT | J25: =+IF($H25=0,0,E25/$H25) -> 5.354501293 | K25: 1.696200628
A26: =+StockersMar1!A3 -> Stocker Calf Budget - Pull off Wheat March 1 | B26: =+StockersMar1!TotRet -> 8.007095956 | C26: =+StockersMar1!VarRet -> 21.98975429 | E26: =+StockersMar1!TotExp -> 840.632904 | F26: =+StockersMar1!VarExp -> 826.6502457 | H26: =+StockersMar1!Price -> 136 | I26: =+StockersMar1!Unit -> CWT | J26: 6.181124294 | K26: 6.07831063
A27: =+StockersGrazeOut!A3 -> Stocker Calf Budget - Grazeout | B27: =+StockersGrazeOut!TotRet -> 76.22665772 | C27: =+StockersGrazeOut!VarRet -> 83.45306606 | E27: =+StockersGrazeOut!TotExp -> 926.2683423 | F27: =+StockersGrazeOut!VarExp -> 919.0419339 | H27: =+StockersGrazeOut!Price -> 130 | I27: =+StockersGrazeOut!Unit -> CWT | J27: 7.125141094 | K27: 7.069553338

Sheet Your Returns - Cash Rent
A1: Your Returns - Cash Rent
B3: Quantity | C3: Returns Above Total Specified Expenses | F3: Total Direct Expenses | I3: Break-Even Yield to Cover Total Costs at Price Entered
B4: Acres, AUs, or Head | C4: Total | D4: Variable | F4: Total | G4: Variable | I4: Price | J4: Units | K4: Total | L4: Variable
A5: FORAGE CROPS
A7: =+AlfalfaDrylandEstablish!A3 -> Dryland Alfalfa Establishment | B7: =+AlfalfaDrylandEstablish!E7 -> 0 | C7: =+AlfalfaDrylandEstablish!YTotRet -> 0 | D7: =+AlfalfaDrylandEstablish!YVarRet -> 0 | F7: =+AlfalfaDrylandEstablish!YTotExp -> 0 | G7: =+AlfalfaDrylandEstablish!YVarExp -> 0 | I7: =+AlfalfaDrylandEstablish!YPrice -> 0 | J7: =+AlfalfaDrylandEstablish!Unit ->  | K7: =+IF($I7=0,0,F7/$I7) -> 0 | L7: 0
A8: =+AlfalfaHayDryland!A3 -> Dryland Alfalfa Hay | B8: =+AlfalfaHayDryland!E7 -> 0 | C8: =+AlfalfaHayDryland!YTotRet -> 0 | D8: =+AlfalfaHayDryland!YVarRet -> 0 | F8: =+AlfalfaHayDryland!YTotExp -> 0 | G8: =+AlfalfaHayDryland!YVarExp -> 0 | I8: =+AlfalfaHayDryland!YPrice -> 0 | J8: =+AlfalfaHayDryland!Unit -> Ton | K8: 0 | L8: 0
A9: =+AlfalfaIrrigatedEstablish!A3 -> Irrigated Alfalfa Establishment | B9: =+AlfalfaIrrigatedEstablish!E7 -> 0 | C9: =+AlfalfaIrrigatedEstablish!YTotRet -> 0 | D9: =+AlfalfaIrrigatedEstablish!YVarRet -> 0 | F9: =+AlfalfaIrrigatedEstablish!YTotExp -> 0 | G9: =+AlfalfaIrrigatedEstablish!YVarExp -> 0 | I9: =+AlfalfaIrrigatedEstablish!YPrice -> 0 | J9: =+AlfalfaIrrigatedEstablish!Unit ->  | K9: 0 | L9: 0
A10: =+AlfalfaHayIrrigated!A3 -> Irrigated Alfalfa Hay | B10: =+AlfalfaHayIrrigated!E7 -> 0 | C10: =+AlfalfaHayIrrigated!YTotRet -> 0 | D10: =+AlfalfaHayIrrigated!YVarRet -> 0 | F10: =+AlfalfaHayIrrigated!YTotExp -> 0 | G10: =+AlfalfaHayIrrigated!YVarExp -> 0 | I10: =+AlfalfaHayIrrigated!YPrice -> 0 | J10: =+AlfalfaHayIrrigated!Unit -> Ton | K10: 0 | L10: 0
A11: =+SmallGrain!A3 -> Small Grain Grazing | B11: =+SmallGrain!E7 -> 0 | C11: =+SmallGrain!YTotRet -> 0 | D11: =+SmallGrain!YVarRet -> 0 | F11: =+SmallGrain!YTotExp -> 0 | G11: =+SmallGrain!YVarExp -> 0 | I11: =+SmallGrain!YPrice -> 0 | J11: =+SmallGrain!Unit ->  | K11: =+IF($I11=0,0,F11/$I11) -> 0 | L11: 0
A13: FIELD CROPS - IRRIGATED
A15: =+CanolaDryland!A3 -> Dryland Canola | B15: =+CanolaDryland!E7 -> 0 | C15: =+CanolaDryland!YTotRet -> 0 | D15: =+CanolaDryland!YVarRet -> 0 | F15: =+CanolaDryland!YTotExp -> 0 | G15: =+CanolaDryland!YVarExp -> 0 | I15: =+CanolaDryland!YPrice -> 0 | J15: =+CanolaDryland!Unit -> Pound | K15: =+IF($I15=0,0,F15/$I15) -> 0 | L15: =+IF($I15=0,0,G15/$I15) -> 0
A16: =+CottonDryland2X1!A3 -> Dryland Cotton (2X1 Planting Pattern) | B16: =+CottonDryland2X1!E7 -> 0 | C16: =+CottonDryland2X1!YTotRet -> 0 | D16: =+CottonDryland2X1!YVarRet -> 0 | F16: =+CottonDryland2X1!YTotExp -> 0 | G16: =+CottonDryland2X1!YVarExp -> 0 | I16: =+CottonDryland2X1!YPrice -> 0 | J16: =+CottonDryland2X1!Unit -> Pound | K16: =+IF($I16=0,0,F16/$I16) -> 0 | L16: =+IF($I16=0,0,G16/$I16) -> 0
A17: =+CottonDrylandSolid!A3 -> Dryland Cotton (Solid 40" Rows) | B17: =+CottonDrylandSolid!E7 -> 0 | C17: =+CottonDrylandSolid!YTotRet -> 0 | D17: =+CottonDrylandSolid!YVarRet -> 0 | F17: =+CottonDrylandSolid!YTotExp -> 0 | G17: =+CottonDrylandSolid!YVarExp -> 0 | I17: =+CottonDrylandSolid!YPrice -> 0 | J17: =+CottonDrylandSolid!Unit -> Pound | K17: =+IF($I17=0,0,F17/$I17) -> 0 | L17: =+IF($I17=0,0,G17/$I17) -> 0
A18: =+CottonIrrigated!A3 -> Sprinkler Irrigated Cotton | B18: =+CottonIrrigated!E7 -> 0 | C18: =+CottonIrrigated!YTotRet -> 0 | D18: =+CottonIrrigated!YVarRet -> 0 | F18: =+CottonIrrigated!YTotExp -> 0 | G18: =+CottonIrrigated!YVarExp -> 0 | I18: =+CottonIrrigated!YPrice -> 0 | J18: =+CottonIrrigated!Unit -> Pound | K18: 0 | L18: 0
A19: =+Peanuts!A3 -> Sprinkler Irrigated Peanuts | B19: =+Peanuts!E7 -> 0 | C19: =+Peanuts!YTotRet -> 0 | D19: =+Peanuts!YVarRet -> 0 | F19: =+Peanuts!YTotExp -> 0 | G19: =+Peanuts!YVarExp -> 0 | I19: =+Peanuts!YPrice -> 0 | J19: =+Peanuts!Unit -> Ton | K19: 0 | L19: 0
A20: =+SorghumDryland!A3 -> Dryland Sorghum | B20: =+SorghumDryland!E7 -> 0 | C20: =+SorghumDryland!YTotRet -> 0 | D20: =+SorghumDryland!YVarRet -> 0 | F20: =+SorghumDryland!YTotExp -> 0 | G20: =+SorghumDryland!YVarExp -> 0 | I20: =+SorghumDryland!YPrice -> 0 | J20: =+SorghumDryland!Unit -> CWT | K20: =+IF($I20=0,0,F20/$I20) -> 0 | L20: =+IF($I20=0,0,G20/$I20) -> 0
A21: =+WheatDryland!A3 -> Dryland Wheat | B21: =+WheatDryland!E7 -> 0 | C21: =+WheatDryland!YTotRet -> 0 | D21: =+WheatDryland!YVarRet -> 0 | F21: =+WheatDryland!YTotExp -> 0 | G21: =+WheatDryland!YVarExp -> 0 | I21: =+WheatDryland!YPrice -> 0 | J21: =+WheatDryland!Unit -> Bushel | K21: =+IF($I21=0,0,F21/$I21) -> 0 | L21: =+IF($I21=0,0,G21/$I21) -> 0
A23: LIVESTOCK
A25: =+CowCalf!A3 -> Rolling Plains Cow-Calf Production | B25: =+CowCalf!E7 -> 0 | C25: =+CowCalf!YTotRet -> 0 | D25: =+CowCalf!YVarRet -> 0 | F25: =+CowCalf!YTotExp -> 0 | G25: =+CowCalf!YVarExp -> 0 | I25: =+CowCalf!YPrice -> 0 | J25: =+CowCalf!Unit -> CWT | K25: =+IF($I25=0,0,F25/$I25) -> 0 | L25: 0
A26: =+StockersMar1!A3 -> Stocker Calf Budget - Pull off Wheat March 1 | B26: =+StockersMar1!E7 -> 0 | C26: =+StockersMar1!YTotRet -> 0 | D26: =+StockersMar1!YVarRet -> 0 | F26: =+StockersMar1!YTotExp -> 0 | G26: =+StockersMar1!YVarExp -> 0 | I26: =+StockersMar1!YPrice -> 0 | J26: =+StockersMar1!Unit -> CWT | K26: 0 | L26: 0
A27: =+StockersGrazeOut!A3 -> Stocker Calf Budget - Grazeout | B27: =+StockersGrazeOut!E7 -> 0 | C27: =+StockersGrazeOut!YTotRet -> 0 | D27: =+StockersGrazeOut!YVarRet -> 0 | F27: =+StockersGrazeOut!YTotExp -> 0 | G27: =+StockersGrazeOut!YVarExp -> 0 | I27: =+StockersGrazeOut!YPrice -> 0 | J27: =+StockersGrazeOut!Unit -> CWT | K27: 0 | L27: 0
A29: OTHER BUDGETS
A31: =+'Livestock Budget'!A3 -> Livestock Enterprise | B31: =+'Livestock Budget'!D5 -> 0 | C31: =+'Livestock Budget'!YTotRet -> 0 | D31: =+'Livestock Budget'!YVarRet -> 0 | F31: =+'Livestock Budget'!YTotExp -> 0 | G31: =+'Livestock Budget'!YVarExp -> 0 | I31: =+'Livestock Budget'!YPrice -> 0 | J31: =+'Livestock Budget'!Unit -> CWT | K31: =+IF($I31=0,0,F31/$I31) -> 0 | L31: 0
A32: =+'Crop Budget'!A3 -> Crop Enterprise | B32: =+'Crop Budget'!D5 -> 0 | C32: =+'Crop Budget'!YTotRet -> 0 | D32: =+'Crop Budget'!YVarRet -> 0 | F32: =+'Crop Budget'!YTotExp -> 0 | G32: =+'Crop Budget'!YVarExp -> 0 | I32: =+'Crop Budget'!YPrice -> 0 | J32: =+'Crop Budget'!Unit -> Cwt,lb,etc | K32: 0 | L32: 0
